Workbook

Sheet Title
D9: Transportation Services
D11: Winter Quarter
D12: Parking Space Inventory Report
D14: University of California San Diego
D15: March 1, 2025

Sheet Key Locations Lots & Structures
B2: Location | D2: Location | Q2: Location | V2: Location
B3: La Jolla Campus | D3: La Jolla Campus | Q3: La Jolla Campus | V3: Medical Center Hillcrest
B5: Area | D5: Area | Q5: Area | V5: Area
B6: Scripps Institution of Oceanography | D6: West Campus | Q6: East Campus | V6: Medical Center Hillcrest
B8: Neighborhood | D8: Neighborhood | Q8: Neighborhood | V8: Neighborhood
D9: Revelle | E9: Muir | F9: N. Torrey Pines | G9: Marshall | H9: Roosevelt | I9: North | J9: Torrey Pines | K9: Pepper | L9: University | M9: Warren | N9: Campus | O9: Health | Q9: East | R9: Health | S9: Preuss | T9: Science | V9: Medical Center Hillcrest
B10: SIO | D10: College | E10: College | F10: Living &Learning | G10: College | H10: College | I10: Campus | J10: Center | K10: Canyon | L10: Center | M10: College | N10: Services | O10: Sciences | Q10: Recreation | R10: Sciences | S10: School | T10: Research
N11: Complex | O11: West | R11: East | T11: Park
B12: Lots & Structures | D12: Lots & Structures | Q12: Lots & Structures | V12: Lots & Structures
B13: P001 | D13: P101 | E13: P113 | F13: Scholars | G13: P302 | H13: P306 | I13: P351 | J13: TPC South | K13: P401 | L13: P405 | M13: P418 | N13: P507 | O13: P601 | Q13: P701 | R13: P702 | S13: P706 | T13: P782 | V13: Arbor
B14: P002 | D14: P103 | E14: P201 | F14: (P211-3) | G14: P303 | H14: Hopkins | I14: P352 | J14: (P381-3) | K14: P402 | L14: P407 | M14: P502 | N14: P510 | O14: P602 | R14: P703 | T14: P785 | V14: (P901-14)
B15: P003 | D15: P106 | E15: P202 | F15: TDLLC | G15: P304 | H15: (P341-7) | I15: P357 | J15: P384 | K15: P406 | L15: P408 | M15: P503 | O15: P603 | R15: P704 | T15: Vela/ | V15: First Ave
B16: P004 | D16: P107 | E16: P203 | G16: P308 | H16: P353 | I16: P358 | J16: P385 | K16: P506 | L16: P410 | M16: P504 | O16: P604 | R16: P705 | T16: Nuevo W.
B17: P005 | D17: P108 | E17: P204 | G17: P309 | H17: P354 | I17: P359 | J17: P386 | L17: P411 | M17: P505 | O17: P605 | T17: (P791-3) | V17: P952
B18: P006 | D18: P110 | E18: P205 | G18: P310 | H18: Pangea | J18: TPC North | L18: P412 | M18: P508 | O18: P606 | R18: P707 | V18: P953
B19: P007 | D19: P112 | E19: P206 | H19: (P371-6) | J19: (P391-5) | L19: P413 | M19: P509 | O19: P607 | R19: Campus Pt E. | V19: P954
B20: P008 | D20: P116 | E20: P414 | L20: Gilman | O20: P608 | R20: (P721-2) | V20: P955
B21: P009 | E21: P415 | L21: (P451-6) | O21: P610 | R21: Campus Pt W. | V21: P956
B22: P010 | E22: P416 | L22: P501 | O22: South | R22: (P731-5) | V22: P957
B23: P011 | O23: (P651-5) | R23: Athena | V23: P958
B24: P012 | R24: (P741-7) | V24: P962
B25: P013 | R25: P751 | V25: P963
B26: P014 | R26: P752 | V26: P964
B27: P015 | R27: P753
B28: P016 | R28: P757
B29: P017 | R29: P758
B30: P021 | R30: P759
R31: P760
R32: P761
R33: P762
R34: P784
B37: Lot Completely Closed
B38: Total Inventory Numbers Affected by Construction
B39: Closed for COVID-19 testing
B41: Partially Affected by Construction
B42: Closed for Construction
B43: Permanently Closed

Sheet Key Descriptions
B1: Key 2: Parking Space Descriptions
B3: Parking Space Type | C3: Description | D3: Subtypes
B4: A | C4: "A" spaces are for individuals with "A" permits. | D4: If no subtype is listed, any "A" permit holder can use the space without limitations. Other permits can upgrade to use these spaces.
C5: These spaces are stenciled with red blocks, 'A'; Or designated with 24/7 signage. | D5: 24/7 A spaces have signage indicating A permits are required at all times. Preuss A and Physician A require additional permits to use this spaces.
B6: B | C6: "B" spaces are for individuals with "B" permits. | D6: Preuss B and SIO B require additional permits to use this spaces.
C7: These spaces are stenciled with green blocks, 'B'.
B8: S | C8: "S" spaces are for individuals with "S" permits. | D8: SIO S require additional permits to use this spaces.
C9: These spaces are stenciled with yellow blocks, 'S'.
B10: SR | C10: "SR" spaces are for individuals with "SR" permits.
C11: These spaces are stenciled with black and yellow 'SR' blocks.
B12: D | C12: "D" spaces are for individuals with "D" permits or permit bought via ParkMobile.
C13: These spaces are not stenciled and are located at Regents lots, P703, P704, P705.
B14: $3.25 (SS) | C14: "$3.25" (SS) spaces can be used by visitors or permit holders with permit bought via ParkMobile.
C15: Spaces have no stencil or color block.
B16: Visitor | C16: "Visitor" spaces are for those without permits. | D16: Subtypes include: Medical Patients, Birch Aquarium, Sanford Consortium, Police Visitor
C17: These spaces are stenciled with white blocks, 'V'. | D17: Payment at these subtype spaces is not subject to the same restrictions as Visitor spaces.
B18: Reserved | C18: "Reserved" spaces are stenciled with numbers, 'Reserved', and/or signage.
C19: Spaces are paid for by departments or individuals.
B20: Allocated | C20: "Allocated" spaces are special use spaces. | D20: A full list of Allocated spaces is listed in the Allocated Summary table of this report.
C21: These spaces are designated with signage or stenciled with description.
B22: Accessible | C22: "Accessible" spaces are for individuals with disabilities. | D22: Accessible spaces with Electric Vehicle charging access are listed seperately.
B23: Accessible (Van)
B24: UC Vehicle | C24: "UC Vehicle" spaces are for official university vehicles, stenciled 'UC Vehicle' or 'UC Cart'. | D24: Subtype includes: UC Cart spaces.
B25: Service Yard | C25: "Service Yard" spaces are stenciled 'Service Yard'.
B26: Loading | C26: "Loading" spaces are stenciled 'Loading'. | D26: If no subtype is listed, it is a Loading space marked only with the Loading Time Limit. Subtypes include: Bars (large areas not spaces), Docks, Commercial.
B27: Carpool | C27: "Carpool" spaces have "Reserved" signage with notes on the type of carpool permit needed as well as hours of enforcement. | D27: Subtypes include: 2-Person, A/B/S 3-Person, Electric Vehicle charging access.
B28: Electric Vehicle | C28: "Electric Vehicle" spaces have signage with notes indicating time limit and permit requirements.
B29: Motorcycle | C29: "Motorcycle" sections are designated with signage and/or stenciled 'Motorcycles'.

Sheet Allocation Change Graph (hidden)
A1: Row Labels | B1: Sum of Inventory By Location | C1: Sum of Max Open Stalls | D1: Sum of Min Open Stalls | H1: Row Labels | I1: Sum of Min % Occupancy | J1: Sum of Max % Occupancy | K1: Sum of Optimal %
A2: Health Sciences East | H2: Health Sciences East
A3: A | H3: A
A4: Athena | B4: 307 | C4: 242 | D4: 87 | H4: Athena | I4: 0.2117263844 | J4: 0.7166123779 | K4: 0.9
A5: Accessible | H5: Accessible
A6: Athena | B6: 71 | C6: 43 | D6: 2 | H6: Athena | I6: 0.3943661972 | J6: 0.9718309859 | K6: 0.85 | BD6: Location | BE6: Original # | BF6: + / - | BG6: New #
A7: B | H7: B | BD7: Athena A | BE7: =_xlfn.IFNA(VLOOKUP(BD7, 'Pivot Table Data'!Q$5:S$1000, 3, FALSE), "-") -> 4 | BG7: =IF(BF7=0, "-", BE7+BF7) -> -
A8: Athena | B8: 540 | C8: 264 | D8: 39 | H8: Athena | I8: 0.5111111111 | J8: 0.9277777778 | K8: 0.9 | BD8: Torrey Pines Center South UC Vehicle | BE8: =_xlfn.IFNA(VLOOKUP(BD8, 'Pivot Table Data'!Q$5:S$1000, 3, FALSE), "-") -> 2 | BG8: =IF(BF8=0, "-", BE8+BF8) -> -
A9: Electric Vehicle | H9: Electric Vehicle | BE9: =_xlfn.IFNA(VLOOKUP(BD9, 'Pivot Table Data'!Q$5:S$1000, 3, FALSE), "-") -> - | BG9: -
A10: Athena | B10: 45 | C10: 35 | D10: 8 | H10: Athena | I10: 0.2222222222 | J10: 0.8222222222 | K10: 0.85 | BE10: =_xlfn.IFNA(VLOOKUP(BD10, 'Pivot Table Data'!Q$5:S$1000, 3, FALSE), "-") -> - | BG10: -
A11: Motorcycle Section | H11: Motorcycle Section | BE11: =_xlfn.IFNA(VLOOKUP(BD11, 'Pivot Table Data'!Q$5:S$1000, 3, FALSE), "-") -> - | BG11: -
A12: Athena | B12: 30 | C12: 30 | D12: 29 | H12: Athena | I12: 0 | J12: 0.03333333333 | K12: 0.85 | BE12: =_xlfn.IFNA(VLOOKUP(BD12, 'Pivot Table Data'!Q$5:S$1000, 3, FALSE), "-") -> - | BG12: -
A13: Reserved | H13: Reserved | BE13: =_xlfn.IFNA(VLOOKUP(BD13, 'Pivot Table Data'!Q$5:S$1000, 3, FALSE), "-") -> - | BG13: -
A14: Athena | B14: 6 | C14: 4 | D14: 1 | H14: Athena | I14: 0.3333333333 | J14: 0.8333333333 | K14: 0.85 | BE14: =_xlfn.IFNA(VLOOKUP(BD14, 'Pivot Table Data'!Q$5:S$1000, 3, FALSE), "-") -> - | BG14: -
A15: Visitor | H15: Visitor | BE15: =_xlfn.IFNA(VLOOKUP(BD15, 'Pivot Table Data'!Q$5:S$1000, 3, FALSE), "-") -> - | BG15: -
A16: Athena | B16: 286 | C16: 237 | D16: 69 | H16: Athena | I16: 0.1713286713 | J16: 0.7587412587 | K16: 0.85 | BE16: =_xlfn.IFNA(VLOOKUP(BD16, 'Pivot Table Data'!Q$5:S$1000, 3, FALSE), "-") -> - | BG16: -
A17: Accessible (Van) | H17: Accessible (Van) | BE17: =_xlfn.IFNA(VLOOKUP(BD17, 'Pivot Table Data'!Q$5:S$1000, 3, FALSE), "-") -> - | BG17: -
A18: Athena | B18: 8 | C18: 4 | D18: 0 | H18: Athena | I18: 0.5 | J18: 1 | K18: 0.85 | BE18: =_xlfn.IFNA(VLOOKUP(BD18, 'Pivot Table Data'!Q$5:S$1000, 3, FALSE), "-") -> - | BG18: -
BE19: =_xlfn.IFNA(VLOOKUP(BD19, 'Pivot Table Data'!Q$5:S$1000, 3, FALSE), "-") -> - | BG19: -
BE20: =_xlfn.IFNA(VLOOKUP(BD20, 'Pivot Table Data'!Q$5:S$1000, 3, FALSE), "-") -> - | BG20: -

Sheet Pivot Table Data (hidden)
A2: Choose Quarter / Year of Survey | D2: Spring 2025 | E2: Count of Locations & Sum of Stalls | G2: =SUBTOTAL(3, G5:G1001) -> 944 | H2: =SUBTOTAL(3, H5:H1001) -> 944 | I2: =SUBTOTAL(3, I5:I1001) -> 944 | M2: =SUBTOTAL(3, M5:M1001) -> 944 | N2: =SUBTOTAL(3, N5:N1001) -> 631 | O2: =SUBTOTAL(3, O5:O1001) -> 146 | S2: =SUBTOTAL(9, S5:S1001) -> 21006 | T2: 21006 | U2: 0 | X2: 0 | Y2: 276 | Z2: 20885 | AA2: 21006 | AB2: 0 | AC2: 0 | AD2: 12760 | AE2: 10379 | AF2: 7896 | AG2: 6623 | AH2: 6068 | AI2: 4981 | AJ2: 5209 | AK2: 6026 | AL2: 7508 | AM2: 8782 | AN2: 0 | AO2: 0 | AP2: 0 | AQ2: 0 | AR2: 0 | AS2: 3866 | AT2: 13572
M3: Yes
A4: Date | B4: Zone # | C4: University Wide | D4: La Jolla / Hillcrest | E4: Area | F4: Neighborhood | G4: Structure | H4: Lot # | I4: Garage Level | J4: Space Type | K4: Space Subtype | L4: Time Limit [minutes] | M4: For Inventory Survey? | N4: For Occupancy Survey? | O4: For Qpass Survey? | P4: Lot / Structure | Q4: & | R4: Type Count | S4: Inventory By Locaton & Level | T4: Inventory By Location | U4: Theoretical Allocation Changes By Location (+ / -) | V4: Desired Percentage | W4: Desired Car Count | X4: Summer 2025 | Y4: Fall 2025 | Z4: Winter 2025 | AA4: Spring 2025 | AB4: 6am | AC4: 7am | AD4: 8am | AE4: 9am | AF4: 10am | AG4: 11am | AH4: 12pm | AI4: 1pm | AJ4: 2pm | AK4: 3pm | AL4: 4pm | AM4: 5pm | AN4: 6pm | AO4: 7pm | AP4: 8pm | AQ4: 9pm | AR4: 10pm | AS4: Min Open Stalls | AT4: Max Open Stalls
C5: University Wide | D5: La Jolla Campus | E5: East Campus | F5: Health Sciences East | G5: Athena | H5: P741 | I5: Ground Floor | J5: A | M5: Yes | N5: Yes | O5: Yes | P5: =IF(G5="Surface Lot", H5, G5) -> Athena | Q5: =P5&" "&J5&" "&K5&" "&L5 -> Athena A | R5: =COUNTIF(Q$5:Q5, Q5 ) -> 1 | S5: =_xlfn.IFS(D$2=X$4, X5, D$2=Y$4, Y5,D$2=Z$4, Z5,D$2=AA$4, AA5) -> 4 | T5: =IF(R5=1,SUMIF(Q:Q,Q5,S:S)+U5, "") -> 307 | U5: =IF(R5=1, _xlfn.IFNA(VLOOKUP(Q5, 'Allocation Change Graph'!BF$7:BF$20, 2, FALSE), 0), 0) -> 0 | V5: 0.9 | W5: =IF(R5=1, V5*T5, "") -> 276.3 | Z5: 4 | AA5: 4 | AD5: 242 | AE5: 167 | AF5: 115 | AG5: 106 | AH5: 98 | AI5: 91 | AJ5: 87 | AK5: 108 | AL5: 138 | AM5: 182 | AS5: =MIN($AB5:$AR5)+U5 -> 87 | AT5: =MAX($AB5:$AR5)+U5 -> 242
C6: University Wide | D6: La Jolla Campus | E6: East Campus | F6: Health Sciences East | G6: Athena | H6: P741 | I6: Ground Floor | J6: Accessible | M6: Yes | N6: Yes | P6: Athena | Q6: =P6&" "&J6&" "&K6&" "&L6 -> Athena Accessible | R6: =COUNTIF(Q$5:Q6, Q6 ) -> 1 | S6: =_xlfn.IFS(D$2=X$4, X6, D$2=Y$4, Y6,D$2=Z$4, Z6,D$2=AA$4, AA6) -> 49 | T6: 71 | U6: =IF(R6=1, _xlfn.IFNA(VLOOKUP(Q6, 'Allocation Change Graph'!BF$7:BF$20, 2, FALSE), 0), 0) -> 0 | V6: 0.85 | W6: 60.35 | Z6: 49 | AA6: 49 | AD6: 43 | AE6: 32 | AF6: 21 | AG6: 17 | AH6: 2 | AI6: 3 | AJ6: 4 | AK6: 10 | AL6: 12 | AM6: 38 | AS6: 2 | AT6: 43
C7: University Wide | D7: La Jolla Campus | E7: East Campus | F7: Health Sciences East | G7: Athena | H7: P741 | I7: Ground Floor | J7: Accessible (Van) | M7: Yes | N7: Yes | P7: Athena | Q7: Athena Accessible (Van) | R7: =COUNTIF(Q$5:Q7, Q7 ) -> 1 | S7: =_xlfn.IFS(D$2=X$4, X7, D$2=Y$4, Y7,D$2=Z$4, Z7,D$2=AA$4, AA7) -> 3 | T7: 8 | U7: =IF(R7=1, _xlfn.IFNA(VLOOKUP(Q7, 'Allocation Change Graph'!BF$7:BF$20, 2, FALSE), 0), 0) -> 0 | V7: 0.85 | W7: 6.8 | Z7: 3 | AA7: 3 | AD7: 4 | AE7: 2 | AF7: 3 | AG7: 3 | AH7: 0 | AI7: 2 | AJ7: 3 | AK7: 1 | AL7: 3 | AM7: 4 | AS7: 0 | AT7: 4
C8: University Wide | D8: La Jolla Campus | E8: East Campus | F8: Health Sciences East | G8: Athena | H8: P741 | I8: Ground Floor | J8: Accessible (Van) | M8: Yes | P8: Athena | Q8: Athena Accessible (Van) | R8: =COUNTIF(Q$5:Q8, Q8 ) -> 2 | S8: =_xlfn.IFS(D$2=X$4, X8, D$2=Y$4, Y8,D$2=Z$4, Z8,D$2=AA$4, AA8) -> 0 | U8: =IF(R8=1, _xlfn.IFNA(VLOOKUP(Q8, 'Allocation Change Graph'!BF$7:BF$20, 2, FALSE), 0), 0) -> 0 | Z8: 0 | AA8: 0 | AD8: 0 | AE8: 0 | AF8: 0 | AG8: 0 | AH8: 0 | AI8: 0 | AJ8: 0 | AK8: 0 | AL8: 0 | AM8: 0 | AS8: 0 | AT8: 0
C9: University Wide | D9: La Jolla Campus | E9: East Campus | F9: Health Sciences East | G9: Athena | H9: P741 | I9: Ground Floor | J9: Electric Vehicle | K9: ADA | M9: Yes | N9: Yes | P9: Athena | Q9: Athena Electric Vehicle ADA | R9: =COUNTIF(Q$5:Q9, Q9 ) -> 1 | S9: =_xlfn.IFS(D$2=X$4, X9, D$2=Y$4, Y9,D$2=Z$4, Z9,D$2=AA$4, AA9) -> 2 | T9: 2 | U9: =IF(R9=1, _xlfn.IFNA(VLOOKUP(Q9, 'Allocation Change Graph'!BF$7:BF$20, 2, FALSE), 0), 0) -> 0 | V9: 0.85 | W9: 1.7 | Z9: 2 | AA9: 2 | AD9: 0 | AE9: 0 | AF9: 0 | AG9: 0 | AH9: 0 | AI9: 0 | AJ9: 0 | AK9: 0 | AL9: 0 | AM9: 0 | AS9: 0 | AT9: 0
C10: University Wide | D10: La Jolla Campus | E10: East Campus | F10: Health Sciences East | G10: Athena | H10: P741 | I10: Ground Floor | J10: Electric Vehicle | M10: Yes | N10: Yes | P10: Athena | Q10: Athena Electric Vehicle | R10: =COUNTIF(Q$5:Q10, Q10 ) -> 1 | S10: =_xlfn.IFS(D$2=X$4, X10, D$2=Y$4, Y10,D$2=Z$4, Z10,D$2=AA$4, AA10) -> 16 | T10: 16 | U10: =IF(R10=1, _xlfn.IFNA(VLOOKUP(Q10, 'Allocation Change Graph'!BF$7:BF$20, 2, FALSE), 0), 0) -> 0 | V10: 0.85 | W10: 13.6 | Z10: 16 | AA10: 16 | AD10: 13 | AE10: 9 | AF10: 7 | AG10: 5 | AH10: 4 | AI10: 14 | AJ10: 16 | AK10: 16 | AL10: 16 | AM10: 15 | AS10: 4 | AT10: 16
C11: University Wide | D11: La Jolla Campus | E11: East Campus | F11: Health Sciences East | G11: Athena | H11: P741 | I11: Ground Floor | J11: Motorcycle Section | M11: Yes | N11: Yes | P11: Athena | Q11: Athena Motorcycle Section | R11: =COUNTIF(Q$5:Q11, Q11 ) -> 1 | S11: =_xlfn.IFS(D$2=X$4, X11, D$2=Y$4, Y11,D$2=Z$4, Z11,D$2=AA$4, AA11) -> 0 | T11: 30 | U11: =IF(R11=1, _xlfn.IFNA(VLOOKUP(Q11, 'Allocation Change Graph'!BF$7:BF$20, 2, FALSE), 0), 0) -> 0 | V11: 0.85 | W11: 25.5 | Z11: 0 | AA11: 0 | AD11: 29 | AE11: 29 | AF11: 30 | AG11: 30 | AH11: 29 | AI11: 30 | AJ11: 30 | AK11: 30 | AL11: 30 | AM11: 30 | AS11: 29 | AT11: 30
C12: University Wide | D12: La Jolla Campus | E12: East Campus | F12: Health Sciences East | G12: Athena | H12: P741 | I12: Ground Floor | J12: Visitor | K12: Patient/Visitor Reserved | L12: 30 minutes | M12: Yes | N12: Yes | O12: Yes | P12: Athena | Q12: Athena Visitor Patient/Visitor Reserved 30 minutes | R12: =COUNTIF(Q$5:Q12, Q12 ) -> 1 | S12: =_xlfn.IFS(D$2=X$4, X12, D$2=Y$4, Y12,D$2=Z$4, Z12,D$2=AA$4, AA12) -> 9 | T12: 9 | U12: =IF(R12=1, _xlfn.IFNA(VLOOKUP(Q12, 'Allocation Change Graph'!BF$7:BF$20, 2, FALSE), 0), 0) -> 0 | V12: 0.85 | W12: 7.65 | Z12: 9 | AA12: 9 | AD12: 5 | AE12: 3 | AF12: 3 | AG12: 4 | AH12: 0 | AI12: 3 | AJ12: 4 | AK12: 5 | AL12: 6 | AM12: 7 | AS12: 0 | AT12: 7
C13: University Wide | D13: La Jolla Campus | E13: East Campus | F13: Health Sciences East | G13: Athena | H13: P741 | I13: Ground Floor | J13: Visitor | M13: Yes | N13: Yes | O13: Yes | P13: Athena | Q13: Athena Visitor | R13: =COUNTIF(Q$5:Q13, Q13 ) -> 1 | S13: =_xlfn.IFS(D$2=X$4, X13, D$2=Y$4, Y13,D$2=Z$4, Z13,D$2=AA$4, AA13) -> 64 | T13: 237 | U13: =IF(R13=1, _xlfn.IFNA(VLOOKUP(Q13, 'Allocation Change Graph'!BF$7:BF$20, 2, FALSE), 0), 0) -> 0 | V13: 0.85 | W13: 201.45 | Z13: 64 | AA13: 64 | AD13: 186 | AE13: 168 | AF13: 132 | AG13: 121 | AH13: 82 | AI13: 60 | AJ13: 71 | AK13: 90 | AL13: 143 | AM13: 193 | AS13: 60 | AT13: 193
C14: University Wide | D14: La Jolla Campus | E14: East Campus | F14: Health Sciences East | G14: Athena | H14: P742 | I14: L2 | J14: A | M14: Yes | P14: Athena | Q14: Athena A | R14: =COUNTIF(Q$5:Q14, Q14 ) -> 2 | S14: =_xlfn.IFS(D$2=X$4, X14, D$2=Y$4, Y14,D$2=Z$4, Z14,D$2=AA$4, AA14) -> 9 | U14: =IF(R14=1, _xlfn.IFNA(VLOOKUP(Q14, 'Allocation Change Graph'!BF$7:BF$20, 2, FALSE), 0), 0) -> 0 | Z14: 9 | AA14: 9 | AD14: 0 | AE14: 0 | AF14: 0 | AG14: 0 | AH14: 0 | AI14: 0 | AJ14: 0 | AK14: 0 | AL14: 0 | AM14: 0 | AS14: 0 | AT14: 0
C15: University Wide | D15: La Jolla Campus | E15: East Campus | F15: Health Sciences East | G15: Athena | H15: P742 | I15: L2 | J15: Accessible | M15: Yes | P15: Athena | Q15: Athena Accessible | R15: =COUNTIF(Q$5:Q15, Q15 ) -> 2 | S15: =_xlfn.IFS(D$2=X$4, X15, D$2=Y$4, Y15,D$2=Z$4, Z15,D$2=AA$4, AA15) -> 15 | U15: =IF(R15=1, _xlfn.IFNA(VLOOKUP(Q15, 'Allocation Change Graph'!BF$7:BF$20, 2, FALSE), 0), 0) -> 0 | Z15: 15 | AA15: 15 | AD15: 0 | AE15: 0 | AF15: 0 | AG15: 0 | AH15: 0 | AI15: 0 | AJ15: 0 | AK15: 0 | AL15: 0 | AM15: 0 | AS15: 0 | AT15: 0
C16: University Wide | D16: La Jolla Campus | E16: East Campus | F16: Health Sciences East | G16: Athena | H16: P742 | I16: L2 | J16: Accessible (Van) | M16: Yes | P16: Athena | Q16: Athena Accessible (Van) | R16: =COUNTIF(Q$5:Q16, Q16 ) -> 3 | S16: =_xlfn.IFS(D$2=X$4, X16, D$2=Y$4, Y16,D$2=Z$4, Z16,D$2=AA$4, AA16) -> 3 | U16: =IF(R16=1, _xlfn.IFNA(VLOOKUP(Q16, 'Allocation Change Graph'!BF$7:BF$20, 2, FALSE), 0), 0) -> 0 | Z16: 3 | AA16: 3 | AD16: 0 | AE16: 0 | AF16: 0 | AG16: 0 | AH16: 0 | AI16: 0 | AJ16: 0 | AK16: 0 | AL16: 0 | AM16: 0 | AS16: 0 | AT16: 0
C17: University Wide | D17: La Jolla Campus | E17: East Campus | F17: Health Sciences East | G17: Athena | H17: P742 | I17: L2 | J17: Motorcycle Section | M17: Yes | P17: Athena | Q17: Athena Motorcycle Section | R17: =COUNTIF(Q$5:Q17, Q17 ) -> 2 | S17: =_xlfn.IFS(D$2=X$4, X17, D$2=Y$4, Y17,D$2=Z$4, Z17,D$2=AA$4, AA17) -> 10 | U17: =IF(R17=1, _xlfn.IFNA(VLOOKUP(Q17, 'Allocation Change Graph'!BF$7:BF$20, 2, FALSE), 0), 0) -> 0 | Z17: 10 | AA17: 10 | AD17: 0 | AE17: 0 | AF17: 0 | AG17: 0 | AH17: 0 | AI17: 0 | AJ17: 0 | AK17: 0 | AL17: 0 | AM17: 0 | AS17: 0 | AT17: 0
C18: University Wide | D18: La Jolla Campus | E18: East Campus | F18: Health Sciences East | G18: Athena | H18: P742 | I18: L2 | J18: Motorcycle Section | M18: Yes | P18: Athena | Q18: Athena Motorcycle Section | R18: =COUNTIF(Q$5:Q18, Q18 ) -> 3 | S18: =_xlfn.IFS(D$2=X$4, X18, D$2=Y$4, Y18,D$2=Z$4, Z18,D$2=AA$4, AA18) -> 2 | U18: =IF(R18=1, _xlfn.IFNA(VLOOKUP(Q18, 'Allocation Change Graph'!BF$7:BF$20, 2, FALSE), 0), 0) -> 0 | Z18: 2 | AA18: 2 | AD18: 0 | AE18: 0 | AF18: 0 | AG18: 0 | AH18: 0 | AI18: 0 | AJ18: 0 | AK18: 0 | AL18: 0 | AM18: 0 | AS18: 0 | AT18: 0
C19: University Wide | D19: La Jolla Campus | E19: East Campus | F19: Health Sciences East | G19: Athena | H19: P742 | I19: L2 | J19: Visitor | K19: Infusion | M19: Yes | N19: Yes | O19: Yes | P19: Athena | Q19: Athena Visitor Infusion | R19: =COUNTIF(Q$5:Q19, Q19 ) -> 1 | S19: =_xlfn.IFS(D$2=X$4, X19, D$2=Y$4, Y19,D$2=Z$4, Z19,D$2=AA$4, AA19) -> 30 | T19: 30 | U19: =IF(R19=1, _xlfn.IFNA(VLOOKUP(Q19, 'Allocation Change Graph'!BF$7:BF$20, 2, FALSE), 0), 0) -> 0 | V19: 0.85 | W19: 25.5 | Z19: 30 | AA19: 30 | AD19: 28 | AE19: 20 | AF19: 11 | AG19: 9 | AH19: 10 | AI19: 11 | AJ19: 12 | AK19: 13 | AL19: 17 | AM19: 26 | AS19: 9 | AT19: 28
C20: University Wide | D20: La Jolla Campus | E20: East Campus | F20: Health Sciences East | G20: Athena | H20: P742 | I20: L2 | J20: Visitor | K20: Radiation | M20: Yes | N20: Yes | O20: Yes | P20: Athena | Q20: Athena Visitor Radiation | R20: =COUNTIF(Q$5:Q20, Q20 ) -> 1 | S20: =_xlfn.IFS(D$2=X$4, X20, D$2=Y$4, Y20,D$2=Z$4, Z20,D$2=AA$4, AA20) -> 10 | T20: 10 | U20: =IF(R20=1, _xlfn.IFNA(VLOOKUP(Q20, 'Allocation Change Graph'!BF$7:BF$20, 2, FALSE), 0), 0) -> 0 | V20: 0.85 | W20: 8.5 | Z20: 10 | AA20: 10 | AD20: 7 | AE20: 7 | AF20: 4 | AG20: 3 | AH20: 0 | AI20: 0 | AJ20: 5 | AK20: 5 | AL20: 7 | AM20: 9 | AS20: 0 | AT20: 9
C21: University Wide | D21: La Jolla Campus | E21: East Campus | F21: Health Sciences East | G21: Athena | H21: P742 | I21: L2 | J21: Visitor | M21: Yes | P21: Athena | Q21: Athena Visitor | R21: =COUNTIF(Q$5:Q21, Q21 ) -> 2 | S21: =_xlfn.IFS(D$2=X$4, X21, D$2=Y$4, Y21,D$2=Z$4, Z21,D$2=AA$4, AA21) -> 115 | U21: =IF(R21=1, _xlfn.IFNA(VLOOKUP(Q21, 'Allocation Change Graph'!BF$7:BF$20, 2, FALSE), 0), 0) -> 0 | Z21: 115 | AA21: 115 | AD21: 0 | AE21: 0 | AF21: 0 | AG21: 0 | AH21: 0 | AI21: 0 | AJ21: 0 | AK21: 0 | AL21: 0 | AM21: 0 | AS21: 0 | AT21: 0
C22: University Wide | D22: La Jolla Campus | E22: East Campus | F22: Health Sciences East | G22: Athena | H22: P743 | I22: L3 | J22: A | M22: Yes | P22: Athena | Q22: Athena A | R22: =COUNTIF(Q$5:Q22, Q22 ) -> 3 | S22: =_xlfn.IFS(D$2=X$4, X22, D$2=Y$4, Y22,D$2=Z$4, Z22,D$2=AA$4, AA22) -> 147 | U22: =IF(R22=1, _xlfn.IFNA(VLOOKUP(Q22, 'Allocation Change Graph'!BF$7:BF$20, 2, FALSE), 0), 0) -> 0 | Z22: 147 | AA22: 147 | AD22: 0 | AE22: 0 | AF22: 0 | AG22: 0 | AH22: 0 | AI22: 0 | AJ22: 0 | AK22: 0 | AL22: 0 | AM22: 0 | AS22: 0 | AT22: 0
C23: University Wide | D23: La Jolla Campus | E23: East Campus | F23: Health Sciences East | G23: Athena | H23: P743 | I23: L3 | J23: A | M23: Yes | P23: Athena | Q23: Athena A | R23: =COUNTIF(Q$5:Q23, Q23 ) -> 4 | S23: =_xlfn.IFS(D$2=X$4, X23, D$2=Y$4, Y23,D$2=Z$4, Z23,D$2=AA$4, AA23) -> 0 | U23: =IF(R23=1, _xlfn.IFNA(VLOOKUP(Q23, 'Allocation Change Graph'!BF$7:BF$20, 2, FALSE), 0), 0) -> 0 | Z23: 0 | AA23: 0 | AD23: 0 | AE23: 0 | AF23: 0 | AG23: 0 | AH23: 0 | AI23: 0 | AJ23: 0 | AK23: 0 | AL23: 0 | AM23: 0 | AS23: 0 | AT23: 0
C24: University Wide | D24: La Jolla Campus | E24: East Campus | F24: Health Sciences East | G24: Athena | H24: P743 | I24: L3 | J24: A | M24: Yes | P24: Athena | Q24: Athena A | R24: =COUNTIF(Q$5:Q24, Q24 ) -> 5 | S24: =_xlfn.IFS(D$2=X$4, X24, D$2=Y$4, Y24,D$2=Z$4, Z24,D$2=AA$4, AA24) -> 0 | U24: =IF(R24=1, _xlfn.IFNA(VLOOKUP(Q24, 'Allocation Change Graph'!BF$7:BF$20, 2, FALSE), 0), 0) -> 0 | Z24: 0 | AA24: 0 | AD24: 0 | AE24: 0 | AF24: 0 | AG24: 0 | AH24: 0 | AI24: 0 | AJ24: 0 | AK24: 0 | AL24: 0 | AM24: 0 | AS24: 0 | AT24: 0
C25: University Wide | D25: La Jolla Campus | E25: East Campus | F25: Health Sciences East | G25: Athena | H25: P743 | I25: L3 | J25: Accessible | M25: Yes | P25: Athena | Q25: Athena Accessible | R25: =COUNTIF(Q$5:Q25, Q25 ) -> 3 | S25: =_xlfn.IFS(D$2=X$4, X25, D$2=Y$4, Y25,D$2=Z$4, Z25,D$2=AA$4, AA25) -> 7 | U25: =IF(R25=1, _xlfn.IFNA(VLOOKUP(Q25, 'Allocation Change Graph'!BF$7:BF$20, 2, FALSE), 0), 0) -> 0 | Z25: 7 | AA25: 7 | AD25: 0 | AE25: 0 | AF25: 0 | AG25: 0 | AH25: 0 | AI25: 0 | AJ25: 0 | AK25: 0 | AL25: 0 | AM25: 0 | AS25: =MIN($AB25:$AR25)+U25 -> 0 | AT25: =MAX($AB25:$AR25)+U25 -> 0
C26: University Wide | D26: La Jolla Campus | E26: East Campus | F26: Health Sciences East | G26: Athena | H26: P743 | I26: L3 | J26: Accessible (Van) | M26: Yes | P26: Athena | Q26: Athena Accessible (Van) | R26: =COUNTIF(Q$5:Q26, Q26 ) -> 4 | S26: =_xlfn.IFS(D$2=X$4, X26, D$2=Y$4, Y26,D$2=Z$4, Z26,D$2=AA$4, AA26) -> 2 | U26: =IF(R26=1, _xlfn.IFNA(VLOOKUP(Q26, 'Allocation Change Graph'!BF$7:BF$20, 2, FALSE), 0), 0) -> 0 | Z26: 2 | AA26: 2 | AD26: 0 | AE26: 0 | AF26: 0 | AG26: 0 | AH26: 0 | AI26: 0 | AJ26: 0 | AK26: 0 | AL26: 0 | AM26: 0 | AS26: 0 | AT26: 0
C27: University Wide | D27: La Jolla Campus | E27: East Campus | F27: Health Sciences East | G27: Athena | H27: P743 | I27: L3 | J27: B | M27: Yes | N27: Yes | O27: Yes | P27: Athena | Q27: Athena B | R27: =COUNTIF(Q$5:Q27, Q27 ) -> 1 | S27: =_xlfn.IFS(D$2=X$4, X27, D$2=Y$4, Y27,D$2=Z$4, Z27,D$2=AA$4, AA27) -> 0 | T27: 540 | U27: =IF(R27=1, _xlfn.IFNA(VLOOKUP(Q27, 'Allocation Change Graph'!BF$7:BF$20, 2, FALSE), 0), 0) -> 0 | V27: 0.9 | W27: 486 | Z27: 0 | AA27: 0 | AD27: 206 | AE27: 190 | AF27: 92 | AG27: 86 | AH27: 52 | AI27: 39 | AJ27: 54 | AK27: 81 | AL27: 168 | AM27: 264 | AS27: 39 | AT27: 264
C28: University Wide | D28: La Jolla Campus | E28: East Campus | F28: Health Sciences East | G28: Athena | H28: P743 | I28: L3 | J28: Visitor | M28: Yes | P28: Athena | Q28: Athena Visitor | R28: =COUNTIF(Q$5:Q28, Q28 ) -> 3 | S28: =_xlfn.IFS(D$2=X$4, X28, D$2=Y$4, Y28,D$2=Z$4, Z28,D$2=AA$4, AA28) -> 58 | U28: =IF(R28=1, _xlfn.IFNA(VLOOKUP(Q28, 'Allocation Change Graph'!BF$7:BF$20, 2, FALSE), 0), 0) -> 0 | Z28: 58 | AA28: 58 | AD28: 0 | AE28: 0 | AF28: 0 | AG28: 0 | AH28: 0 | AI28: 0 | AJ28: 0 | AK28: 0 | AL28: 0 | AM28: 0 | AS28: 0 | AT28: 0
C29: University Wide | D29: La Jolla Campus | E29: East Campus | F29: Health Sciences East | G29: Athena | H29: P744 | I29: L4 | J29: A | M29: Yes | P29: Athena | Q29: Athena A | R29: =COUNTIF(Q$5:Q29, Q29 ) -> 6 | S29: =_xlfn.IFS(D$2=X$4, X29, D$2=Y$4, Y29,D$2=Z$4, Z29,D$2=AA$4, AA29) -> 147 | U29: =IF(R29=1, _xlfn.IFNA(VLOOKUP(Q29, 'Allocation Change Graph'!BF$7:BF$20, 2, FALSE), 0), 0) -> 0 | Z29: 147 | AA29: 147 | AD29: 0 | AE29: 0 | AF29: 0 | AG29: 0 | AH29: 0 | AI29: 0 | AJ29: 0 | AK29: 0 | AL29: 0 | AM29: 0 | AS29: 0 | AT29: 0
C30: University Wide | D30: La Jolla Campus | E30: East Campus | F30: Health Sciences East | G30: Athena | H30: P744 | I30: L4 | J30: B | M30: Yes | P30: Athena | Q30: Athena B | R30: =COUNTIF(Q$5:Q30, Q30 ) -> 2 | S30: =_xlfn.IFS(D$2=X$4, X30, D$2=Y$4, Y30,D$2=Z$4, Z30,D$2=AA$4, AA30) -> 76 | U30: =IF(R30=1, _xlfn.IFNA(VLOOKUP(Q30, 'Allocation Change Graph'!BF$7:BF$20, 2, FALSE), 0), 0) -> 0 | Z30: 76 | AA30: 76 | AD30: 0 | AE30: 0 | AF30: 0 | AG30: 0 | AH30: 0 | AI30: 0 | AJ30: 0 | AK30: 0 | AL30: 0 | AM30: 0 | AS30: 0 | AT30: 0
C31: University Wide | D31: La Jolla Campus | E31: East Campus | F31: Health Sciences East | G31: Athena | H31: P744 | I31: L4 | J31: Motorcycle Section | M31: Yes | P31: Athena | Q31: Athena Motorcycle Section | R31: =COUNTIF(Q$5:Q31, Q31 ) -> 4 | S31: =_xlfn.IFS(D$2=X$4, X31, D$2=Y$4, Y31,D$2=Z$4, Z31,D$2=AA$4, AA31) -> 5 | U31: =IF(R31=1, _xlfn.IFNA(VLOOKUP(Q31, 'Allocation Change Graph'!BF$7:BF$20, 2, FALSE), 0), 0) -> 0 | Z31: 5 | AA31: 5 | AD31: 0 | AE31: 0 | AF31: 0 | AG31: 0 | AH31: 0 | AI31: 0 | AJ31: 0 | AK31: 0 | AL31: 0 | AM31: 0 | AS31: 0 | AT31: 0
C32: University Wide | D32: La Jolla Campus | E32: East Campus | F32: Health Sciences East | G32: Athena | H32: P744 | I32: L4 | J32: Reserved | M32: Yes | N32: Yes | P32: Athena | Q32: Athena Reserved | R32: =COUNTIF(Q$5:Q32, Q32 ) -> 1 | S32: =_xlfn.IFS(D$2=X$4, X32, D$2=Y$4, Y32,D$2=Z$4, Z32,D$2=AA$4, AA32) -> 6 | T32: 6 | U32: =IF(R32=1, _xlfn.IFNA(VLOOKUP(Q32, 'Allocation Change Graph'!BF$7:BF$20, 2, FALSE), 0), 0) -> 0 | V32: 0.85 | W32: 5.1 | Z32: 6 | AA32: 6 | AD32: 4 | AE32: 2 | AF32: 2 | AG32: 2 | AH32: 1 | AI32: 3 | AJ32: 4 | AK32: 4 | AL32: 4 | AM32: 4 | AS32: 1 | AT32: 4
C33: University Wide | D33: La Jolla Campus | E33: East Campus | F33: Health Sciences East | G33: Athena | H33: P745 | I33: L5 | J33: B | M33: Yes | P33: Athena | Q33: Athena B | R33: =COUNTIF(Q$5:Q33, Q33 ) -> 3 | S33: =_xlfn.IFS(D$2=X$4, X33, D$2=Y$4, Y33,D$2=Z$4, Z33,D$2=AA$4, AA33) -> 225 | U33: =IF(R33=1, _xlfn.IFNA(VLOOKUP(Q33, 'Allocation Change Graph'!BF$7:BF$20, 2, FALSE), 0), 0) -> 0 | Z33: 225 | AA33: 225 | AD33: 0 | AE33: 0 | AF33: 0 | AG33: 0 | AH33: 0 | AI33: 0 | AJ33: 0 | AK33: 0 | AL33: 0 | AM33: 0 | AS33: 0 | AT33: 0
C34: University Wide | D34: La Jolla Campus | E34: East Campus | F34: Health Sciences East | G34: Athena | H34: P745 | I34: L5 | J34: Electric Vehicle | L34: 12-Hour | M34: Yes | N34: Yes | P34: Athena | Q34: Athena Electric Vehicle 12-Hour | R34: =COUNTIF(Q$5:Q34, Q34 ) -> 1 | S34: =_xlfn.IFS(D$2=X$4, X34, D$2=Y$4, Y34,D$2=Z$4, Z34,D$2=AA$4, AA34) -> 0 | T34: 27 | U34: =IF(R34=1, _xlfn.IFNA(VLOOKUP(Q34, 'Allocation Change Graph'!BF$7:BF$20, 2, FALSE), 0), 0) -> 0 | V34: 0.85 | W34: 22.95 | Z34: 0 | AA34: 0 | AD34: 19 | AE34: 12 | AF34: 8 | AG34: 8 | AH34: 4 | AI34: 10 | AJ34: 8 | AK34: 8 | AL34: 13 | AM34: 17 | AS34: 4 | AT34: 19
C35: University Wide | D35: La Jolla Campus | E35: East Campus | F35: Health Sciences East | G35: Athena | H35: P745 | I35: L5 | J35: Motorcycle Section | M35: Yes | P35: Athena | Q35: Athena Motorcycle Section | R35: =COUNTIF(Q$5:Q35, Q35 ) -> 5 | S35: =_xlfn.IFS(D$2=X$4, X35, D$2=Y$4, Y35,D$2=Z$4, Z35,D$2=AA$4, AA35) -> 5 | U35: =IF(R35=1, _xlfn.IFNA(VLOOKUP(Q35, 'Allocation Change Graph'!BF$7:BF$20, 2, FALSE), 0), 0) -> 0 | Z35: 5 | AA35: 5 | AD35: 0 | AE35: 0 | AF35: 0 | AG35: 0 | AH35: 0 | AI35: 0 | AJ35: 0 | AK35: 0 | AL35: 0 | AM35: 0 | AS35: 0 | AT35: 0
C36: University Wide | D36: La Jolla Campus | E36: East Campus | F36: Health Sciences East | G36: Athena | H36: P746 | I36: L6 | J36: B | M36: Yes | P36: Athena | Q36: Athena B | R36: =COUNTIF(Q$5:Q36, Q36 ) -> 4 | S36: =_xlfn.IFS(D$2=X$4, X36, D$2=Y$4, Y36,D$2=Z$4, Z36,D$2=AA$4, AA36) -> 133 | U36: =IF(R36=1, _xlfn.IFNA(VLOOKUP(Q36, 'Allocation Change Graph'!BF$7:BF$20, 2, FALSE), 0), 0) -> 0 | Z36: 133 | AA36: 133 | AD36: 0 | AE36: 0 | AF36: 0 | AG36: 0 | AH36: 0 | AI36: 0 | AJ36: 0 | AK36: 0 | AL36: 0 | AM36: 0 | AS36: 0 | AT36: 0
C37: University Wide | D37: La Jolla Campus | E37: East Campus | F37: Health Sciences East | G37: Athena | H37: P746 | I37: L6 | J37: Electric Vehicle | L37: 12-Hour | M37: Yes | P37: =IF(G37="Surface Lot", H37, G37) -> Athena | Q37: Athena Electric Vehicle 12-Hour | R37: =COUNTIF(Q$5:Q37, Q37 ) -> 2 | S37: =_xlfn.IFS(D$2=X$4, X37, D$2=Y$4, Y37,D$2=Z$4, Z37,D$2=AA$4, AA37) -> 27 | U37: =IF(R37=1, _xlfn.IFNA(VLOOKUP(Q37, 'Allocation Change Graph'!BF$7:BF$20, 2, FALSE), 0), 0) -> 0 | Z37: 27 | AA37: 27 | AD37: 0 | AE37: 0 | AF37: 0 | AG37: 0 | AH37: 0 | AI37: 0 | AJ37: 0 | AK37: 0 | AL37: 0 | AM37: 0 | AS37: 0 | AT37: 0
C38: University Wide | D38: La Jolla Campus | E38: East Campus | F38: Health Sciences East | G38: Athena | H38: P746 | I38: L6 | J38: Motorcycle Section | M38: Yes | P38: Athena | Q38: Athena Motorcycle Section | R38: =COUNTIF(Q$5:Q38, Q38 ) -> 6 | S38: =_xlfn.IFS(D$2=X$4, X38, D$2=Y$4, Y38,D$2=Z$4, Z38,D$2=AA$4, AA38) -> 8 | U38: =IF(R38=1, _xlfn.IFNA(VLOOKUP(Q38, 'Allocation Change Graph'!BF$7:BF$20, 2, FALSE), 0), 0) -> 0 | Z38: 8 | AA38: 8 | AD38: 0 | AE38: 0 | AF38: 0 | AG38: 0 | AH38: 0 | AI38: 0 | AJ38: 0 | AK38: 0 | AL38: 0 | AM38: 0 | AS38: 0 | AT38: 0
C39: University Wide | D39: La Jolla Campus | E39: East Campus | F39: Health Sciences East | G39: Athena | H39: P747 | I39: Roof | J39: B | M39: Yes | P39: Athena | Q39: Athena B | R39: =COUNTIF(Q$5:Q39, Q39 ) -> 5 | S39: =_xlfn.IFS(D$2=X$4, X39, D$2=Y$4, Y39,D$2=Z$4, Z39,D$2=AA$4, AA39) -> 106 | U39: =IF(R39=1, _xlfn.IFNA(VLOOKUP(Q39, 'Allocation Change Graph'!BF$7:BF$20, 2, FALSE), 0), 0) -> 0 | Z39: 106 | AA39: 106 | AD39: 0 | AE39: 0 | AF39: 0 | AG39: 0 | AH39: 0 | AI39: 0 | AJ39: 0 | AK39: 0 | AL39: 0 | AM39: 0 | AS39: 0 | AT39: 0
C40: University Wide | D40: La Jolla Campus | E40: East Campus | F40: Health Sciences East | G40: Campus Point East | H40: P721 | I40: L1 | J40: A | K40: 24/7 Enforced | M40: Yes | N40: Yes | O40: Yes | P40: Campus Point East | Q40: Campus Point East A 24/7 Enforced | R40: =COUNTIF(Q$5:Q40, Q40 ) -> 1 | S40: =_xlfn.IFS(D$2=X$4, X40, D$2=Y$4, Y40,D$2=Z$4, Z40,D$2=AA$4, AA40) -> 207 | T40: 390 | U40: =IF(R40=1, _xlfn.IFNA(VLOOKUP(Q40, 'Allocation Change Graph'!BF$7:BF$20, 2, FALSE), 0), 0) -> 0 | V40: 0.9 | W40: 351 | Z40: 177 | AA40: 207 | AD40: 197 | AE40: 178 | AF40: 71 | AG40: 29 | AH40: 8 | AI40: 13 | AJ40: 14 | AK40: 13 | AL40: 16 | AM40: 19 | AS40: 8 | AT40: 197
C41: University Wide | D41: La Jolla Campus | E41: East Campus | F41: Health Sciences East | G41: Campus Point East | H41: P722 | I41: L2 | J41: A | K41: 24/7 Enforced | M41: Yes | P41: Campus Point East | Q41: Campus Point East A 24/7 Enforced | R41: =COUNTIF(Q$5:Q41, Q41 ) -> 2 | S41: =_xlfn.IFS(D$2=X$4, X41, D$2=Y$4, Y41,D$2=Z$4, Z41,D$2=AA$4, AA41) -> 183 | U41: =IF(R41=1, _xlfn.IFNA(VLOOKUP(Q41, 'Allocation Change Graph'!BF$7:BF$20, 2, FALSE), 0), 0) -> 0 | Z41: 194 | AA41: 183 | AD41: 0 | AE41: 0 | AF41: 0 | AG41: 0 | AH41: 0 | AI41: 0 | AJ41: 0 | AK41: 0 | AL41: 0 | AM41: 0 | AS41: 0 | AT41: 0
C42: University Wide | D42: La Jolla Campus | E42: East Campus | F42: Health Sciences East | G42: Campus Point East | H42: P722 | I42: L2 | J42: Accessible | M42: Yes | N42: Yes | P42: Campus Point East | Q42: Campus Point East Accessible | R42: =COUNTIF(Q$5:Q42, Q42 ) -> 1 | S42: =_xlfn.IFS(D$2=X$4, X42, D$2=Y$4, Y42,D$2=Z$4, Z42,D$2=AA$4, AA42) -> 11 | T42: 11 | U42: =IF(R42=1, _xlfn.IFNA(VLOOKUP(Q42, 'Allocation Change Graph'!BF$7:BF$20, 2, FALSE), 0), 0) -> 0 | V42: 0.85 | W42: 9.35 | Z42: 11 | AA42: 11 | AD42: 5 | AE42: 4 | AF42: 4 | AG42: 3 | AH42: 3 | AI42: 3 | AJ42: 4 | AK42: 3 | AL42: 4 | AM42: 4 | AS42: 3 | AT42: 5
C43: University Wide | D43: La Jolla Campus | E43: East Campus | F43: Health Sciences East | G43: Campus Point East | H43: P722 | I43: L2 | J43: Accessible (Van) | M43: Yes | N43: Yes | P43: Campus Point East | Q43: Campus Point East Accessible (Van) | R43: =COUNTIF(Q$5:Q43, Q43 ) -> 1 | S43: =_xlfn.IFS(D$2=X$4, X43, D$2=Y$4, Y43,D$2=Z$4, Z43,D$2=AA$4, AA43) -> 1 | T43: 1 | U43: =IF(R43=1, _xlfn.IFNA(VLOOKUP(Q43, 'Allocation Change Graph'!BF$7:BF$20, 2, FALSE), 0), 0) -> 0 | V43: 0.85 | W43: 0.85 | Z43: 1 | AA43: 1 | AD43: 0 | AE43: 0 | AF43: 0 | AG43: 0 | AH43: 0 | AI43: 0 | AJ43: 0 | AK43: 0 | AL43: 0 | AM43: 0 | AS43: 0 | AT43: 0
C44: University Wide | D44: La Jolla Campus | E44: East Campus | F44: Health Sciences East | G44: Campus Point East | H44: P722 | I44: L2 | J44: Electric Vehicle | M44: Yes | N44: Yes | P44: Campus Point East | Q44: Campus Point East Electric Vehicle | R44: =COUNTIF(Q$5:Q44, Q44 ) -> 1 | S44: =_xlfn.IFS(D$2=X$4, X44, D$2=Y$4, Y44,D$2=Z$4, Z44,D$2=AA$4, AA44) -> 3 | T44: 3 | U44: =IF(R44=1, _xlfn.IFNA(VLOOKUP(Q44, 'Allocation Change Graph'!BF$7:BF$20, 2, FALSE), 0), 0) -> 0 | V44: 0.85 | W44: 2.55 | Z44: 3 | AA44: 3 | AD44: 0 | AE44: 0 | AF44: 0 | AG44: 0 | AH44: 0 | AI44: 0 | AJ44: 0 | AK44: 0 | AL44: 0 | AM44: 0 | AS44: 0 | AT44: 0
C45: University Wide | D45: La Jolla Campus | E45: East Campus | F45: Health Sciences East | G45: Campus Point East | H45: P722 | I45: L2 | J45: Motorcycle Section | M45: Yes | N45: Yes | P45: Campus Point East | Q45: Campus Point East Motorcycle Section | R45: =COUNTIF(Q$5:Q45, Q45 ) -> 1 | S45: =_xlfn.IFS(D$2=X$4, X45, D$2=Y$4, Y45,D$2=Z$4, Z45,D$2=AA$4, AA45) -> 0 | T45: 0 | U45: =IF(R45=1, _xlfn.IFNA(VLOOKUP(Q45, 'Allocation Change Graph'!BF$7:BF$20, 2, FALSE), 0), 0) -> 0 | V45: 0.85 | W45: 0 | Z45: 8 | AA45: 0 | AD45: 0 | AE45: 0 | AF45: 0 | AG45: 0 | AH45: 0 | AI45: 0 | AJ45: 0 | AK45: 0 | AL45: 0 | AM45: 0 | AS45: 0 | AT45: 0
C46: University Wide | D46: La Jolla Campus | E46: East Campus | F46: Health Sciences East | G46: Campus Point East | H46: P722 | I46: L2 | J46: Reserved | M46: Yes | N46: Yes | P46: Campus Point East | Q46: Campus Point East Reserved | R46: =COUNTIF(Q$5:Q46, Q46 ) -> 1 | S46: =_xlfn.IFS(D$2=X$4, X46, D$2=Y$4, Y46,D$2=Z$4, Z46,D$2=AA$4, AA46) -> 43 | T46: 43 | U46: =IF(R46=1, _xlfn.IFNA(VLOOKUP(Q46, 'Allocation Change Graph'!BF$7:BF$20, 2, FALSE), 0), 0) -> 0 | V46: 0.85 | W46: 36.55 | Z46: 40 | AA46: 43 | AD46: 27 | AE46: 30 | AF46: 24 | AG46: 25 | AH46: 26 | AI46: 28 | AJ46: 29 | AK46: 27 | AL46: 30 | AM46: 32 | AS46: 24 | AT46: 32
C47: University Wide | D47: La Jolla Campus | E47: East Campus | F47: Health Sciences East | G47: Campus Point East | H47: P723 | I47: L3 | J47: Reserved | K47: Valet | M47: Yes | N47: Yes | P47: Campus Point East | Q47: Campus Point East Reserved Valet | R47: =COUNTIF(Q$5:Q47, Q47 ) -> 1 | S47: =_xlfn.IFS(D$2=X$4, X47, D$2=Y$4, Y47,D$2=Z$4, Z47,D$2=AA$4, AA47) -> 15 | T47: 15 | U47: =IF(R47=1, _xlfn.IFNA(VLOOKUP(Q47, 'Allocation Change Graph'!BF$7:BF$20, 2, FALSE), 0), 0) -> 0 | V47: 0.85 | W47: 12.75 | Z47: 127 | AA47: 15 | AD47: 15 | AE47: 13 | AF47: 13 | AG47: 12 | AH47: 13 | AI47: 13 | AJ47: 12 | AK47: 12 | AL47: 13 | AM47: 14 | AS47: 12 | AT47: 15
C48: University Wide | D48: La Jolla Campus | E48: East Campus | F48: Health Sciences East | G48: Campus Point East | H48: P723 | I48: L3 | J48: Visitor | M48: Yes | N48: Yes | O48: Yes | P48: Campus Point East | Q48: Campus Point East Visitor | R48: =COUNTIF(Q$5:Q48, Q48 ) -> 1 | S48: =_xlfn.IFS(D$2=X$4, X48, D$2=Y$4, Y48,D$2=Z$4, Z48,D$2=AA$4, AA48) -> 269 | T48: 269 | U48: =IF(R48=1, _xlfn.IFNA(VLOOKUP(Q48, 'Allocation Change Graph'!BF$7:BF$20, 2, FALSE), 0), 0) -> 0 | V48: 0.85 | W48: 228.65 | Z48: 138 | AA48: 269 | AD48: 209 | AE48: 149 | AF48: 132 | AG48: 69 | AH48: 63 | AI48: 58 | AJ48: 62 | AK48: 57 | AL48: 60 | AM48: 68 | AS48: 57 | AT48: 209
C49: University Wide | D49: La Jolla Campus | E49: East Campus | F49: Health Sciences East | G49: Campus Point West | H49: P731 | I49: B3 | J49: Motorcycle Section | M49: Yes | N49: Yes | P49: Campus Point West | Q49: Campus Point West Motorcycle Section | R49: =COUNTIF(Q$5:Q49, Q49 ) -> 1 | S49: =_xlfn.IFS(D$2=X$4, X49, D$2=Y$4, Y49,D$2=Z$4, Z49,D$2=AA$4, AA49) -> 0 | T49: 0 | U49: =IF(R49=1, _xlfn.IFNA(VLOOKUP(Q49, 'Allocation Change Graph'!BF$7:BF$20, 2, FALSE), 0), 0) -> 0 | V49: 0.85 | W49: 0 | AD49: 0 | AE49: 0 | AF49: 0 | AG49: 0 | AH49: 0 | AI49: 0 | AJ49: 0 | AK49: 0 | AL49: 0 | AM49: 0 | AS49: 0 | AT49: 0
C50: University Wide | D50: La Jolla Campus | E50: East Campus | F50: Health Sciences East | G50: Campus Point West | H50: P731 | I50: B3 | J50: Visitor | M50: Yes | N50: Yes | O50: Yes | P50: Campus Point West | Q50: Campus Point West Visitor | R50: =COUNTIF(Q$5:Q50, Q50 ) -> 1 | S50: =_xlfn.IFS(D$2=X$4, X50, D$2=Y$4, Y50,D$2=Z$4, Z50,D$2=AA$4, AA50) -> 130 | T50: 611 | U50: =IF(R50=1, _xlfn.IFNA(VLOOKUP(Q50, 'Allocation Change Graph'!BF$7:BF$20, 2, FALSE), 0), 0) -> 0 | V50: 0.85 | W50: 519.35 | Z50: 130 | AA50: 130 | AD50: 297 | AE50: 300 | AF50: 313 | AG50: 294 | AH50: 296 | AI50: 288 | AJ50: 280 | AK50: 279 | AL50: 288 | AM50: 297 | AS50: 279 | AT50: 313
C51: University Wide | D51: La Jolla Campus | E51: East Campus | F51: Health Sciences East | G51: Campus Point West | H51: P732 | I51: B2 | J51: Motorcycle Section | M51: Yes | P51: Campus Point West | Q51: Campus Point West Motorcycle Section | R51: =COUNTIF(Q$5:Q51, Q51 ) -> 2 | S51: =_xlfn.IFS(D$2=X$4, X51, D$2=Y$4, Y51,D$2=Z$4, Z51,D$2=AA$4, AA51) -> 0 | U51: =IF(R51=1, _xlfn.IFNA(VLOOKUP(Q51, 'Allocation Change Graph'!BF$7:BF$20, 2, FALSE), 0), 0) -> 0 | AD51: 0 | AE51: 0 | AF51: 0 | AG51: 0 | AH51: 0 | AI51: 0 | AJ51: 0 | AK51: 0 | AL51: 0 | AM51: 0 | AS51: 0 | AT51: 0
C52: University Wide | D52: La Jolla Campus | E52: East Campus | F52: Health Sciences East | G52: Campus Point West | H52: P732 | I52: B2 | J52: Visitor | M52: Yes | P52: Campus Point West | Q52: Campus Point West Visitor | R52: =COUNTIF(Q$5:Q52, Q52 ) -> 2 | S52: =_xlfn.IFS(D$2=X$4, X52, D$2=Y$4, Y52,D$2=Z$4, Z52,D$2=AA$4, AA52) -> 181 | U52: =IF(R52=1, _xlfn.IFNA(VLOOKUP(Q52, 'Allocation Change Graph'!BF$7:BF$20, 2, FALSE), 0), 0) -> 0 | Z52: 181 | AA52: 181 | AD52: 0 | AE52: 0 | AF52: 0 | AG52: 0 | AH52: 0 | AI52: 0 | AJ52: 0 | AK52: 0 | AL52: 0 | AM52: 0 | AS52: 0 | AT52: 0
C53: University Wide | D53: La Jolla Campus | E53: East Campus | F53: Health Sciences East | G53: Campus Point West | H53: P733 | I53: B1 | J53: Accessible | M53: Yes | N53: Yes | P53: Campus Point West | Q53: Campus Point West Accessible | R53: =COUNTIF(Q$5:Q53, Q53 ) -> 1 | S53: =_xlfn.IFS(D$2=X$4, X53, D$2=Y$4, Y53,D$2=Z$4, Z53,D$2=AA$4, AA53) -> 31 | T53: 87 | U53: =IF(R53=1, _xlfn.IFNA(VLOOKUP(Q53, 'Allocation Change Graph'!BF$7:BF$20, 2, FALSE), 0), 0) -> 0 | V53: 0.85 | W53: 73.95 | Z53: 31 | AA53: 31 | AD53: 6 | AE53: 4 | AF53: 2 | AG53: 1 | AH53: 4 | AI53: 5 | AJ53: 4 | AK53: 4 | AL53: 5 | AM53: 5 | AS53: 1 | AT53: 6
C54: University Wide | D54: La Jolla Campus | E54: East Campus | F54: Health Sciences East | G54: Campus Point West | H54: P733 | I54: B1 | J54: Accessible (Van) | M54: Yes | N54: Yes | P54: Campus Point West | Q54: Campus Point West Accessible (Van) | R54: =COUNTIF(Q$5:Q54, Q54 ) -> 1 | S54: =_xlfn.IFS(D$2=X$4, X54, D$2=Y$4, Y54,D$2=Z$4, Z54,D$2=AA$4, AA54) -> 6 | T54: 17 | U54: =IF(R54=1, _xlfn.IFNA(VLOOKUP(Q54, 'Allocation Change Graph'!BF$7:BF$20, 2, FALSE), 0), 0) -> 0 | V54: 0.85 | W54: 14.45 | Z54: 6 | AA54: 6 | AD54: 4 | AE54: 0 | AF54: 0 | AG54: 0 | AH54: 0 | AI54: 0 | AJ54: 0 | AK54: 0 | AL54: 0 | AM54: 0 | AS54: 0 | AT54: 4
C55: University Wide | D55: La Jolla Campus | E55: East Campus | F55: Health Sciences East | G55: Campus Point West | H55: P733 | I55: B1 | J55: Electric Vehicle | M55: Yes | N55: Yes | P55: Campus Point West | Q55: Campus Point West Electric Vehicle | R55: =COUNTIF(Q$5:Q55, Q55 ) -> 1 | S55: =_xlfn.IFS(D$2=X$4, X55, D$2=Y$4, Y55,D$2=Z$4, Z55,D$2=AA$4, AA55) -> 6 | T55: 6 | U55: =IF(R55=1, _xlfn.IFNA(VLOOKUP(Q55, 'Allocation Change Graph'!BF$7:BF$20, 2, FALSE), 0), 0) -> 0 | V55: 0.85 | W55: 5.1 | Z55: 6 | AA55: 6 | AD55: 2 | AE55: 1 | AF55: 0 | AG55: 0 | AH55: 1 | AI55: 1 | AJ55: 0 | AK55: 0 | AL55: 1 | AM55: 1 | AS55: 0 | AT55: 2
C56: University Wide | D56: La Jolla Campus | E56: East Campus | F56: Health Sciences East | G56: Campus Point West | H56: P733 | I56: B1 | J56: Visitor | M56: Yes | P56: Campus Point West | Q56: Campus Point West Visitor | R56: =COUNTIF(Q$5:Q56, Q56 ) -> 3 | S56: =_xlfn.IFS(D$2=X$4, X56, D$2=Y$4, Y56,D$2=Z$4, Z56,D$2=AA$4, AA56) -> 109 | U56: =IF(R56=1, _xlfn.IFNA(VLOOKUP(Q56, 'Allocation Change Graph'!BF$7:BF$20, 2, FALSE), 0), 0) -> 0 | Z56: 109 | AA56: 109 | AD56: 0 | AE56: 0 | AF56: 0 | AG56: 0 | AH56: 0 | AI56: 0 | AJ56: 0 | AK56: 0 | AL56: 0 | AM56: 0 | AS56: 0 | AT56: 0
C57: University Wide | D57: La Jolla Campus | E57: East Campus | F57: Health Sciences East | G57: Campus Point West | H57: P734 | I57: Ground Floor | J57: A | K57: 24/7 Enforced | M57: Yes | N57: Yes | O57: Yes | P57: Campus Point West | Q57: Campus Point West A 24/7 Enforced | R57: =COUNTIF(Q$5:Q57, Q57 ) -> 1 | S57: =_xlfn.IFS(D$2=X$4, X57, D$2=Y$4, Y57,D$2=Z$4, Z57,D$2=AA$4, AA57) -> 7 | T57: 7 | U57: =IF(R57=1, _xlfn.IFNA(VLOOKUP(Q57, 'Allocation Change Graph'!BF$7:BF$20, 2, FALSE), 0), 0) -> 0 | V57: 0.9 | W57: 6.3 | Z57: 7 | AA57: 7 | AD57: 0 | AE57: 2 | AF57: 0 | AG57: 1 | AH57: 1 | AI57: 1 | AJ57: 0 | AK57: 1 | AL57: 1 | AM57: 1 | AS57: 0 | AT57: 2
C58: University Wide | D58: La Jolla Campus | E58: East Campus | F58: Health Sciences East | G58: Campus Point West | H58: P734 | I58: Ground Floor | J58: Accessible | M58: Yes | P58: Campus Point West | Q58: Campus Point West Accessible | R58: =COUNTIF(Q$5:Q58, Q58 ) -> 2 | S58: =_xlfn.IFS(D$2=X$4, X58, D$2=Y$4, Y58,D$2=Z$4, Z58,D$2=AA$4, AA58) -> 24 | U58: =IF(R58=1, _xlfn.IFNA(VLOOKUP(Q58, 'Allocation Change Graph'!BF$7:BF$20, 2, FALSE), 0), 0) -> 0 | Z58: 24 | AA58: 24 | AD58: 0 | AE58: 0 | AF58: 0 | AG58: 0 | AH58: 0 | AI58: 0 | AJ58: 0 | AK58: 0 | AL58: 0 | AM58: 0 | AS58: 0 | AT58: 0
C59: University Wide | D59: La Jolla Campus | E59: East Campus | F59: Health Sciences East | G59: Campus Point West | H59: P734 | I59: Ground Floor | J59: Accessible (Van) | M59: Yes | P59: Campus Point West | Q59: Campus Point West Accessible (Van) | R59: =COUNTIF(Q$5:Q59, Q59 ) -> 2 | S59: =_xlfn.IFS(D$2=X$4, X59, D$2=Y$4, Y59,D$2=Z$4, Z59,D$2=AA$4, AA59) -> 7 | U59: =IF(R59=1, _xlfn.IFNA(VLOOKUP(Q59, 'Allocation Change Graph'!BF$7:BF$20, 2, FALSE), 0), 0) -> 0 | Z59: 7 | AA59: 7 | AD59: 0 | AE59: 0 | AF59: 0 | AG59: 0 | AH59: 0 | AI59: 0 | AJ59: 0 | AK59: 0 | AL59: 0 | AM59: 0 | AS59: 0 | AT59: 0
C60: University Wide | D60: La Jolla Campus | E60: East Campus | F60: Health Sciences East | G60: Campus Point West | H60: P734 | I60: Ground Floor | J60: Motorcycle Section | M60: Yes | P60: Campus Point West | Q60: Campus Point West Motorcycle Section | R60: =COUNTIF(Q$5:Q60, Q60 ) -> 3 | S60: =_xlfn.IFS(D$2=X$4, X60, D$2=Y$4, Y60,D$2=Z$4, Z60,D$2=AA$4, AA60) -> 0 | U60: =IF(R60=1, _xlfn.IFNA(VLOOKUP(Q60, 'Allocation Change Graph'!BF$7:BF$20, 2, FALSE), 0), 0) -> 0 | AD60: 0 | AE60: 0 | AF60: 0 | AG60: 0 | AH60: 0 | AI60: 0 | AJ60: 0 | AK60: 0 | AL60: 0 | AM60: 0 | AS60: 0 | AT60: 0
C61: University Wide | D61: La Jolla Campus | E61: East Campus | F61: Health Sciences East | G61: Campus Point West | H61: P734 | I61: Ground Floor | J61: Reserved | K61: Emergency Room | M61: Yes | N61: Yes | P61: Campus Point West | Q61: Campus Point West Reserved Emergency Room | R61: =COUNTIF(Q$5:Q61, Q61 ) -> 1 | S61: =_xlfn.IFS(D$2=X$4, X61, D$2=Y$4, Y61,D$2=Z$4, Z61,D$2=AA$4, AA61) -> 10 | T61: 10 | U61: =IF(R61=1, _xlfn.IFNA(VLOOKUP(Q61, 'Allocation Change Graph'!BF$7:BF$20, 2, FALSE), 0), 0) -> 0 | V61: 0.85 | W61: 8.5 | Z61: 10 | AA61: 10 | AD61: 1 | AE61: 0 | AF61: 1 | AG61: 0 | AH61: 1 | AI61: 1 | AJ61: 0 | AK61: 1 | AL61: 1 | AM61: 1 | AS61: 0 | AT61: 1
C62: University Wide | D62: La Jolla Campus | E62: East Campus | F62: Health Sciences East | G62: Campus Point West | H62: P734 | I62: Ground Floor | J62: Reserved | M62: Yes | N62: Yes | P62: Campus Point West | Q62: Campus Point West Reserved | R62: =COUNTIF(Q$5:Q62, Q62 ) -> 1 | S62: =_xlfn.IFS(D$2=X$4, X62, D$2=Y$4, Y62,D$2=Z$4, Z62,D$2=AA$4, AA62) -> 6 | T62: 18 | U62: =IF(R62=1, _xlfn.IFNA(VLOOKUP(Q62, 'Allocation Change Graph'!BF$7:BF$20, 2, FALSE), 0), 0) -> 0 | V62: 0.85 | W62: 15.3 | Z62: 6 | AA62: 6 | AD62: 16 | AE62: 15 | AF62: 15 | AG62: 17 | AH62: 17 | AI62: 16 | AJ62: 15 | AK62: 15 | AL62: 16 | AM62: 17 | AS62: 15 | AT62: 17
C63: University Wide | D63: La Jolla Campus | E63: East Campus | F63: Health Sciences East | G63: Campus Point West | H63: P734 | I63: Ground Floor | J63: Reserved | M63: Yes | P63: Campus Point West | Q63: Campus Point West Reserved | R63: =COUNTIF(Q$5:Q63, Q63 ) -> 2 | S63: =_xlfn.IFS(D$2=X$4, X63, D$2=Y$4, Y63,D$2=Z$4, Z63,D$2=AA$4, AA63) -> 2 | U63: =IF(R63=1, _xlfn.IFNA(VLOOKUP(Q63, 'Allocation Change Graph'!BF$7:BF$20, 2, FALSE), 0), 0) -> 0 | Z63: 2 | AA63: 2 | AD63: 0 | AE63: 0 | AF63: 0 | AG63: 0 | AH63: 0 | AI63: 0 | AJ63: 0 | AK63: 0 | AL63: 0 | AM63: 0 | AS63: 0 | AT63: 0
C64: University Wide | D64: La Jolla Campus | E64: East Campus | F64: Health Sciences East | G64: Campus Point West | H64: P734 | I64: Ground Floor | J64: Reserved | M64: Yes | P64: Campus Point West | Q64: Campus Point West Reserved | R64: =COUNTIF(Q$5:Q64, Q64 ) -> 3 | S64: =_xlfn.IFS(D$2=X$4, X64, D$2=Y$4, Y64,D$2=Z$4, Z64,D$2=AA$4, AA64) -> 10 | U64: =IF(R64=1, _xlfn.IFNA(VLOOKUP(Q64, 'Allocation Change Graph'!BF$7:BF$20, 2, FALSE), 0), 0) -> 0 | Z64: 10 | AA64: 10 | AD64: 0 | AE64: 0 | AF64: 0 | AG64: 0 | AH64: 0 | AI64: 0 | AJ64: 0 | AK64: 0 | AL64: 0 | AM64: 0 | AS64: 0 | AT64: 0
C65: University Wide | D65: La Jolla Campus | E65: East Campus | F65: Health Sciences East | G65: Campus Point West | H65: P734 | I65: Ground Floor | J65: Visitor | K65: Patient/Visitor Reserved | L65: 30 minutes | M65: Yes | N65: Yes | O65: Yes | P65: Campus Point West | Q65: Campus Point West Visitor Patient/Visitor Reserved 30 minutes | R65: =COUNTIF(Q$5:Q65, Q65 ) -> 1 | S65: =_xlfn.IFS(D$2=X$4, X65, D$2=Y$4, Y65,D$2=Z$4, Z65,D$2=AA$4, AA65) -> 1 | T65: 1 | U65: =IF(R65=1, _xlfn.IFNA(VLOOKUP(Q65, 'Allocation Change Graph'!BF$7:BF$20, 2, FALSE), 0), 0) -> 0 | V65: 0.85 | W65: 0.85 | Z65: 1 | AA65: 1 | AD65: 0 | AE65: 0 | AF65: 1 | AG65: 0 | AH65: 1 | AI65: 1 | AJ65: 1 | AK65: 0 | AL65: 1 | AM65: 1 | AS65: 0 | AT65: 1
C66: University Wide | D66: La Jolla Campus | E66: East Campus | F66: Health Sciences East | G66: Campus Point West | H66: P734 | I66: Ground Floor | J66: Visitor | M66: Yes | P66: Campus Point West | Q66: Campus Point West Visitor | R66: =COUNTIF(Q$5:Q66, Q66 ) -> 4 | S66: =_xlfn.IFS(D$2=X$4, X66, D$2=Y$4, Y66,D$2=Z$4, Z66,D$2=AA$4, AA66) -> 47 | U66: =IF(R66=1, _xlfn.IFNA(VLOOKUP(Q66, 'Allocation Change Graph'!BF$7:BF$20, 2, FALSE), 0), 0) -> 0 | Z66: 47 | AA66: 47 | AD66: 0 | AE66: 0 | AF66: 0 | AG66: 0 | AH66: 0 | AI66: 0 | AJ66: 0 | AK66: 0 | AL66: 0 | AM66: 0 | AS66: 0 | AT66: 0
C67: University Wide | D67: La Jolla Campus | E67: East Campus | F67: Health Sciences East | G67: Campus Point West | H67: P734 | I67: Ground Floor | J67: Visitor | M67: Yes | P67: Campus Point West | Q67: Campus Point West Visitor | R67: =COUNTIF(Q$5:Q67, Q67 ) -> 5 | S67: =_xlfn.IFS(D$2=X$4, X67, D$2=Y$4, Y67,D$2=Z$4, Z67,D$2=AA$4, AA67) -> 18 | U67: =IF(R67=1, _xlfn.IFNA(VLOOKUP(Q67, 'Allocation Change Graph'!BF$7:BF$20, 2, FALSE), 0), 0) -> 0 | Z67: 18 | AA67: 18 | AD67: 0 | AE67: 0 | AF67: 0 | AG67: 0 | AH67: 0 | AI67: 0 | AJ67: 0 | AK67: 0 | AL67: 0 | AM67: 0 | AS67: 0 | AT67: 0
C68: University Wide | D68: La Jolla Campus | E68: East Campus | F68: Health Sciences East | G68: Campus Point West | H68: P735 | I68: Roof | J68: Accessible | M68: Yes | P68: Campus Point West | Q68: Campus Point West Accessible | R68: =COUNTIF(Q$5:Q68, Q68 ) -> 3 | S68: =_xlfn.IFS(D$2=X$4, X68, D$2=Y$4, Y68,D$2=Z$4, Z68,D$2=AA$4, AA68) -> 32 | U68: =IF(R68=1, _xlfn.IFNA(VLOOKUP(Q68, 'Allocation Change Graph'!BF$7:BF$20, 2, FALSE), 0), 0) -> 0 | Z68: 32 | AA68: 32 | AD68: 0 | AE68: 0 | AF68: 0 | AG68: 0 | AH68: 0 | AI68: 0 | AJ68: 0 | AK68: 0 | AL68: 0 | AM68: 0 | AS68: 0 | AT68: 0
C69: University Wide | D69: La Jolla Campus | E69: East Campus | F69: Health Sciences East | G69: Campus Point West | H69: P735 | I69: Roof | J69: Accessible (Van) | M69: Yes | P69: =IF(G69="Surface Lot", H69, G69) -> Campus Point West | Q69: Campus Point West Accessible (Van) | R69: =COUNTIF(Q$5:Q69, Q69 ) -> 3 | S69: =_xlfn.IFS(D$2=X$4, X69, D$2=Y$4, Y69,D$2=Z$4, Z69,D$2=AA$4, AA69) -> 4 | T69: =IF(R69=1,SUMIF(Q:Q,Q69,S:S)+U69, "") ->  | U69: =IF(R69=1, _xlfn.IFNA(VLOOKUP(Q69, 'Allocation Change Graph'!BF$7:BF$20, 2, FALSE), 0), 0) -> 0 | W69: =IF(R69=1, V69*T69, "") ->  | Z69: 4 | AA69: 4 | AD69: 0 | AE69: 0 | AF69: 0 | AG69: 0 | AH69: 0 | AI69: 0 | AJ69: 0 | AK69: 0 | AL69: 0 | AM69: 0 | AS69: =MIN($AB69:$AR69)+U69 -> 0 | AT69: =MAX($AB69:$AR69)+U69 -> 0
C70: University Wide | D70: La Jolla Campus | E70: East Campus | F70: Health Sciences East | G70: Campus Point West | H70: P735 | I70: Roof | J70: Motorcycle Section | M70: Yes | P70: Campus Point West | Q70: =P70&" "&J70&" "&K70&" "&L70 -> Campus Point West Motorcycle Section | R70: =COUNTIF(Q$5:Q70, Q70 ) -> 4 | S70: =_xlfn.IFS(D$2=X$4, X70, D$2=Y$4, Y70,D$2=Z$4, Z70,D$2=AA$4, AA70) -> 0 | U70: =IF(R70=1, _xlfn.IFNA(VLOOKUP(Q70, 'Allocation Change Graph'!BF$7:BF$20, 2, FALSE), 0), 0) -> 0 | AD70: 0 | AE70: 0 | AF70: 0 | AG70: 0 | AH70: 0 | AI70: 0 | AJ70: 0 | AK70: 0 | AL70: 0 | AM70: 0 | AS70: 0 | AT70: 0
C71: University Wide | D71: La Jolla Campus | E71: East Campus | F71: Health Sciences East | G71: Campus Point West | H71: P735 | I71: Roof | J71: Visitor | M71: Yes | P71: Campus Point West | Q71: Campus Point West Visitor | R71: =COUNTIF(Q$5:Q71, Q71 ) -> 6 | S71: =_xlfn.IFS(D$2=X$4, X71, D$2=Y$4, Y71,D$2=Z$4, Z71,D$2=AA$4, AA71) -> 126 | U71: =IF(R71=1, _xlfn.IFNA(VLOOKUP(Q71, 'Allocation Change Graph'!BF$7:BF$20, 2, FALSE), 0), 0) -> 0 | Z71: 126 | AA71: 126 | AD71: 0 | AE71: 0 | AF71: 0 | AG71: 0 | AH71: 0 | AI71: 0 | AJ71: 0 | AK71: 0 | AL71: 0 | AM71: 0 | AS71: 0 | AT71: 0
C72: University Wide | D72: La Jolla Campus | E72: East Campus | F72: Health Sciences East | G72: Curb | H72: Curb | I72: - | M72: Yes | N72: Yes | P72: Curb | Q72: Curb | R72: =COUNTIF(Q$5:Q72, Q72 ) -> 1 | S72: =_xlfn.IFS(D$2=X$4, X72, D$2=Y$4, Y72,D$2=Z$4, Z72,D$2=AA$4, AA72) -> 0 | T72: 0 | U72: =IF(R72=1, _xlfn.IFNA(VLOOKUP(Q72, 'Allocation Change Graph'!BF$7:BF$20, 2, FALSE), 0), 0) -> 0 | V72: 0.9 | W72: 0 | AD72: 0 | AE72: 0 | AF72: 0 | AG72: 0 | AH72: 0 | AI72: 0 | AJ72: 0 | AK72: 0 | AL72: 0 | AM72: 0 | AS72: 0 | AT72: 0
C73: University Wide | D73: La Jolla Campus | E73: East Campus | F73: Science Research Park | G73: Mesa Canyon | H73: PMC001 | I73: Ground | J73: Accessible | M73: Yes | N73: Yes | P73: Mesa Canyon | Q73: Mesa Canyon Accessible | R73: =COUNTIF(Q$5:Q73, Q73 ) -> 1 | S73: =_xlfn.IFS(D$2=X$4, X73, D$2=Y$4, Y73,D$2=Z$4, Z73,D$2=AA$4, AA73) -> 5 | T73: 12 | U73: =IF(R73=1, _xlfn.IFNA(VLOOKUP(Q73, 'Allocation Change Graph'!BF$7:BF$20, 2, FALSE), 0), 0) -> 0 | V73: 0.85 | W73: 10.2 | Z73: 5 | AA73: 5 | AD73: 7 | AE73: 6 | AF73: 4 | AG73: 4 | AH73: 3 | AI73: 4 | AJ73: 6 | AK73: 7 | AL73: 8 | AM73: 8 | AS73: 3 | AT73: 8
C74: University Wide | D74: La Jolla Campus | E74: East Campus | F74: Science Research Park | G74: Mesa Canyon | H74: PMC001 | I74: Ground | J74: Accessible (Van) | M74: Yes | N74: Yes | P74: Mesa Canyon | Q74: Mesa Canyon Accessible (Van) | R74: =COUNTIF(Q$5:Q74, Q74 ) -> 1 | S74: =_xlfn.IFS(D$2=X$4, X74, D$2=Y$4, Y74,D$2=Z$4, Z74,D$2=AA$4, AA74) -> 2 | T74: 5 | U74: =IF(R74=1, _xlfn.IFNA(VLOOKUP(Q74, 'Allocation Change Graph'!BF$7:BF$20, 2, FALSE), 0), 0) -> 0 | V74: 0.85 | W74: 4.25 | Z74: 2 | AA74: 2 | AD74: 3 | AE74: 2 | AF74: 0 | AG74: 1 | AH74: 0 | AI74: 2 | AJ74: 4 | AK74: 3 | AL74: 4 | AM74: 4 | AS74: 0 | AT74: 4
C75: University Wide | D75: La Jolla Campus | E75: East Campus | F75: Science Research Park | G75: Mesa Canyon | H75: PMC001 | I75: Ground | J75: B | M75: Yes | N75: Yes | O75: Yes | P75: Mesa Canyon | Q75: Mesa Canyon B | R75: =COUNTIF(Q$5:Q75, Q75 ) -> 1 | S75: =_xlfn.IFS(D$2=X$4, X75, D$2=Y$4, Y75,D$2=Z$4, Z75,D$2=AA$4, AA75) -> 148 | T75: 497 | U75: =IF(R75=1, _xlfn.IFNA(VLOOKUP(Q75, 'Allocation Change Graph'!BF$7:BF$20, 2, FALSE), 0), 0) -> 0 | V75: 0.9 | W75: 447.3 | Z75: 148 | AA75: 148 | AD75: 128 | AE75: 116 | AF75: 103 | AG75: 97 | AH75: 22 | AI75: 14 | AJ75: 20 | AK75: 59 | AL75: 104 | AM75: 171 | AS75: 14 | AT75: 171
C76: University Wide | D76: La Jolla Campus | E76: East Campus | F76: Science Research Park | G76: Mesa Canyon | H76: PMC001 | I76: Ground | J76: Electric Vehicle | M76: Yes | N76: Yes | P76: Mesa Canyon | Q76: Mesa Canyon Electric Vehicle | R76: =COUNTIF(Q$5:Q76, Q76 ) -> 1 | S76: =_xlfn.IFS(D$2=X$4, X76, D$2=Y$4, Y76,D$2=Z$4, Z76,D$2=AA$4, AA76) -> 18 | T76: 33 | U76: =IF(R76=1, _xlfn.IFNA(VLOOKUP(Q76, 'Allocation Change Graph'!BF$7:BF$20, 2, FALSE), 0), 0) -> 0 | V76: 0.85 | W76: 28.05 | Z76: 18 | AA76: 18 | AD76: 26 | AE76: 25 | AF76: 18 | AG76: 16 | AH76: 8 | AI76: 16 | AJ76: 18 | AK76: 22 | AL76: 20 | AM76: 25 | AS76: 8 | AT76: 26
C77: University Wide | D77: La Jolla Campus | E77: East Campus | F77: Science Research Park | G77: Mesa Canyon | H77: PMC001 | I77: Ground | J77: G | M77: Yes | N77: Yes | P77: Mesa Canyon | Q77: Mesa Canyon G | R77: =COUNTIF(Q$5:Q77, Q77 ) -> 1 | S77: =_xlfn.IFS(D$2=X$4, X77, D$2=Y$4, Y77,D$2=Z$4, Z77,D$2=AA$4, AA77) -> 0 | T77: 578 | U77: =IF(R77=1, _xlfn.IFNA(VLOOKUP(Q77, 'Allocation Change Graph'!BF$7:BF$20, 2, FALSE), 0), 0) -> 0 | V77: 0.9 | W77: 520.2 | Z77: 0 | AA77: 0 | AD77: 126 | AE77: 111 | AF77: 106 | AG77: 99 | AH77: 85 | AI77: 146 | AJ77: 150 | AK77: 160 | AL77: 215 | AM77: 241 | AS77: 85 | AT77: 241
C78: University Wide | D78: La Jolla Campus | E78: East Campus | F78: Science Research Park | G78: Mesa Canyon | H78: PMC001 | I78: Ground | J78: Motorcycle Section | M78: Yes | N78: Yes | P78: Mesa Canyon | Q78: Mesa Canyon Motorcycle Section | R78: =COUNTIF(Q$5:Q78, Q78 ) -> 1 | S78: =_xlfn.IFS(D$2=X$4, X78, D$2=Y$4, Y78,D$2=Z$4, Z78,D$2=AA$4, AA78) -> 6 | T78: 16 | U78: =IF(R78=1, _xlfn.IFNA(VLOOKUP(Q78, 'Allocation Change Graph'!BF$7:BF$20, 2, FALSE), 0), 0) -> 0 | V78: 0.85 | W78: 13.6 | Z78: 6 | AA78: 6 | AD78: 12 | AE78: 12 | AF78: 12 | AG78: 12 | AH78: 12 | AI78: 12 | AJ78: 12 | AK78: 10 | AL78: 12 | AM78: 12 | AS78: 10 | AT78: 12
C79: University Wide | D79: La Jolla Campus | E79: East Campus | F79: Science Research Park | G79: Mesa Canyon | H79: PMC002 | I79: L2 | J79: Accessible | M79: Yes | P79: Mesa Canyon | Q79: Mesa Canyon Accessible | R79: =COUNTIF(Q$5:Q79, Q79 ) -> 2 | S79: =_xlfn.IFS(D$2=X$4, X79, D$2=Y$4, Y79,D$2=Z$4, Z79,D$2=AA$4, AA79) -> 4 | U79: =IF(R79=1, _xlfn.IFNA(VLOOKUP(Q79, 'Allocation Change Graph'!BF$7:BF$20, 2, FALSE), 0), 0) -> 0 | Z79: 4 | AA79: 4 | AD79: 0 | AE79: 0 | AF79: 0 | AG79: 0 | AH79: 0 | AI79: 0 | AJ79: 0 | AK79: 0 | AL79: 0 | AM79: 0 | AS79: 0 | AT79: 0
C80: University Wide | D80: La Jolla Campus | E80: East Campus | F80: Science Research Park | G80: Mesa Canyon | H80: PMC002 | I80: L2 | J80: Accessible (Van) | M80: Yes | P80: Mesa Canyon | Q80: Mesa Canyon Accessible (Van) | R80: =COUNTIF(Q$5:Q80, Q80 ) -> 2 | S80: =_xlfn.IFS(D$2=X$4, X80, D$2=Y$4, Y80,D$2=Z$4, Z80,D$2=AA$4, AA80) -> 1 | U80: =IF(R80=1, _xlfn.IFNA(VLOOKUP(Q80, 'Allocation Change Graph'!BF$7:BF$20, 2, FALSE), 0), 0) -> 0 | Z80: 1 | AA80: 1 | AD80: 0 | AE80: 0 | AF80: 0 | AG80: 0 | AH80: 0 | AI80: 0 | AJ80: 0 | AK80: 0 | AL80: 0 | AM80: 0 | AS80: 0 | AT80: 0
C81: University Wide | D81: La Jolla Campus | E81: East Campus | F81: Science Research Park | G81: Mesa Canyon | H81: PMC002 | I81: L2 | J81: B | M81: Yes | P81: Mesa Canyon | Q81: Mesa Canyon B | R81: =COUNTIF(Q$5:Q81, Q81 ) -> 2 | S81: =_xlfn.IFS(D$2=X$4, X81, D$2=Y$4, Y81,D$2=Z$4, Z81,D$2=AA$4, AA81) -> 218 | U81: =IF(R81=1, _xlfn.IFNA(VLOOKUP(Q81, 'Allocation Change Graph'!BF$7:BF$20, 2, FALSE), 0), 0) -> 0 | Z81: 218 | AA81: 218 | AD81: 0 | AE81: 0 | AF81: 0 | AG81: 0 | AH81: 0 | AI81: 0 | AJ81: 0 | AK81: 0 | AL81: 0 | AM81: 0 | AS81: 0 | AT81: 0
C82: University Wide | D82: La Jolla Campus | E82: East Campus | F82: Science Research Park | G82: Mesa Canyon | H82: PMC002 | I82: L2 | J82: Electric Vehicle | M82: Yes | P82: Mesa Canyon | Q82: Mesa Canyon Electric Vehicle | R82: =COUNTIF(Q$5:Q82, Q82 ) -> 2 | S82: =_xlfn.IFS(D$2=X$4, X82, D$2=Y$4, Y82,D$2=Z$4, Z82,D$2=AA$4, AA82) -> 6 | U82: =IF(R82=1, _xlfn.IFNA(VLOOKUP(Q82, 'Allocation Change Graph'!BF$7:BF$20, 2, FALSE), 0), 0) -> 0 | Z82: 6 | AA82: 6 | AD82: 0 | AE82: 0 | AF82: 0 | AG82: 0 | AH82: 0 | AI82: 0 | AJ82: 0 | AK82: 0 | AL82: 0 | AM82: 0 | AS82: 0 | AT82: 0
C83: University Wide | D83: La Jolla Campus | E83: East Campus | F83: Science Research Park | G83: Mesa Canyon | H83: PMC002 | I83: L2 | J83: G | M83: Yes | P83: Mesa Canyon | Q83: Mesa Canyon G | R83: =COUNTIF(Q$5:Q83, Q83 ) -> 2 | S83: =_xlfn.IFS(D$2=X$4, X83, D$2=Y$4, Y83,D$2=Z$4, Z83,D$2=AA$4, AA83) -> 0 | U83: =IF(R83=1, _xlfn.IFNA(VLOOKUP(Q83, 'Allocation Change Graph'!BF$7:BF$20, 2, FALSE), 0), 0) -> 0 | Z83: 0 | AA83: 0 | AD83: 0 | AE83: 0 | AF83: 0 | AG83: 0 | AH83: 0 | AI83: 0 | AJ83: 0 | AK83: 0 | AL83: 0 | AM83: 0 | AS83: 0 | AT83: 0
C84: University Wide | D84: La Jolla Campus | E84: East Campus | F84: Science Research Park | G84: Mesa Canyon | H84: PMC002 | I84: L2 | J84: Motorcycle Section | M84: Yes | P84: Mesa Canyon | Q84: Mesa Canyon Motorcycle Section | R84: =COUNTIF(Q$5:Q84, Q84 ) -> 2 | S84: =_xlfn.IFS(D$2=X$4, X84, D$2=Y$4, Y84,D$2=Z$4, Z84,D$2=AA$4, AA84) -> 0 | U84: =IF(R84=1, _xlfn.IFNA(VLOOKUP(Q84, 'Allocation Change Graph'!BF$7:BF$20, 2, FALSE), 0), 0) -> 0 | Z84: 0 | AA84: 0 | AD84: 0 | AE84: 0 | AF84: 0 | AG84: 0 | AH84: 0 | AI84: 0 | AJ84: 0 | AK84: 0 | AL84: 0 | AM84: 0 | AS84: 0 | AT84: 0
C85: University Wide | D85: La Jolla Campus | E85: East Campus | F85: Science Research Park | G85: Mesa Canyon | H85: PMC003 | I85: L3 | J85: Accessible | M85: Yes | P85: Mesa Canyon | Q85: Mesa Canyon Accessible | R85: =COUNTIF(Q$5:Q85, Q85 ) -> 3 | S85: =_xlfn.IFS(D$2=X$4, X85, D$2=Y$4, Y85,D$2=Z$4, Z85,D$2=AA$4, AA85) -> 3 | U85: =IF(R85=1, _xlfn.IFNA(VLOOKUP(Q85, 'Allocation Change Graph'!BF$7:BF$20, 2, FALSE), 0), 0) -> 0 | Z85: 3 | AA85: 3 | AD85: 0 | AE85: 0 | AF85: 0 | AG85: 0 | AH85: 0 | AI85: 0 | AJ85: 0 | AK85: 0 | AL85: 0 | AM85: 0 | AS85: 0 | AT85: 0
C86: University Wide | D86: La Jolla Campus | E86: East Campus | F86: Science Research Park | G86: Mesa Canyon | H86: PMC003 | I86: L3 | J86: Accessible (Van) | M86: Yes | P86: Mesa Canyon | Q86: Mesa Canyon Accessible (Van) | R86: =COUNTIF(Q$5:Q86, Q86 ) -> 3 | S86: =_xlfn.IFS(D$2=X$4, X86, D$2=Y$4, Y86,D$2=Z$4, Z86,D$2=AA$4, AA86) -> 2 | U86: =IF(R86=1, _xlfn.IFNA(VLOOKUP(Q86, 'Allocation Change Graph'!BF$7:BF$20, 2, FALSE), 0), 0) -> 0 | Z86: 2 | AA86: 2 | AD86: 0 | AE86: 0 | AF86: 0 | AG86: 0 | AH86: 0 | AI86: 0 | AJ86: 0 | AK86: 0 | AL86: 0 | AM86: 0 | AS86: 0 | AT86: 0
C87: University Wide | D87: La Jolla Campus | E87: East Campus | F87: Science Research Park | G87: Mesa Canyon | H87: PMC003 | I87: L3 | J87: B | M87: Yes | P87: Mesa Canyon | Q87: Mesa Canyon B | R87: =COUNTIF(Q$5:Q87, Q87 ) -> 3 | S87: =_xlfn.IFS(D$2=X$4, X87, D$2=Y$4, Y87,D$2=Z$4, Z87,D$2=AA$4, AA87) -> 131 | U87: =IF(R87=1, _xlfn.IFNA(VLOOKUP(Q87, 'Allocation Change Graph'!BF$7:BF$20, 2, FALSE), 0), 0) -> 0 | Z87: =198-67 -> 131 | AA87: 131 | AD87: 0 | AE87: 0 | AF87: 0 | AG87: 0 | AH87: 0 | AI87: 0 | AJ87: 0 | AK87: 0 | AL87: 0 | AM87: 0 | AS87: 0 | AT87: 0
C88: University Wide | D88: La Jolla Campus | E88: East Campus | F88: Science Research Park | G88: Mesa Canyon | H88: PMC003 | I88: L3 | J88: Electric Vehicle | M88: Yes | P88: Mesa Canyon | Q88: Mesa Canyon Electric Vehicle | R88: =COUNTIF(Q$5:Q88, Q88 ) -> 3 | S88: =_xlfn.IFS(D$2=X$4, X88, D$2=Y$4, Y88,D$2=Z$4, Z88,D$2=AA$4, AA88) -> 7 | U88: =IF(R88=1, _xlfn.IFNA(VLOOKUP(Q88, 'Allocation Change Graph'!BF$7:BF$20, 2, FALSE), 0), 0) -> 0 | Z88: 7 | AA88: 7 | AD88: 0 | AE88: 0 | AF88: 0 | AG88: 0 | AH88: 0 | AI88: 0 | AJ88: 0 | AK88: 0 | AL88: 0 | AM88: 0 | AS88: 0 | AT88: 0
C89: University Wide | D89: La Jolla Campus | E89: East Campus | F89: Science Research Park | G89: Mesa Canyon | H89: PMC003 | I89: L3 | J89: G | M89: Yes | P89: Mesa Canyon | Q89: Mesa Canyon G | R89: =COUNTIF(Q$5:Q89, Q89 ) -> 3 | S89: =_xlfn.IFS(D$2=X$4, X89, D$2=Y$4, Y89,D$2=Z$4, Z89,D$2=AA$4, AA89) -> 0 | U89: =IF(R89=1, _xlfn.IFNA(VLOOKUP(Q89, 'Allocation Change Graph'!BF$7:BF$20, 2, FALSE), 0), 0) -> 0 | Z89: 0 | AA89: 0 | AD89: 0 | AE89: 0 | AF89: 0 | AG89: 0 | AH89: 0 | AI89: 0 | AJ89: 0 | AK89: 0 | AL89: 0 | AM89: 0 | AS89: 0 | AT89: 0
C90: University Wide | D90: La Jolla Campus | E90: East Campus | F90: Science Research Park | G90: Mesa Canyon | H90: PMC003 | I90: L3 | J90: Motorcycle Section | M90: Yes | P90: Mesa Canyon | Q90: Mesa Canyon Motorcycle Section | R90: =COUNTIF(Q$5:Q90, Q90 ) -> 3 | S90: =_xlfn.IFS(D$2=X$4, X90, D$2=Y$4, Y90,D$2=Z$4, Z90,D$2=AA$4, AA90) -> 10 | U90: =IF(R90=1, _xlfn.IFNA(VLOOKUP(Q90, 'Allocation Change Graph'!BF$7:BF$20, 2, FALSE), 0), 0) -> 0 | Z90: 10 | AA90: 10 | AD90: 0 | AE90: 0 | AF90: 0 | AG90: 0 | AH90: 0 | AI90: 0 | AJ90: 0 | AK90: 0 | AL90: 0 | AM90: 0 | AS90: 0 | AT90: 0
C91: University Wide | D91: La Jolla Campus | E91: East Campus | F91: Science Research Park | G91: Mesa Canyon | H91: PMC004 | I91: L4 | J91: Accessible | M91: Yes | P91: Mesa Canyon | Q91: Mesa Canyon Accessible | R91: =COUNTIF(Q$5:Q91, Q91 ) -> 4 | S91: =_xlfn.IFS(D$2=X$4, X91, D$2=Y$4, Y91,D$2=Z$4, Z91,D$2=AA$4, AA91) -> 0 | U91: =IF(R91=1, _xlfn.IFNA(VLOOKUP(Q91, 'Allocation Change Graph'!BF$7:BF$20, 2, FALSE), 0), 0) -> 0 | Z91: 0 | AA91: 0 | AD91: 0 | AE91: 0 | AF91: 0 | AG91: 0 | AH91: 0 | AI91: 0 | AJ91: 0 | AK91: 0 | AL91: 0 | AM91: 0 | AS91: 0 | AT91: 0
C92: University Wide | D92: La Jolla Campus | E92: East Campus | F92: Science Research Park | G92: Mesa Canyon | H92: PMC004 | I92: L4 | J92: Accessible (Van) | M92: Yes | P92: Mesa Canyon | Q92: Mesa Canyon Accessible (Van) | R92: =COUNTIF(Q$5:Q92, Q92 ) -> 4 | S92: =_xlfn.IFS(D$2=X$4, X92, D$2=Y$4, Y92,D$2=Z$4, Z92,D$2=AA$4, AA92) -> 0 | U92: =IF(R92=1, _xlfn.IFNA(VLOOKUP(Q92, 'Allocation Change Graph'!BF$7:BF$20, 2, FALSE), 0), 0) -> 0 | AD92: 0 | AE92: 0 | AF92: 0 | AG92: 0 | AH92: 0 | AI92: 0 | AJ92: 0 | AK92: 0 | AL92: 0 | AM92: 0 | AS92: 0 | AT92: 0
C93: University Wide | D93: La Jolla Campus | E93: East Campus | F93: Science Research Park | G93: Mesa Canyon | H93: PMC004 | I93: L4 | J93: B | M93: Yes | P93: Mesa Canyon | Q93: Mesa Canyon B | R93: =COUNTIF(Q$5:Q93, Q93 ) -> 4 | S93: =_xlfn.IFS(D$2=X$4, X93, D$2=Y$4, Y93,D$2=Z$4, Z93,D$2=AA$4, AA93) -> 0 | U93: =IF(R93=1, _xlfn.IFNA(VLOOKUP(Q93, 'Allocation Change Graph'!BF$7:BF$20, 2, FALSE), 0), 0) -> 0 | Z93: =62-62 -> 0 | AA93: 0 | AD93: 0 | AE93: 0 | AF93: 0 | AG93: 0 | AH93: 0 | AI93: 0 | AJ93: 0 | AK93: 0 | AL93: 0 | AM93: 0 | AS93: 0 | AT93: 0
C94: University Wide | D94: La Jolla Campus | E94: East Campus | F94: Science Research Park | G94: Mesa Canyon | H94: PMC004 | I94: L4 | J94: Electric Vehicle | M94: Yes | P94: Mesa Canyon | Q94: Mesa Canyon Electric Vehicle | R94: =COUNTIF(Q$5:Q94, Q94 ) -> 4 | S94: =_xlfn.IFS(D$2=X$4, X94, D$2=Y$4, Y94,D$2=Z$4, Z94,D$2=AA$4, AA94) -> 2 | U94: =IF(R94=1, _xlfn.IFNA(VLOOKUP(Q94, 'Allocation Change Graph'!BF$7:BF$20, 2, FALSE), 0), 0) -> 0 | Z94: 2 | AA94: 2 | AD94: 0 | AE94: 0 | AF94: 0 | AG94: 0 | AH94: 0 | AI94: 0 | AJ94: 0 | AK94: 0 | AL94: 0 | AM94: 0 | AS94: 0 | AT94: 0
C95: University Wide | D95: La Jolla Campus | E95: East Campus | F95: Science Research Park | G95: Mesa Canyon | H95: PMC004 | I95: L4 | J95: G | M95: Yes | P95: Mesa Canyon | Q95: Mesa Canyon G | R95: =COUNTIF(Q$5:Q95, Q95 ) -> 4 | S95: =_xlfn.IFS(D$2=X$4, X95, D$2=Y$4, Y95,D$2=Z$4, Z95,D$2=AA$4, AA95) -> 144 | U95: =IF(R95=1, _xlfn.IFNA(VLOOKUP(Q95, 'Allocation Change Graph'!BF$7:BF$20, 2, FALSE), 0), 0) -> 0 | Z95: 144 | AA95: 144 | AD95: 0 | AE95: 0 | AF95: 0 | AG95: 0 | AH95: 0 | AI95: 0 | AJ95: 0 | AK95: 0 | AL95: 0 | AM95: 0 | AS95: 0 | AT95: 0
C96: University Wide | D96: La Jolla Campus | E96: East Campus | F96: Science Research Park | G96: Mesa Canyon | H96: PMC004 | I96: L4 | J96: Motorcycle Section | M96: Yes | P96: Mesa Canyon | Q96: Mesa Canyon Motorcycle Section | R96: =COUNTIF(Q$5:Q96, Q96 ) -> 4 | S96: =_xlfn.IFS(D$2=X$4, X96, D$2=Y$4, Y96,D$2=Z$4, Z96,D$2=AA$4, AA96) -> 0 | U96: =IF(R96=1, _xlfn.IFNA(VLOOKUP(Q96, 'Allocation Change Graph'!BF$7:BF$20, 2, FALSE), 0), 0) -> 0 | Z96: 0 | AA96: 0 | AD96: 0 | AE96: 0 | AF96: 0 | AG96: 0 | AH96: 0 | AI96: 0 | AJ96: 0 | AK96: 0 | AL96: 0 | AM96: 0 | AS96: 0 | AT96: 0
C97: University Wide | D97: La Jolla Campus | E97: East Campus | F97: Science Research Park | G97: Mesa Canyon | H97: PMC005 | I97: L5 | J97: Accessible | M97: Yes | P97: Mesa Canyon | Q97: Mesa Canyon Accessible | R97: =COUNTIF(Q$5:Q97, Q97 ) -> 5 | S97: =_xlfn.IFS(D$2=X$4, X97, D$2=Y$4, Y97,D$2=Z$4, Z97,D$2=AA$4, AA97) -> 0 | U97: =IF(R97=1, _xlfn.IFNA(VLOOKUP(Q97, 'Allocation Change Graph'!BF$7:BF$20, 2, FALSE), 0), 0) -> 0 | Z97: 0 | AA97: 0 | AD97: 0 | AE97: 0 | AF97: 0 | AG97: 0 | AH97: 0 | AI97: 0 | AJ97: 0 | AK97: 0 | AL97: 0 | AM97: 0 | AS97: 0 | AT97: 0
C98: University Wide | D98: La Jolla Campus | E98: East Campus | F98: Science Research Park | G98: Mesa Canyon | H98: PMC005 | I98: L5 | J98: Accessible (Van) | M98: Yes | P98: Mesa Canyon | Q98: Mesa Canyon Accessible (Van) | R98: =COUNTIF(Q$5:Q98, Q98 ) -> 5 | S98: =_xlfn.IFS(D$2=X$4, X98, D$2=Y$4, Y98,D$2=Z$4, Z98,D$2=AA$4, AA98) -> 0 | U98: =IF(R98=1, _xlfn.IFNA(VLOOKUP(Q98, 'Allocation Change Graph'!BF$7:BF$20, 2, FALSE), 0), 0) -> 0 | AD98: 0 | AE98: 0 | AF98: 0 | AG98: 0 | AH98: 0 | AI98: 0 | AJ98: 0 | AK98: 0 | AL98: 0 | AM98: 0 | AS98: 0 | AT98: 0
C99: University Wide | D99: La Jolla Campus | E99: East Campus | F99: Science Research Park | G99: Mesa Canyon | H99: PMC005 | I99: L5 | J99: B | M99: Yes | P99: Mesa Canyon | Q99: Mesa Canyon B | R99: =COUNTIF(Q$5:Q99, Q99 ) -> 5 | S99: =_xlfn.IFS(D$2=X$4, X99, D$2=Y$4, Y99,D$2=Z$4, Z99,D$2=AA$4, AA99) -> 0 | U99: =IF(R99=1, _xlfn.IFNA(VLOOKUP(Q99, 'Allocation Change Graph'!BF$7:BF$20, 2, FALSE), 0), 0) -> 0 | Z99: 0 | AA99: 0 | AD99: 0 | AE99: 0 | AF99: 0 | AG99: 0 | AH99: 0 | AI99: 0 | AJ99: 0 | AK99: 0 | AL99: 0 | AM99: 0 | AS99: 0 | AT99: 0
C100: University Wide | D100: La Jolla Campus | E100: East Campus | F100: Science Research Park | G100: Mesa Canyon | H100: PMC005 | I100: L5 | J100: Electric Vehicle | M100: Yes | P100: Mesa Canyon | Q100: Mesa Canyon Electric Vehicle | R100: =COUNTIF(Q$5:Q100, Q100 ) -> 5 | S100: =_xlfn.IFS(D$2=X$4, X100, D$2=Y$4, Y100,D$2=Z$4, Z100,D$2=AA$4, AA100) -> 0 | U100: =IF(R100=1, _xlfn.IFNA(VLOOKUP(Q100, 'Allocation Change Graph'!BF$7:BF$20, 2, FALSE), 0), 0) -> 0 | Z100: 0 | AA100: 0 | AD100: 0 | AE100: 0 | AF100: 0 | AG100: 0 | AH100: 0 | AI100: 0 | AJ100: 0 | AK100: 0 | AL100: 0 | AM100: 0 | AS100: 0 | AT100: 0
C101: University Wide | D101: La Jolla Campus | E101: East Campus | F101: Science Research Park | G101: Mesa Canyon | H101: PMC005 | I101: L5 | J101: G | M101: Yes | P101: =IF(G101="Surface Lot", H101, G101) -> Mesa Canyon | Q101: Mesa Canyon G | R101: =COUNTIF(Q$5:Q101, Q101 ) -> 5 | S101: =_xlfn.IFS(D$2=X$4, X101, D$2=Y$4, Y101,D$2=Z$4, Z101,D$2=AA$4, AA101) -> 217 | U101: =IF(R101=1, _xlfn.IFNA(VLOOKUP(Q101, 'Allocation Change Graph'!BF$7:BF$20, 2, FALSE), 0), 0) -> 0 | Z101: 217 | AA101: 217 | AD101: 0 | AE101: 0 | AF101: 0 | AG101: 0 | AH101: 0 | AI101: 0 | AJ101: 0 | AK101: 0 | AL101: 0 | AM101: 0 | AS101: 0 | AT101: 0
C102: University Wide | D102: La Jolla Campus | E102: East Campus | F102: Science Research Park | G102: Mesa Canyon | H102: PMC005 | I102: L5 | J102: Motorcycle Section | M102: Yes | P102: Mesa Canyon | Q102: Mesa Canyon Motorcycle Section | R102: =COUNTIF(Q$5:Q102, Q102 ) -> 5 | S102: =_xlfn.IFS(D$2=X$4, X102, D$2=Y$4, Y102,D$2=Z$4, Z102,D$2=AA$4, AA102) -> 0 | U102: =IF(R102=1, _xlfn.IFNA(VLOOKUP(Q102, 'Allocation Change Graph'!BF$7:BF$20, 2, FALSE), 0), 0) -> 0 | Z102: 0 | AA102: 0 | AD102: 0 | AE102: 0 | AF102: 0 | AG102: 0 | AH102: 0 | AI102: 0 | AJ102: 0 | AK102: 0 | AL102: 0 | AM102: 0 | AS102: 0 | AT102: 0
C103: University Wide | D103: La Jolla Campus | E103: East Campus | F103: Science Research Park | G103: Mesa Canyon | H103: PMC006 | I103: L6 | J103: Accessible | M103: Yes | P103: Mesa Canyon | Q103: Mesa Canyon Accessible | R103: =COUNTIF(Q$5:Q103, Q103 ) -> 6 | S103: =_xlfn.IFS(D$2=X$4, X103, D$2=Y$4, Y103,D$2=Z$4, Z103,D$2=AA$4, AA103) -> 0 | U103: =IF(R103=1, _xlfn.IFNA(VLOOKUP(Q103, 'Allocation Change Graph'!BF$7:BF$20, 2, FALSE), 0), 0) -> 0 | Z103: 0 | AA103: 0 | AD103: 0 | AE103: 0 | AF103: 0 | AG103: 0 | AH103: 0 | AI103: 0 | AJ103: 0 | AK103: 0 | AL103: 0 | AM103: 0 | AS103: 0 | AT103: 0
C104: University Wide | D104: La Jolla Campus | E104: East Campus | F104: Science Research Park | G104: Mesa Canyon | H104: PMC006 | I104: L6 | J104: Accessible (Van) | M104: Yes | P104: Mesa Canyon | Q104: Mesa Canyon Accessible (Van) | R104: =COUNTIF(Q$5:Q104, Q104 ) -> 6 | S104: =_xlfn.IFS(D$2=X$4, X104, D$2=Y$4, Y104,D$2=Z$4, Z104,D$2=AA$4, AA104) -> 0 | U104: =IF(R104=1, _xlfn.IFNA(VLOOKUP(Q104, 'Allocation Change Graph'!BF$7:BF$20, 2, FALSE), 0), 0) -> 0 | AD104: 0 | AE104: 0 | AF104: 0 | AG104: 0 | AH104: 0 | AI104: 0 | AJ104: 0 | AK104: 0 | AL104: 0 | AM104: 0 | AS104: 0 | AT104: 0
C105: University Wide | D105: La Jolla Campus | E105: East Campus | F105: Science Research Park | G105: Mesa Canyon | H105: PMC006 | I105: L6 | J105: B | M105: Yes | P105: Mesa Canyon | Q105: Mesa Canyon B | R105: =COUNTIF(Q$5:Q105, Q105 ) -> 6 | S105: =_xlfn.IFS(D$2=X$4, X105, D$2=Y$4, Y105,D$2=Z$4, Z105,D$2=AA$4, AA105) -> 0 | U105: =IF(R105=1, _xlfn.IFNA(VLOOKUP(Q105, 'Allocation Change Graph'!BF$7:BF$20, 2, FALSE), 0), 0) -> 0 | Z105: 0 | AA105: 0 | AD105: 0 | AE105: 0 | AF105: 0 | AG105: 0 | AH105: 0 | AI105: 0 | AJ105: 0 | AK105: 0 | AL105: 0 | AM105: 0 | AS105: 0 | AT105: 0
C106: University Wide | D106: La Jolla Campus | E106: East Campus | F106: Science Research Park | G106: Mesa Canyon | H106: PMC006 | I106: L6 | J106: Electric Vehicle | M106: Yes | P106: Mesa Canyon | Q106: Mesa Canyon Electric Vehicle | R106: =COUNTIF(Q$5:Q106, Q106 ) -> 6 | S106: =_xlfn.IFS(D$2=X$4, X106, D$2=Y$4, Y106,D$2=Z$4, Z106,D$2=AA$4, AA106) -> 0 | U106: =IF(R106=1, _xlfn.IFNA(VLOOKUP(Q106, 'Allocation Change Graph'!BF$7:BF$20, 2, FALSE), 0), 0) -> 0 | Z106: 0 | AA106: 0 | AD106: 0 | AE106: 0 | AF106: 0 | AG106: 0 | AH106: 0 | AI106: 0 | AJ106: 0 | AK106: 0 | AL106: 0 | AM106: 0 | AS106: 0 | AT106: 0
C107: University Wide | D107: La Jolla Campus | E107: East Campus | F107: Science Research Park | G107: Mesa Canyon | H107: PMC006 | I107: L6 | J107: G | M107: Yes | P107: Mesa Canyon | Q107: Mesa Canyon G | R107: =COUNTIF(Q$5:Q107, Q107 ) -> 6 | S107: =_xlfn.IFS(D$2=X$4, X107, D$2=Y$4, Y107,D$2=Z$4, Z107,D$2=AA$4, AA107) -> 217 | U107: =IF(R107=1, _xlfn.IFNA(VLOOKUP(Q107, 'Allocation Change Graph'!BF$7:BF$20, 2, FALSE), 0), 0) -> 0 | Z107: 217 | AA107: 217 | AD107: 0 | AE107: 0 | AF107: 0 | AG107: 0 | AH107: 0 | AI107: 0 | AJ107: 0 | AK107: 0 | AL107: 0 | AM107: 0 | AS107: 0 | AT107: 0
C108: University Wide | D108: La Jolla Campus | E108: East Campus | F108: Science Research Park | G108: Mesa Canyon | H108: PMC006 | I108: L6 | J108: Motorcycle Section | M108: Yes | P108: Mesa Canyon | Q108: Mesa Canyon Motorcycle Section | R108: =COUNTIF(Q$5:Q108, Q108 ) -> 6 | S108: =_xlfn.IFS(D$2=X$4, X108, D$2=Y$4, Y108,D$2=Z$4, Z108,D$2=AA$4, AA108) -> 0 | U108: =IF(R108=1, _xlfn.IFNA(VLOOKUP(Q108, 'Allocation Change Graph'!BF$7:BF$20, 2, FALSE), 0), 0) -> 0 | Z108: 0 | AA108: 0 | AD108: 0 | AE108: 0 | AF108: 0 | AG108: 0 | AH108: 0 | AI108: 0 | AJ108: 0 | AK108: 0 | AL108: 0 | AM108: 0 | AS108: 0 | AT108: 0
C109: University Wide | D109: La Jolla Campus | E109: East Campus | F109: East Recreation | G109: Surface Lot | H109: P701 | I109: - | J109: S | M109: Yes | N109: Yes | O109: Yes | P109: P701 | Q109: P701 S | R109: =COUNTIF(Q$5:Q109, Q109 ) -> 1 | S109: =_xlfn.IFS(D$2=X$4, X109, D$2=Y$4, Y109,D$2=Z$4, Z109,D$2=AA$4, AA109) -> 378 | T109: 378 | U109: =IF(R109=1, _xlfn.IFNA(VLOOKUP(Q109, 'Allocation Change Graph'!BF$7:BF$20, 2, FALSE), 0), 0) -> 0 | V109: 0.9 | W109: 340.2 | Z109: 378 | AA109: 378 | AD109: 356 | AE109: 332 | AF109: 302 | AG109: 256 | AH109: 171 | AI109: 168 | AJ109: 168 | AK109: 172 | AL109: 180 | AM109: 187 | AS109: 168 | AT109: 356
C110: University Wide | D110: La Jolla Campus | E110: East Campus | F110: Health Sciences East | G110: Surface Lot | H110: P702 | I110: - | J110: Accessible | M110: Yes | N110: Yes | P110: P702 | Q110: P702 Accessible | R110: =COUNTIF(Q$5:Q110, Q110 ) -> 1 | S110: =_xlfn.IFS(D$2=X$4, X110, D$2=Y$4, Y110,D$2=Z$4, Z110,D$2=AA$4, AA110) -> 3 | T110: 3 | U110: =IF(R110=1, _xlfn.IFNA(VLOOKUP(Q110, 'Allocation Change Graph'!BF$7:BF$20, 2, FALSE), 0), 0) -> 0 | V110: 0.9 | W110: 2.7 | Z110: 3 | AA110: 3 | AD110: 3 | AE110: 3 | AF110: 3 | AG110: 3 | AH110: 3 | AI110: 3 | AJ110: 3 | AK110: 2 | AL110: 2 | AM110: 3 | AS110: 2 | AT110: 3
C111: University Wide | D111: La Jolla Campus | E111: East Campus | F111: Health Sciences East | G111: Surface Lot | H111: P702 | I111: - | J111: Accessible (Van) | M111: Yes | N111: Yes | P111: P702 | Q111: P702 Accessible (Van) | R111: =COUNTIF(Q$5:Q111, Q111 ) -> 1 | S111: =_xlfn.IFS(D$2=X$4, X111, D$2=Y$4, Y111,D$2=Z$4, Z111,D$2=AA$4, AA111) -> 3 | T111: 3 | U111: =IF(R111=1, _xlfn.IFNA(VLOOKUP(Q111, 'Allocation Change Graph'!BF$7:BF$20, 2, FALSE), 0), 0) -> 0 | V111: 0.9 | W111: 2.7 | Z111: 3 | AA111: 3 | AD111: 3 | AE111: 3 | AF111: 3 | AG111: 3 | AH111: 3 | AI111: 3 | AJ111: 3 | AK111: 3 | AL111: 3 | AM111: 3 | AS111: 3 | AT111: 3
C112: University Wide | D112: La Jolla Campus | E112: East Campus | F112: Health Sciences East | G112: Surface Lot | H112: P702 | I112: - | J112: B | M112: Yes | N112: Yes | O112: Yes | P112: P702 | Q112: P702 B | R112: =COUNTIF(Q$5:Q112, Q112 ) -> 1 | S112: =_xlfn.IFS(D$2=X$4, X112, D$2=Y$4, Y112,D$2=Z$4, Z112,D$2=AA$4, AA112) -> 183 | T112: 183 | U112: =IF(R112=1, _xlfn.IFNA(VLOOKUP(Q112, 'Allocation Change Graph'!BF$7:BF$20, 2, FALSE), 0), 0) -> 0 | V112: 0.9 | W112: 164.7 | Z112: 183 | AA112: 183 | AD112: 95 | AE112: 60 | AF112: 36 | AG112: 23 | AH112: 16 | AI112: 16 | AJ112: 18 | AK112: 20 | AL112: 19 | AM112: 24 | AS112: 16 | AT112: 95
C113: University Wide | D113: La Jolla Campus | E113: East Campus | F113: Health Sciences East | G113: Surface Lot | H113: P703 | I113: - | J113: Accessible | M113: Yes | N113: Yes | P113: P703 | Q113: P703 Accessible | R113: =COUNTIF(Q$5:Q113, Q113 ) -> 1 | S113: =_xlfn.IFS(D$2=X$4, X113, D$2=Y$4, Y113,D$2=Z$4, Z113,D$2=AA$4, AA113) -> 0 | T113: 0 | U113: =IF(R113=1, _xlfn.IFNA(VLOOKUP(Q113, 'Allocation Change Graph'!BF$7:BF$20, 2, FALSE), 0), 0) -> 0 | V113: 0.9 | W113: 0 | Z113: 0 | AA113: 0 | AD113: 0 | AE113: 0 | AF113: 0 | AG113: 0 | AH113: 0 | AI113: 0 | AJ113: 0 | AK113: 0 | AL113: 0 | AM113: 0 | AS113: 0 | AT113: 0
C114: University Wide | D114: La Jolla Campus | E114: East Campus | F114: Health Sciences East | G114: Surface Lot | H114: P703 | I114: - | J114: Accessible (Van) | M114: Yes | N114: Yes | P114: P703 | Q114: P703 Accessible (Van) | R114: =COUNTIF(Q$5:Q114, Q114 ) -> 1 | S114: =_xlfn.IFS(D$2=X$4, X114, D$2=Y$4, Y114,D$2=Z$4, Z114,D$2=AA$4, AA114) -> 11 | T114: 11 | U114: =IF(R114=1, _xlfn.IFNA(VLOOKUP(Q114, 'Allocation Change Graph'!BF$7:BF$20, 2, FALSE), 0), 0) -> 0 | V114: 0.9 | W114: 9.9 | Z114: 11 | AA114: 11 | AD114: 9 | AE114: 5 | AF114: 8 | AG114: 4 | AH114: 3 | AI114: 3 | AJ114: 4 | AK114: 4 | AL114: 4 | AM114: 5 | AS114: 3 | AT114: 9
C115: University Wide | D115: La Jolla Campus | E115: East Campus | F115: Health Sciences East | G115: Surface Lot | H115: P703 | I115: - | J115: Allocated | K115: Ambulance | M115: Yes | N115: Yes | P115: P703 | Q115: P703 Allocated Ambulance | R115: =COUNTIF(Q$5:Q115, Q115 ) -> 1 | S115: =_xlfn.IFS(D$2=X$4, X115, D$2=Y$4, Y115,D$2=Z$4, Z115,D$2=AA$4, AA115) -> 2 | T115: 2 | U115: =IF(R115=1, _xlfn.IFNA(VLOOKUP(Q115, 'Allocation Change Graph'!BF$7:BF$20, 2, FALSE), 0), 0) -> 0 | V115: 0.9 | W115: 1.8 | Z115: 2 | AA115: 2 | AD115: 2 | AE115: 2 | AF115: 2 | AG115: 2 | AH115: 2 | AI115: 2 | AJ115: 2 | AK115: 2 | AL115: 2 | AM115: 2 | AS115: 2 | AT115: 2
C116: University Wide | D116: La Jolla Campus | E116: East Campus | F116: Health Sciences East | G116: Surface Lot | H116: P703 | I116: - | J116: D ($5.00) | M116: Yes | N116: Yes | O116: Yes | P116: P703 | Q116: P703 D ($5.00) | R116: =COUNTIF(Q$5:Q116, Q116 ) -> 1 | S116: =_xlfn.IFS(D$2=X$4, X116, D$2=Y$4, Y116,D$2=Z$4, Z116,D$2=AA$4, AA116) -> 295 | T116: 295 | U116: =IF(R116=1, _xlfn.IFNA(VLOOKUP(Q116, 'Allocation Change Graph'!BF$7:BF$20, 2, FALSE), 0), 0) -> 0 | V116: 0.9 | W116: 265.5 | Z116: 295 | AA116: 295 | AD116: 83 | AE116: 48 | AF116: 33 | AG116: 33 | AH116: 35 | AI116: 34 | AJ116: 36 | AK116: 33 | AL116: 37 | AM116: 38 | AS116: 33 | AT116: 83
C117: University Wide | D117: La Jolla Campus | E117: East Campus | F117: Health Sciences East | G117: Surface Lot | H117: P703 | I117: - | J117: Electric Vehicle | M117: Yes | N117: Yes | P117: P703 | Q117: P703 Electric Vehicle | R117: =COUNTIF(Q$5:Q117, Q117 ) -> 1 | S117: =_xlfn.IFS(D$2=X$4, X117, D$2=Y$4, Y117,D$2=Z$4, Z117,D$2=AA$4, AA117) -> 12 | T117: 12 | U117: =IF(R117=1, _xlfn.IFNA(VLOOKUP(Q117, 'Allocation Change Graph'!BF$7:BF$20, 2, FALSE), 0), 0) -> 0 | V117: 0.9 | W117: 10.8 | Z117: 12 | AA117: 12 | AD117: 10 | AE117: 10 | AF117: 7 | AG117: 8 | AH117: 7 | AI117: 8 | AJ117: 7 | AK117: 8 | AL117: 8 | AM117: 8 | AS117: 7 | AT117: 10
C118: University Wide | D118: La Jolla Campus | E118: East Campus | F118: Health Sciences East | G118: Surface Lot | H118: P703 | I118: - | J118: Loading | M118: Yes | N118: Yes | P118: P703 | Q118: P703 Loading | R118: =COUNTIF(Q$5:Q118, Q118 ) -> 1 | S118: =_xlfn.IFS(D$2=X$4, X118, D$2=Y$4, Y118,D$2=Z$4, Z118,D$2=AA$4, AA118) -> 2 | T118: 2 | U118: =IF(R118=1, _xlfn.IFNA(VLOOKUP(Q118, 'Allocation Change Graph'!BF$7:BF$20, 2, FALSE), 0), 0) -> 0 | V118: 0.9 | W118: 1.8 | Z118: 2 | AA118: 2 | AD118: 1 | AE118: 1 | AF118: 2 | AG118: 1 | AH118: 2 | AI118: 1 | AJ118: 1 | AK118: 2 | AL118: 2 | AM118: 2 | AS118: 1 | AT118: 2
C119: University Wide | D119: La Jolla Campus | E119: East Campus | F119: Health Sciences East | G119: Surface Lot | H119: P703 | I119: - | J119: Reserved | K119: V2G | M119: Yes | N119: Yes | P119: P703 | Q119: P703 Reserved V2G | R119: =COUNTIF(Q$5:Q119, Q119 ) -> 1 | S119: =_xlfn.IFS(D$2=X$4, X119, D$2=Y$4, Y119,D$2=Z$4, Z119,D$2=AA$4, AA119) -> 1 | T119: 1 | U119: =IF(R119=1, _xlfn.IFNA(VLOOKUP(Q119, 'Allocation Change Graph'!BF$7:BF$20, 2, FALSE), 0), 0) -> 0 | V119: 0.9 | W119: 0.9 | Z119: 1 | AA119: 1 | AD119: 1 | AE119: 1 | AF119: 1 | AG119: 0 | AH119: 0 | AI119: 0 | AJ119: 1 | AK119: 1 | AL119: 1 | AM119: 1 | AS119: 0 | AT119: 1
C120: University Wide | D120: La Jolla Campus | E120: East Campus | F120: Health Sciences East | G120: Surface Lot | H120: P703 | I120: - | J120: Reserved | M120: Yes | N120: Yes | P120: P703 | Q120: P703 Reserved | R120: =COUNTIF(Q$5:Q120, Q120 ) -> 1 | S120: =_xlfn.IFS(D$2=X$4, X120, D$2=Y$4, Y120,D$2=Z$4, Z120,D$2=AA$4, AA120) -> 1 | T120: 1 | U120: =IF(R120=1, _xlfn.IFNA(VLOOKUP(Q120, 'Allocation Change Graph'!BF$7:BF$20, 2, FALSE), 0), 0) -> 0 | V120: 0.9 | W120: 0.9 | Z120: 1 | AA120: 1 | AD120: 1 | AE120: 1 | AF120: 1 | AG120: 1 | AH120: 1 | AI120: 1 | AJ120: 1 | AK120: 1 | AL120: 1 | AM120: 1 | AS120: 1 | AT120: 1
C121: University Wide | D121: La Jolla Campus | E121: East Campus | F121: Health Sciences East | G121: Surface Lot | H121: P703 | I121: - | J121: UC Vehicle | K121: UC Cart | M121: Yes | N121: Yes | P121: P703 | Q121: P703 UC Vehicle UC Cart | R121: =COUNTIF(Q$5:Q121, Q121 ) -> 1 | S121: =_xlfn.IFS(D$2=X$4, X121, D$2=Y$4, Y121,D$2=Z$4, Z121,D$2=AA$4, AA121) -> 2 | T121: 2 | U121: =IF(R121=1, _xlfn.IFNA(VLOOKUP(Q121, 'Allocation Change Graph'!BF$7:BF$20, 2, FALSE), 0), 0) -> 0 | V121: 0.9 | W121: 1.8 | Z121: 2 | AA121: 2 | AD121: 1 | AE121: 1 | AF121: 2 | AG121: 1 | AH121: 2 | AI121: 1 | AJ121: 1 | AK121: 2 | AL121: 2 | AM121: 2 | AS121: 1 | AT121: 2
C122: University Wide | D122: La Jolla Campus | E122: East Campus | F122: Health Sciences East | G122: Surface Lot | H122: P703 | I122: - | J122: UC Vehicle | M122: Yes | N122: Yes | P122: P703 | Q122: P703 UC Vehicle | R122: =COUNTIF(Q$5:Q122, Q122 ) -> 1 | S122: =_xlfn.IFS(D$2=X$4, X122, D$2=Y$4, Y122,D$2=Z$4, Z122,D$2=AA$4, AA122) -> 19 | T122: 19 | U122: =IF(R122=1, _xlfn.IFNA(VLOOKUP(Q122, 'Allocation Change Graph'!BF$7:BF$20, 2, FALSE), 0), 0) -> 0 | V122: 0.9 | W122: 17.1 | Z122: 19 | AA122: 19 | AD122: 10 | AE122: 12 | AF122: 8 | AG122: 13 | AH122: 14 | AI122: 11 | AJ122: 16 | AK122: 11 | AL122: 13 | AM122: 14 | AS122: 8 | AT122: 16
C123: University Wide | D123: La Jolla Campus | E123: East Campus | F123: Health Sciences East | G123: Surface Lot | H123: P703 | I123: - | J123: Visitor | K123: Radiation Oncology Center Patient | M123: Yes | N123: Yes | O123: Yes | P123: P703 | Q123: P703 Visitor Radiation Oncology Center Patient | R123: =COUNTIF(Q$5:Q123, Q123 ) -> 1 | S123: =_xlfn.IFS(D$2=X$4, X123, D$2=Y$4, Y123,D$2=Z$4, Z123,D$2=AA$4, AA123) -> 17 | T123: 17 | U123: =IF(R123=1, _xlfn.IFNA(VLOOKUP(Q123, 'Allocation Change Graph'!BF$7:BF$20, 2, FALSE), 0), 0) -> 0 | V123: 0.9 | W123: 15.3 | Z123: 17 | AA123: 17 | AD123: 13 | AE123: 15 | AF123: 11 | AG123: 4 | AH123: 12 | AI123: 10 | AJ123: 11 | AK123: 9 | AL123: 12 | AM123: 12 | AS123: 4 | AT123: 15
C124: University Wide | D124: La Jolla Campus | E124: East Campus | F124: Health Sciences East | G124: Surface Lot | H124: P704 | I124: - | J124: D ($5.00) | M124: Yes | N124: Yes | O124: Yes | P124: P704 | Q124: P704 D ($5.00) | R124: =COUNTIF(Q$5:Q124, Q124 ) -> 1 | S124: =_xlfn.IFS(D$2=X$4, X124, D$2=Y$4, Y124,D$2=Z$4, Z124,D$2=AA$4, AA124) -> 326 | T124: 326 | U124: =IF(R124=1, _xlfn.IFNA(VLOOKUP(Q124, 'Allocation Change Graph'!BF$7:BF$20, 2, FALSE), 0), 0) -> 0 | V124: 0.9 | W124: 293.4 | Z124: 326 | AA124: 326 | AD124: 170 | AE124: 146 | AF124: 96 | AG124: 49 | AH124: 43 | AI124: 44 | AJ124: 50 | AK124: 46 | AL124: 48 | AM124: 49 | AS124: 43 | AT124: 170
C125: University Wide | D125: La Jolla Campus | E125: East Campus | F125: Health Sciences East | G125: Surface Lot | H125: P705 | I125: - | J125: D ($5.00) | M125: Yes | N125: Yes | O125: Yes | P125: P705 | Q125: P705 D ($5.00) | R125: =COUNTIF(Q$5:Q125, Q125 ) -> 1 | S125: =_xlfn.IFS(D$2=X$4, X125, D$2=Y$4, Y125,D$2=Z$4, Z125,D$2=AA$4, AA125) -> 266 | T125: 266 | U125: =IF(R125=1, _xlfn.IFNA(VLOOKUP(Q125, 'Allocation Change Graph'!BF$7:BF$20, 2, FALSE), 0), 0) -> 0 | V125: 0.9 | W125: 239.4 | Z125: 266 | AA125: 266 | AD125: 177 | AE125: 148 | AF125: 161 | AG125: 132 | AH125: 116 | AI125: 111 | AJ125: 116 | AK125: 121 | AL125: 130 | AM125: 132 | AS125: 111 | AT125: 177
C126: University Wide | D126: La Jolla Campus | E126: East Campus | F126: Preuss School | G126: Surface Lot | H126: P706 | I126: - | J126: A | K126: Preuss | M126: Yes | N126: Yes | O126: Yes | P126: P706 | Q126: P706 A Preuss | R126: =COUNTIF(Q$5:Q126, Q126 ) -> 1 | S126: =_xlfn.IFS(D$2=X$4, X126, D$2=Y$4, Y126,D$2=Z$4, Z126,D$2=AA$4, AA126) -> 6 | T126: 6 | U126: =IF(R126=1, _xlfn.IFNA(VLOOKUP(Q126, 'Allocation Change Graph'!BF$7:BF$20, 2, FALSE), 0), 0) -> 0 | V126: 0.9 | W126: 5.4 | Z126: 6 | AA126: 6 | AD126: 5 | AE126: 1 | AF126: 0 | AG126: 0 | AH126: 0 | AI126: 0 | AJ126: 1 | AK126: 0 | AL126: 1 | AM126: 1 | AS126: 0 | AT126: 5
C127: University Wide | D127: La Jolla Campus | E127: East Campus | F127: Preuss School | G127: Surface Lot | H127: P706 | I127: - | J127: Accessible | M127: Yes | N127: Yes | P127: P706 | Q127: P706 Accessible | R127: =COUNTIF(Q$5:Q127, Q127 ) -> 1 | S127: =_xlfn.IFS(D$2=X$4, X127, D$2=Y$4, Y127,D$2=Z$4, Z127,D$2=AA$4, AA127) -> 1 | T127: 1 | U127: =IF(R127=1, _xlfn.IFNA(VLOOKUP(Q127, 'Allocation Change Graph'!BF$7:BF$20, 2, FALSE), 0), 0) -> 0 | V127: 0.9 | W127: 0.9 | Z127: 1 | AA127: 1 | AD127: 0 | AE127: 0 | AF127: 0 | AG127: 0 | AH127: 0 | AI127: 0 | AJ127: 0 | AK127: 0 | AL127: 0 | AM127: 0 | AS127: 0 | AT127: 0
C128: University Wide | D128: La Jolla Campus | E128: East Campus | F128: Preuss School | G128: Surface Lot | H128: P706 | I128: - | J128: Accessible (Van) | M128: Yes | N128: Yes | P128: P706 | Q128: P706 Accessible (Van) | R128: =COUNTIF(Q$5:Q128, Q128 ) -> 1 | S128: =_xlfn.IFS(D$2=X$4, X128, D$2=Y$4, Y128,D$2=Z$4, Z128,D$2=AA$4, AA128) -> 3 | T128: 3 | U128: =IF(R128=1, _xlfn.IFNA(VLOOKUP(Q128, 'Allocation Change Graph'!BF$7:BF$20, 2, FALSE), 0), 0) -> 0 | V128: 0.9 | W128: 2.7 | Z128: 3 | AA128: 3 | AD128: 1 | AE128: 1 | AF128: 1 | AG128: 1 | AH128: 1 | AI128: 1 | AJ128: 1 | AK128: 1 | AL128: 1 | AM128: 1 | AS128: 1 | AT128: 1
C129: University Wide | D129: La Jolla Campus | E129: East Campus | F129: Preuss School | G129: Surface Lot | H129: P706 | I129: - | J129: B | K129: Preuss | M129: Yes | N129: Yes | O129: Yes | P129: P706 | Q129: P706 B Preuss | R129: =COUNTIF(Q$5:Q129, Q129 ) -> 1 | S129: =_xlfn.IFS(D$2=X$4, X129, D$2=Y$4, Y129,D$2=Z$4, Z129,D$2=AA$4, AA129) -> 59 | T129: 59 | U129: =IF(R129=1, _xlfn.IFNA(VLOOKUP(Q129, 'Allocation Change Graph'!BF$7:BF$20, 2, FALSE), 0), 0) -> 0 | V129: 0.9 | W129: 53.1 | Z129: 59 | AA129: 59 | AD129: 49 | AE129: 7 | AF129: 0 | AG129: 0 | AH129: 1 | AI129: 0 | AJ129: 1 | AK129: 0 | AL129: 1 | AM129: 1 | AS129: 0 | AT129: 49
C130: University Wide | D130: La Jolla Campus | E130: East Campus | F130: Preuss School | G130: Surface Lot | H130: P706 | I130: - | J130: Loading | L130: 30 minutes | M130: Yes | N130: Yes | P130: P706 | Q130: P706 Loading 30 minutes | R130: =COUNTIF(Q$5:Q130, Q130 ) -> 1 | S130: =_xlfn.IFS(D$2=X$4, X130, D$2=Y$4, Y130,D$2=Z$4, Z130,D$2=AA$4, AA130) -> 3 | T130: 3 | U130: =IF(R130=1, _xlfn.IFNA(VLOOKUP(Q130, 'Allocation Change Graph'!BF$7:BF$20, 2, FALSE), 0), 0) -> 0 | V130: 0.9 | W130: 2.7 | Z130: 3 | AA130: 3 | AD130: 3 | AE130: 1 | AF130: 0 | AG130: 0 | AH130: 0 | AI130: 0 | AJ130: 0 | AK130: 0 | AL130: 0 | AM130: 0 | AS130: 0 | AT130: 3
C131: University Wide | D131: La Jolla Campus | E131: East Campus | F131: Health Sciences East | G131: Surface Lot | H131: P707 | I131: - | J131: Accessible | M131: Yes | N131: Yes | P131: P707 | Q131: P707 Accessible | R131: =COUNTIF(Q$5:Q131, Q131 ) -> 1 | S131: =_xlfn.IFS(D$2=X$4, X131, D$2=Y$4, Y131,D$2=Z$4, Z131,D$2=AA$4, AA131) -> 6 | T131: 6 | U131: =IF(R131=1, _xlfn.IFNA(VLOOKUP(Q131, 'Allocation Change Graph'!BF$7:BF$20, 2, FALSE), 0), 0) -> 0 | V131: 0.9 | W131: 5.4 | Z131: 4 | AA131: 6 | AD131: 6 | AE131: 6 | AF131: 6 | AG131: 6 | AH131: 6 | AI131: 6 | AJ131: 6 | AK131: 6 | AL131: 6 | AM131: 6 | AS131: 6 | AT131: 6
C132: University Wide | D132: La Jolla Campus | E132: East Campus | F132: Health Sciences East | G132: Surface Lot | H132: P707 | I132: - | J132: Accessible (Van) | M132: Yes | N132: Yes | P132: P707 | Q132: P707 Accessible (Van) | R132: =COUNTIF(Q$5:Q132, Q132 ) -> 1 | S132: =_xlfn.IFS(D$2=X$4, X132, D$2=Y$4, Y132,D$2=Z$4, Z132,D$2=AA$4, AA132) -> 1 | T132: 1 | U132: =IF(R132=1, _xlfn.IFNA(VLOOKUP(Q132, 'Allocation Change Graph'!BF$7:BF$20, 2, FALSE), 0), 0) -> 0 | V132: 0.9 | W132: 0.9 | Z132: 3 | AA132: 1 | AD132: 1 | AE132: 1 | AF132: 1 | AG132: 1 | AH132: 0 | AI132: 0 | AJ132: 0 | AK132: 0 | AL132: 1 | AM132: 1 | AS132: 0 | AT132: 1
C133: University Wide | D133: La Jolla Campus | E133: East Campus | F133: Health Sciences East | G133: Surface Lot | H133: P707 | I133: - | J133: Electric Vehicle | M133: Yes | N133: Yes | P133: =IF(G133="Surface Lot", H133, G133) -> P707 | Q133: P707 Electric Vehicle | R133: =COUNTIF(Q$5:Q133, Q133 ) -> 1 | S133: =_xlfn.IFS(D$2=X$4, X133, D$2=Y$4, Y133,D$2=Z$4, Z133,D$2=AA$4, AA133) -> 2 | T133: =IF(R133=1,SUMIF(Q:Q,Q133,S:S)+U133, "") -> 2 | U133: =IF(R133=1, _xlfn.IFNA(VLOOKUP(Q133, 'Allocation Change Graph'!BF$7:BF$20, 2, FALSE), 0), 0) -> 0 | V133: 0.9 | W133: =IF(R133=1, V133*T133, "") -> 1.8 | Z133: 2 | AA133: 2 | AD133: 2 | AE133: 2 | AF133: 2 | AG133: 2 | AH133: 2 | AI133: 2 | AJ133: 2 | AK133: 2 | AL133: 2 | AM133: 2 | AS133: =MIN($AB133:$AR133)+U133 -> 2 | AT133: =MAX($AB133:$AR133)+U133 -> 2
C134: University Wide | D134: La Jolla Campus | E134: East Campus | F134: Health Sciences East | G134: Surface Lot | H134: P707 | I134: - | J134: Reserved | M134: Yes | N134: Yes | P134: P707 | Q134: =P134&" "&J134&" "&K134&" "&L134 -> P707 Reserved | R134: =COUNTIF(Q$5:Q134, Q134 ) -> 1 | S134: =_xlfn.IFS(D$2=X$4, X134, D$2=Y$4, Y134,D$2=Z$4, Z134,D$2=AA$4, AA134) -> 6 | T134: 6 | U134: =IF(R134=1, _xlfn.IFNA(VLOOKUP(Q134, 'Allocation Change Graph'!BF$7:BF$20, 2, FALSE), 0), 0) -> 0 | V134: 0.9 | W134: 5.4 | Z134: 6 | AA134: 6 | AD134: 5 | AE134: 6 | AF134: 6 | AG134: 5 | AH134: 5 | AI134: 5 | AJ134: 5 | AK134: 5 | AL134: 6 | AM134: 6 | AS134: 5 | AT134: 6
C135: University Wide | D135: La Jolla Campus | E135: East Campus | F135: Health Sciences East | G135: Surface Lot | H135: P707 | I135: - | J135: S | M135: Yes | N135: Yes | O135: Yes | P135: P707 | Q135: P707 S | R135: =COUNTIF(Q$5:Q135, Q135 ) -> 1 | S135: =_xlfn.IFS(D$2=X$4, X135, D$2=Y$4, Y135,D$2=Z$4, Z135,D$2=AA$4, AA135) -> 197 | T135: 197 | U135: =IF(R135=1, _xlfn.IFNA(VLOOKUP(Q135, 'Allocation Change Graph'!BF$7:BF$20, 2, FALSE), 0), 0) -> 0 | V135: 0.9 | W135: 177.3 | Z135: 194 | AA135: =234-AA134-AA133-AA132-AA131-22 -> 197 | AD135: 92 | AE135: 56 | AF135: 52 | AG135: 34 | AH135: 36 | AI135: 37 | AJ135: 36 | AK135: 40 | AL135: 42 | AM135: 52 | AS135: 34 | AT135: 92
C136: University Wide | D136: La Jolla Campus | E136: East Campus | F136: Health Sciences East | G136: Surface Lot | H136: P751 | I136: - | J136: Accessible | M136: Yes | N136: Yes | P136: P751 | Q136: P751 Accessible | R136: =COUNTIF(Q$5:Q136, Q136 ) -> 1 | S136: =_xlfn.IFS(D$2=X$4, X136, D$2=Y$4, Y136,D$2=Z$4, Z136,D$2=AA$4, AA136) -> 0 | T136: 0 | U136: =IF(R136=1, _xlfn.IFNA(VLOOKUP(Q136, 'Allocation Change Graph'!BF$7:BF$20, 2, FALSE), 0), 0) -> 0 | V136: 0.9 | W136: 0 | Z136: 2 | AA136: 0 | AD136: 0 | AE136: 0 | AF136: 0 | AG136: 0 | AH136: 0 | AI136: 0 | AJ136: 0 | AK136: 0 | AL136: 0 | AM136: 0 | AS136: 0 | AT136: 0
C137: University Wide | D137: La Jolla Campus | E137: East Campus | F137: Health Sciences East | G137: Surface Lot | H137: P751 | I137: - | J137: Accessible (Van) | M137: Yes | N137: Yes | P137: P751 | Q137: P751 Accessible (Van) | R137: =COUNTIF(Q$5:Q137, Q137 ) -> 1 | S137: =_xlfn.IFS(D$2=X$4, X137, D$2=Y$4, Y137,D$2=Z$4, Z137,D$2=AA$4, AA137) -> 0 | T137: 0 | U137: =IF(R137=1, _xlfn.IFNA(VLOOKUP(Q137, 'Allocation Change Graph'!BF$7:BF$20, 2, FALSE), 0), 0) -> 0 | V137: 0.9 | W137: 0 | Z137: 2 | AA137: 0 | AD137: 0 | AE137: 0 | AF137: 0 | AG137: 0 | AH137: 0 | AI137: 0 | AJ137: 0 | AK137: 0 | AL137: 0 | AM137: 0 | AS137: 0 | AT137: 0
C138: University Wide | D138: La Jolla Campus | E138: East Campus | F138: Health Sciences East | G138: Surface Lot | H138: P751 | I138: - | J138: Electric Vehicle | M138: Yes | N138: Yes | P138: P751 | Q138: P751 Electric Vehicle | R138: =COUNTIF(Q$5:Q138, Q138 ) -> 1 | S138: =_xlfn.IFS(D$2=X$4, X138, D$2=Y$4, Y138,D$2=Z$4, Z138,D$2=AA$4, AA138) -> 0 | T138: 0 | U138: =IF(R138=1, _xlfn.IFNA(VLOOKUP(Q138, 'Allocation Change Graph'!BF$7:BF$20, 2, FALSE), 0), 0) -> 0 | V138: 0.9 | W138: 0 | Z138: 0 | AA138: 0 | AD138: 0 | AE138: 0 | AF138: 0 | AG138: 0 | AH138: 0 | AI138: 0 | AJ138: 0 | AK138: 0 | AL138: 0 | AM138: 0 | AS138: 0 | AT138: 0
C139: University Wide | D139: La Jolla Campus | E139: East Campus | F139: Health Sciences East | G139: Surface Lot | H139: P751 | I139: - | J139: Reserved | K139: Valet | M139: Yes | N139: Yes | P139: P751 | Q139: P751 Reserved Valet | R139: =COUNTIF(Q$5:Q139, Q139 ) -> 1 | S139: =_xlfn.IFS(D$2=X$4, X139, D$2=Y$4, Y139,D$2=Z$4, Z139,D$2=AA$4, AA139) -> 58 | T139: 58 | U139: =IF(R139=1, _xlfn.IFNA(VLOOKUP(Q139, 'Allocation Change Graph'!BF$7:BF$20, 2, FALSE), 0), 0) -> 0 | V139: 0.9 | W139: 52.2 | Z139: 0 | AA139: 58 | AD139: 54 | AE139: 32 | AF139: 24 | AG139: 15 | AH139: 4 | AI139: 3 | AJ139: 3 | AK139: 7 | AL139: 6 | AM139: 7 | AS139: 3 | AT139: 54
C140: University Wide | D140: La Jolla Campus | E140: East Campus | F140: Health Sciences East | G140: Surface Lot | H140: P751 | I140: - | J140: Reserved | M140: Yes | N140: Yes | P140: P751 | Q140: P751 Reserved | R140: =COUNTIF(Q$5:Q140, Q140 ) -> 1 | S140: =_xlfn.IFS(D$2=X$4, X140, D$2=Y$4, Y140,D$2=Z$4, Z140,D$2=AA$4, AA140) -> 0 | T140: 0 | U140: =IF(R140=1, _xlfn.IFNA(VLOOKUP(Q140, 'Allocation Change Graph'!BF$7:BF$20, 2, FALSE), 0), 0) -> 0 | V140: 0.9 | W140: 0 | Z140: 0 | AA140: 0 | AD140: 0 | AE140: 0 | AF140: 0 | AG140: 0 | AH140: 0 | AI140: 0 | AJ140: 0 | AK140: 0 | AL140: 0 | AM140: 0 | AS140: 0 | AT140: 0
C141: University Wide | D141: La Jolla Campus | E141: East Campus | F141: Health Sciences East | G141: Surface Lot | H141: P751 | I141: - | J141: Visitor | L141: 30 minutes | M141: Yes | N141: Yes | O141: Yes | P141: P752 | Q141: P752 Visitor 30 minutes | R141: =COUNTIF(Q$5:Q141, Q141 ) -> 1 | S141: =_xlfn.IFS(D$2=X$4, X141, D$2=Y$4, Y141,D$2=Z$4, Z141,D$2=AA$4, AA141) -> 3 | T141: 3 | U141: =IF(R141=1, _xlfn.IFNA(VLOOKUP(Q141, 'Allocation Change Graph'!BF$7:BF$20, 2, FALSE), 0), 0) -> 0 | V141: 0.9 | W141: 2.7 | Z141: 3 | AA141: 3 | AD141: 3 | AE141: 0 | AF141: 0 | AG141: 0 | AH141: 0 | AI141: 0 | AJ141: 0 | AK141: 3 | AL141: 3 | AM141: 3 | AS141: 0 | AT141: 3
C142: University Wide | D142: La Jolla Campus | E142: East Campus | F142: Health Sciences East | G142: Surface Lot | H142: P752 | I142: - | J142: Accessible | M142: Yes | N142: Yes | P142: =IF(G142="Surface Lot", H142, G142) -> P752 | Q142: P752 Accessible | R142: =COUNTIF(Q$5:Q142, Q142 ) -> 1 | S142: =_xlfn.IFS(D$2=X$4, X142, D$2=Y$4, Y142,D$2=Z$4, Z142,D$2=AA$4, AA142) -> 4 | T142: 4 | U142: =IF(R142=1, _xlfn.IFNA(VLOOKUP(Q142, 'Allocation Change Graph'!BF$7:BF$20, 2, FALSE), 0), 0) -> 0 | V142: 0.9 | W142: 3.6 | Z142: 0 | AA142: =2+2 -> 4 | AD142: 3 | AE142: 2 | AF142: 3 | AG142: 3 | AH142: 3 | AI142: 3 | AJ142: 3 | AK142: 2 | AL142: 2 | AM142: 3 | AS142: 2 | AT142: 3
C143: University Wide | D143: La Jolla Campus | E143: East Campus | F143: Health Sciences East | G143: Surface Lot | H143: P752 | I143: - | J143: Accessible (Van) | M143: Yes | N143: Yes | P143: P752 | Q143: P752 Accessible (Van) | R143: =COUNTIF(Q$5:Q143, Q143 ) -> 1 | S143: =_xlfn.IFS(D$2=X$4, X143, D$2=Y$4, Y143,D$2=Z$4, Z143,D$2=AA$4, AA143) -> 2 | T143: 2 | U143: =IF(R143=1, _xlfn.IFNA(VLOOKUP(Q143, 'Allocation Change Graph'!BF$7:BF$20, 2, FALSE), 0), 0) -> 0 | V143: 0.9 | W143: 1.8 | Z143: 2 | AA143: 2 | AD143: 0 | AE143: 0 | AF143: 0 | AG143: 0 | AH143: 0 | AI143: 0 | AJ143: 0 | AK143: 0 | AL143: 0 | AM143: 0 | AS143: 0 | AT143: 0
C144: University Wide | D144: La Jolla Campus | E144: East Campus | F144: Health Sciences East | G144: Surface Lot | H144: P752 | I144: - | J144: Allocated | K144: Physician On Call | M144: Yes | N144: Yes | P144: P752 | Q144: P752 Allocated Physician On Call | R144: =COUNTIF(Q$5:Q144, Q144 ) -> 1 | S144: =_xlfn.IFS(D$2=X$4, X144, D$2=Y$4, Y144,D$2=Z$4, Z144,D$2=AA$4, AA144) -> 4 | T144: 4 | U144: =IF(R144=1, _xlfn.IFNA(VLOOKUP(Q144, 'Allocation Change Graph'!BF$7:BF$20, 2, FALSE), 0), 0) -> 0 | V144: 0.9 | W144: 3.6 | Z144: 4 | AA144: 4 | AD144: 2 | AE144: 2 | AF144: 0 | AG144: 1 | AH144: 2 | AI144: 2 | AJ144: 1 | AK144: 0 | AL144: 2 | AM144: 2 | AS144: 0 | AT144: 2
C145: University Wide | D145: La Jolla Campus | E145: East Campus | F145: Health Sciences East | G145: Surface Lot | H145: P752 | I145: - | J145: Reserved | K145: Valet | M145: Yes | N145: Yes | P145: P752 | Q145: P752 Reserved Valet | R145: =COUNTIF(Q$5:Q145, Q145 ) -> 1 | S145: =_xlfn.IFS(D$2=X$4, X145, D$2=Y$4, Y145,D$2=Z$4, Z145,D$2=AA$4, AA145) -> 28 | T145: 28 | U145: =IF(R145=1, _xlfn.IFNA(VLOOKUP(Q145, 'Allocation Change Graph'!BF$7:BF$20, 2, FALSE), 0), 0) -> 0 | V145: 0.9 | W145: 25.2 | Z145: 23 | AA145: =6+22 -> 28 | AD145: 2 | AE145: 2 | AF145: 0 | AG145: 1 | AH145: 2 | AI145: 2 | AJ145: 1 | AK145: 0 | AL145: 2 | AM145: 2 | AS145: 0 | AT145: 2
C146: University Wide | D146: La Jolla Campus | E146: East Campus | F146: Health Sciences East | G146: Surface Lot | H146: P752 | I146: - | J146: Reserved | M146: Yes | N146: Yes | P146: P752 | Q146: P752 Reserved | R146: =COUNTIF(Q$5:Q146, Q146 ) -> 1 | S146: =_xlfn.IFS(D$2=X$4, X146, D$2=Y$4, Y146,D$2=Z$4, Z146,D$2=AA$4, AA146) -> 10 | T146: 10 | U146: =IF(R146=1, _xlfn.IFNA(VLOOKUP(Q146, 'Allocation Change Graph'!BF$7:BF$20, 2, FALSE), 0), 0) -> 0 | V146: 0.9 | W146: 9 | Z146: 1 | AA146: =9+1 -> 10 | AD146: 1 | AE146: 0 | AF146: 0 | AG146: 0 | AH146: 0 | AI146: 0 | AJ146: 0 | AK146: 0 | AL146: 0 | AM146: 0 | AS146: 0 | AT146: 1
C147: University Wide | D147: La Jolla Campus | E147: East Campus | F147: Health Sciences East | G147: Surface Lot | H147: P753 | I147: - | J147: Accessible | M147: Yes | N147: Yes | P147: P753 | Q147: P753 Accessible | R147: =COUNTIF(Q$5:Q147, Q147 ) -> 1 | S147: =_xlfn.IFS(D$2=X$4, X147, D$2=Y$4, Y147,D$2=Z$4, Z147,D$2=AA$4, AA147) -> 0 | T147: 0 | U147: =IF(R147=1, _xlfn.IFNA(VLOOKUP(Q147, 'Allocation Change Graph'!BF$7:BF$20, 2, FALSE), 0), 0) -> 0 | V147: 0.9 | W147: 0 | Z147: 0 | AA147: 0 | AD147: 0 | AE147: 0 | AF147: 0 | AG147: 0 | AH147: 0 | AI147: 0 | AJ147: 0 | AK147: 0 | AL147: 0 | AM147: 0 | AS147: =MIN($AB147:$AR147)+U147 -> 0 | AT147: 0
C148: University Wide | D148: La Jolla Campus | E148: East Campus | F148: Health Sciences East | G148: Surface Lot | H148: P753 | I148: - | J148: Accessible (Van) | M148: Yes | N148: Yes | P148: P753 | Q148: P753 Accessible (Van) | R148: =COUNTIF(Q$5:Q148, Q148 ) -> 1 | S148: =_xlfn.IFS(D$2=X$4, X148, D$2=Y$4, Y148,D$2=Z$4, Z148,D$2=AA$4, AA148) -> 2 | T148: 2 | U148: =IF(R148=1, _xlfn.IFNA(VLOOKUP(Q148, 'Allocation Change Graph'!BF$7:BF$20, 2, FALSE), 0), 0) -> 0 | V148: 0.9 | W148: 1.8 | Z148: 2 | AA148: 2 | AD148: 0 | AE148: 0 | AF148: 0 | AG148: 0 | AH148: 0 | AI148: 0 | AJ148: 0 | AK148: 0 | AL148: 0 | AM148: 0 | AS148: 0 | AT148: 0
C149: University Wide | D149: La Jolla Campus | E149: East Campus | F149: Health Sciences East | G149: Surface Lot | H149: P753 | I149: - | J149: Reserved | M149: Yes | N149: Yes | P149: P753 | Q149: P753 Reserved | R149: =COUNTIF(Q$5:Q149, Q149 ) -> 1 | S149: =_xlfn.IFS(D$2=X$4, X149, D$2=Y$4, Y149,D$2=Z$4, Z149,D$2=AA$4, AA149) -> 32 | T149: 32 | U149: =IF(R149=1, _xlfn.IFNA(VLOOKUP(Q149, 'Allocation Change Graph'!BF$7:BF$20, 2, FALSE), 0), 0) -> 0 | V149: 0.9 | W149: 28.8 | Z149: 32 | AA149: 32 | AD149: 21 | AE149: 18 | AF149: 14 | AG149: 14 | AH149: 13 | AI149: 10 | AJ149: 10 | AK149: 10 | AL149: 9 | AM149: 12 | AS149: 9 | AT149: 21
C150: University Wide | D150: La Jolla Campus | E150: East Campus | F150: Health Sciences East | G150: Surface Lot | H150: P757 | I150: - | J150: Loading | K150: Shiley Surgery | L150: 20 | M150: Yes | N150: Yes | P150: P757 | Q150: P757 Loading Shiley Surgery 20 | R150: =COUNTIF(Q$5:Q150, Q150 ) -> 1 | S150: =_xlfn.IFS(D$2=X$4, X150, D$2=Y$4, Y150,D$2=Z$4, Z150,D$2=AA$4, AA150) -> 4 | T150: 4 | U150: =IF(R150=1, _xlfn.IFNA(VLOOKUP(Q150, 'Allocation Change Graph'!BF$7:BF$20, 2, FALSE), 0), 0) -> 0 | V150: 0.9 | W150: 3.6 | Z150: 0 | AA150: 4 | AD150: 3 | AE150: 2 | AF150: 2 | AG150: 2 | AH150: 1 | AI150: 1 | AJ150: 1 | AK150: 1 | AL150: 1 | AM150: 1 | AS150: 1 | AT150: 3
C151: University Wide | D151: La Jolla Campus | E151: East Campus | F151: Health Sciences East | G151: Surface Lot | H151: P757 | I151: - | J151: Reserved | M151: Yes | N151: Yes | P151: P757 | Q151: P757 Reserved | R151: =COUNTIF(Q$5:Q151, Q151 ) -> 1 | S151: =_xlfn.IFS(D$2=X$4, X151, D$2=Y$4, Y151,D$2=Z$4, Z151,D$2=AA$4, AA151) -> 7 | T151: 7 | U151: =IF(R151=1, _xlfn.IFNA(VLOOKUP(Q151, 'Allocation Change Graph'!BF$7:BF$20, 2, FALSE), 0), 0) -> 0 | V151: 0.9 | W151: 6.3 | Z151: 0 | AA151: 7 | AD151: 0 | AE151: 0 | AF151: 0 | AG151: 0 | AH151: 0 | AI151: 0 | AJ151: 0 | AK151: 0 | AL151: 0 | AM151: 0 | AS151: 0 | AT151: 0
C152: University Wide | D152: La Jolla Campus | E152: East Campus | F152: Health Sciences East | G152: Surface Lot | H152: P757 | I152: - | J152: UC Vehicle | M152: Yes | N152: Yes | P152: P757 | Q152: P757 UC Vehicle | R152: =COUNTIF(Q$5:Q152, Q152 ) -> 1 | S152: =_xlfn.IFS(D$2=X$4, X152, D$2=Y$4, Y152,D$2=Z$4, Z152,D$2=AA$4, AA152) -> 2 | T152: 2 | U152: =IF(R152=1, _xlfn.IFNA(VLOOKUP(Q152, 'Allocation Change Graph'!BF$7:BF$20, 2, FALSE), 0), 0) -> 0 | V152: 0.9 | W152: 1.8 | Z152: 0 | AA152: 2 | AD152: 0 | AE152: 0 | AF152: 0 | AG152: 0 | AH152: 0 | AI152: 0 | AJ152: 0 | AK152: 0 | AL152: 0 | AM152: 0 | AS152: 0 | AT152: 0
C153: University Wide | D153: La Jolla Campus | E153: East Campus | F153: Health Sciences East | G153: Surface Lot | H153: P758 | I153: - | J153: Accessible | M153: Yes | N153: Yes | P153: P758 | Q153: P758 Accessible | R153: =COUNTIF(Q$5:Q153, Q153 ) -> 1 | S153: =_xlfn.IFS(D$2=X$4, X153, D$2=Y$4, Y153,D$2=Z$4, Z153,D$2=AA$4, AA153) -> 2 | T153: 2 | U153: =IF(R153=1, _xlfn.IFNA(VLOOKUP(Q153, 'Allocation Change Graph'!BF$7:BF$20, 2, FALSE), 0), 0) -> 0 | V153: 0.9 | W153: 1.8 | Z153: 2 | AA153: 2 | AD153: 0 | AE153: 0 | AF153: 0 | AG153: 1 | AH153: 1 | AI153: 1 | AJ153: 0 | AK153: 0 | AL153: 1 | AM153: 1 | AS153: 0 | AT153: 1
C154: University Wide | D154: La Jolla Campus | E154: East Campus | F154: Health Sciences East | G154: Surface Lot | H154: P758 | I154: - | J154: Accessible (Van) | M154: Yes | N154: Yes | P154: P758 | Q154: P758 Accessible (Van) | R154: =COUNTIF(Q$5:Q154, Q154 ) -> 1 | S154: =_xlfn.IFS(D$2=X$4, X154, D$2=Y$4, Y154,D$2=Z$4, Z154,D$2=AA$4, AA154) -> 0 | T154: 0 | U154: =IF(R154=1, _xlfn.IFNA(VLOOKUP(Q154, 'Allocation Change Graph'!BF$7:BF$20, 2, FALSE), 0), 0) -> 0 | V154: 0.9 | W154: 0 | AD154: 0 | AE154: 0 | AF154: 0 | AG154: 0 | AH154: 0 | AI154: 0 | AJ154: 0 | AK154: 0 | AL154: 0 | AM154: 0 | AS154: 0 | AT154: 0
C155: University Wide | D155: La Jolla Campus | E155: East Campus | F155: Health Sciences East | G155: Surface Lot | H155: P758 | I155: - | J155: Motorcycle Section | M155: Yes | N155: Yes | P155: P758 | Q155: P758 Motorcycle Section | R155: =COUNTIF(Q$5:Q155, Q155 ) -> 1 | S155: =_xlfn.IFS(D$2=X$4, X155, D$2=Y$4, Y155,D$2=Z$4, Z155,D$2=AA$4, AA155) -> 0 | T155: 0 | U155: =IF(R155=1, _xlfn.IFNA(VLOOKUP(Q155, 'Allocation Change Graph'!BF$7:BF$20, 2, FALSE), 0), 0) -> 0 | V155: 0.9 | W155: 0 | Z155: 0 | AA155: 0 | AD155: 0 | AE155: 0 | AF155: 0 | AG155: 0 | AH155: 0 | AI155: 0 | AJ155: 0 | AK155: 0 | AL155: 0 | AM155: 0 | AS155: 0 | AT155: 0
C156: University Wide | D156: La Jolla Campus | E156: East Campus | F156: Health Sciences East | G156: Surface Lot | H156: P758 | I156: - | J156: Reserved | M156: Yes | N156: Yes | P156: P758 | Q156: P758 Reserved | R156: =COUNTIF(Q$5:Q156, Q156 ) -> 1 | S156: =_xlfn.IFS(D$2=X$4, X156, D$2=Y$4, Y156,D$2=Z$4, Z156,D$2=AA$4, AA156) -> 5 | T156: 5 | U156: =IF(R156=1, _xlfn.IFNA(VLOOKUP(Q156, 'Allocation Change Graph'!BF$7:BF$20, 2, FALSE), 0), 0) -> 0 | V156: 0.9 | W156: 4.5 | Z156: 5 | AA156: 5 | AD156: 2 | AE156: 1 | AF156: 1 | AG156: 3 | AH156: 3 | AI156: 2 | AJ156: 2 | AK156: 2 | AL156: 3 | AM156: 3 | AS156: 1 | AT156: 3
C157: University Wide | D157: La Jolla Campus | E157: East Campus | F157: Health Sciences East | G157: Surface Lot | H157: P759 | I157: - | J157: A | K157: Physician A | M157: Yes | N157: Yes | O157: Yes | P157: P759 | Q157: P759 A Physician A | R157: =COUNTIF(Q$5:Q157, Q157 ) -> 1 | S157: =_xlfn.IFS(D$2=X$4, X157, D$2=Y$4, Y157,D$2=Z$4, Z157,D$2=AA$4, AA157) -> 87 | T157: 87 | U157: =IF(R157=1, _xlfn.IFNA(VLOOKUP(Q157, 'Allocation Change Graph'!BF$7:BF$20, 2, FALSE), 0), 0) -> 0 | V157: 0.9 | W157: 78.3 | Z157: 87 | AA157: 87 | AD157: 41 | AE157: 32 | AF157: 27 | AG157: 25 | AH157: 22 | AI157: 31 | AJ157: 2 | AK157: 8 | AL157: 20 | AM157: 24 | AS157: 2 | AT157: 41
C158: University Wide | D158: La Jolla Campus | E158: East Campus | F158: Health Sciences East | G158: Surface Lot | H158: P759 | I158: - | J158: Accessible | M158: Yes | N158: Yes | P158: P759 | Q158: P759 Accessible | R158: =COUNTIF(Q$5:Q158, Q158 ) -> 1 | S158: =_xlfn.IFS(D$2=X$4, X158, D$2=Y$4, Y158,D$2=Z$4, Z158,D$2=AA$4, AA158) -> 4 | T158: 4 | U158: =IF(R158=1, _xlfn.IFNA(VLOOKUP(Q158, 'Allocation Change Graph'!BF$7:BF$20, 2, FALSE), 0), 0) -> 0 | V158: 0.9 | W158: 3.6 | Z158: 4 | AA158: 4 | AD158: 1 | AE158: 1 | AF158: 1 | AG158: 2 | AH158: 2 | AI158: 2 | AJ158: 0 | AK158: 2 | AL158: 2 | AM158: 2 | AS158: 0 | AT158: 2
C159: University Wide | D159: La Jolla Campus | E159: East Campus | F159: Health Sciences East | G159: Surface Lot | H159: P759 | I159: - | J159: Accessible (Van) | M159: Yes | N159: Yes | P159: P759 | Q159: P759 Accessible (Van) | R159: =COUNTIF(Q$5:Q159, Q159 ) -> 1 | S159: =_xlfn.IFS(D$2=X$4, X159, D$2=Y$4, Y159,D$2=Z$4, Z159,D$2=AA$4, AA159) -> 5 | T159: 5 | U159: =IF(R159=1, _xlfn.IFNA(VLOOKUP(Q159, 'Allocation Change Graph'!BF$7:BF$20, 2, FALSE), 0), 0) -> 0 | V159: 0.9 | W159: 4.5 | Z159: 5 | AA159: 5 | AD159: 2 | AE159: 2 | AF159: 2 | AG159: 3 | AH159: 4 | AI159: 3 | AJ159: 0 | AK159: 0 | AL159: 1 | AM159: 2 | AS159: 0 | AT159: 4
C160: University Wide | D160: La Jolla Campus | E160: East Campus | F160: Health Sciences East | G160: Surface Lot | H160: P759 | I160: - | J160: Motorcycle Section | M160: Yes | N160: Yes | P160: P759 | Q160: P759 Motorcycle Section | R160: =COUNTIF(Q$5:Q160, Q160 ) -> 1 | S160: =_xlfn.IFS(D$2=X$4, X160, D$2=Y$4, Y160,D$2=Z$4, Z160,D$2=AA$4, AA160) -> 1 | T160: 1 | U160: =IF(R160=1, _xlfn.IFNA(VLOOKUP(Q160, 'Allocation Change Graph'!BF$7:BF$20, 2, FALSE), 0), 0) -> 0 | V160: 0.9 | W160: 0.9 | Z160: 1 | AA160: 1 | AD160: 1 | AE160: 1 | AF160: 0 | AG160: 0 | AH160: 0 | AI160: 1 | AJ160: 1 | AK160: 1 | AL160: 1 | AM160: 1 | AS160: 0 | AT160: 1
C161: University Wide | D161: La Jolla Campus | E161: East Campus | F161: Health Sciences East | G161: Surface Lot | H161: P759 | I161: - | J161: Reserved | K161: Alzheimer's Disease Research Center Patient | M161: Yes | N161: Yes | P161: P759 | Q161: P759 Reserved Alzheimer's Disease Research Center Patient | R161: =COUNTIF(Q$5:Q161, Q161 ) -> 1 | S161: =_xlfn.IFS(D$2=X$4, X161, D$2=Y$4, Y161,D$2=Z$4, Z161,D$2=AA$4, AA161) -> 10 | T161: 10 | U161: =IF(R161=1, _xlfn.IFNA(VLOOKUP(Q161, 'Allocation Change Graph'!BF$7:BF$20, 2, FALSE), 0), 0) -> 0 | V161: 0.9 | W161: 9 | Z161: 10 | AA161: 10 | AD161: 6 | AE161: 4 | AF161: 3 | AG161: 3 | AH161: 5 | AI161: 5 | AJ161: 5 | AK161: 5 | AL161: 8 | AM161: 9 | AS161: 3 | AT161: 9
C162: University Wide | D162: La Jolla Campus | E162: East Campus | F162: Health Sciences East | G162: Surface Lot | H162: P759 | I162: - | J162: Reserved | K162: Brain Health and Memory Disorders | M162: Yes | N162: Yes | P162: P759 | Q162: P759 Reserved Brain Health and Memory Disorders | R162: =COUNTIF(Q$5:Q162, Q162 ) -> 1 | S162: =_xlfn.IFS(D$2=X$4, X162, D$2=Y$4, Y162,D$2=Z$4, Z162,D$2=AA$4, AA162) -> 5 | T162: 5 | U162: =IF(R162=1, _xlfn.IFNA(VLOOKUP(Q162, 'Allocation Change Graph'!BF$7:BF$20, 2, FALSE), 0), 0) -> 0 | V162: 0.9 | W162: 4.5 | Z162: 5 | AA162: 5 | AD162: 2 | AE162: 2 | AF162: 3 | AG162: 3 | AH162: 3 | AI162: 3 | AJ162: 3 | AK162: 3 | AL162: 3 | AM162: 4 | AS162: 2 | AT162: 4
C163: University Wide | D163: La Jolla Campus | E163: East Campus | F163: Health Sciences East | G163: Surface Lot | H163: P759 | I163: - | J163: Reserved | K163: Huntington's Disease Clinical Research Center | M163: Yes | N163: Yes | P163: P759 | Q163: P759 Reserved Huntington's Disease Clinical Research Center | R163: =COUNTIF(Q$5:Q163, Q163 ) -> 1 | S163: =_xlfn.IFS(D$2=X$4, X163, D$2=Y$4, Y163,D$2=Z$4, Z163,D$2=AA$4, AA163) -> 2 | T163: 2 | U163: =IF(R163=1, _xlfn.IFNA(VLOOKUP(Q163, 'Allocation Change Graph'!BF$7:BF$20, 2, FALSE), 0), 0) -> 0 | V163: 0.9 | W163: 1.8 | Z163: 2 | AA163: 2 | AD163: 1 | AE163: 1 | AF163: 1 | AG163: 1 | AH163: 2 | AI163: 2 | AJ163: 2 | AK163: 2 | AL163: 2 | AM163: 2 | AS163: 1 | AT163: 2
C164: University Wide | D164: La Jolla Campus | E164: East Campus | F164: Health Sciences East | G164: Surface Lot | H164: P761 | I164: - | J164: UC Vehicle | M164: Yes | N164: Yes | P164: P761 | Q164: P761 UC Vehicle | R164: =COUNTIF(Q$5:Q164, Q164 ) -> 1 | S164: =_xlfn.IFS(D$2=X$4, X164, D$2=Y$4, Y164,D$2=Z$4, Z164,D$2=AA$4, AA164) -> 3 | T164: 3 | U164: =IF(R164=1, _xlfn.IFNA(VLOOKUP(Q164, 'Allocation Change Graph'!BF$7:BF$20, 2, FALSE), 0), 0) -> 0 | V164: 0.9 | W164: 2.7 | Z164: 3 | AA164: 3 | AD164: 2 | AE164: 1 | AF164: 0 | AG164: 0 | AH164: 0 | AI164: 1 | AJ164: 1 | AK164: 1 | AL164: 2 | AM164: 3 | AS164: 0 | AT164: 3
C165: University Wide | D165: La Jolla Campus | E165: East Campus | F165: Health Sciences East | G165: Surface Lot | H165: P762 | I165: - | J165: Loading | M165: Yes | N165: Yes | P165: P762 | Q165: P762 Loading | R165: =COUNTIF(Q$5:Q165, Q165 ) -> 1 | S165: =_xlfn.IFS(D$2=X$4, X165, D$2=Y$4, Y165,D$2=Z$4, Z165,D$2=AA$4, AA165) -> 1 | T165: 1 | U165: =IF(R165=1, _xlfn.IFNA(VLOOKUP(Q165, 'Allocation Change Graph'!BF$7:BF$20, 2, FALSE), 0), 0) -> 0 | V165: 0.9 | W165: 0.9 | Z165: 1 | AA165: 1 | AD165: 0 | AE165: 0 | AF165: 1 | AG165: 0 | AH165: 1 | AI165: 1 | AJ165: 1 | AK165: 0 | AL165: 1 | AM165: 1 | AS165: 0 | AT165: 1
C166: University Wide | D166: La Jolla Campus | E166: East Campus | F166: Health Sciences East | G166: Surface Lot | H166: P762 | I166: - | J166: Service Yard | M166: Yes | N166: Yes | P166: P762 | Q166: P762 Service Yard | R166: =COUNTIF(Q$5:Q166, Q166 ) -> 1 | S166: =_xlfn.IFS(D$2=X$4, X166, D$2=Y$4, Y166,D$2=Z$4, Z166,D$2=AA$4, AA166) -> 3 | T166: 3 | U166: =IF(R166=1, _xlfn.IFNA(VLOOKUP(Q166, 'Allocation Change Graph'!BF$7:BF$20, 2, FALSE), 0), 0) -> 0 | V166: 0.9 | W166: 2.7 | Z166: 3 | AA166: 3 | AD166: 1 | AE166: 0 | AF166: 0 | AG166: 0 | AH166: 1 | AI166: 1 | AJ166: 1 | AK166: 1 | AL166: 1 | AM166: 0 | AS166: 0 | AT166: 1
C167: University Wide | D167: La Jolla Campus | E167: East Campus | F167: Science Research Park | G167: Surface Lot | H167: P782 | I167: - | J167: SS ($3.25) | M167: Yes | N167: Yes | O167: Yes | P167: P782 | Q167: P782 SS ($3.25) | R167: =COUNTIF(Q$5:Q167, Q167 ) -> 1 | S167: =_xlfn.IFS(D$2=X$4, X167, D$2=Y$4, Y167,D$2=Z$4, Z167,D$2=AA$4, AA167) -> 216 | T167: 216 | U167: =IF(R167=1, _xlfn.IFNA(VLOOKUP(Q167, 'Allocation Change Graph'!BF$7:BF$20, 2, FALSE), 0), 0) -> 0 | V167: 0.9 | W167: 194.4 | Z167: 216 | AA167: 216 | AD167: 142 | AE167: 93 | AF167: 67 | AG167: 75 | AH167: 83 | AI167: 84 | AJ167: 52 | AK167: 71 | AL167: 114 | AM167: 133 | AS167: 52 | AT167: 142
C168: University Wide | D168: La Jolla Campus | E168: East Campus | F168: Health Sciences East | G168: Surface Lot | H168: P784 | I168: - | J168: Accessible | M168: Yes | N168: Yes | P168: P784 | Q168: P784 Accessible | R168: =COUNTIF(Q$5:Q168, Q168 ) -> 1 | S168: =_xlfn.IFS(D$2=X$4, X168, D$2=Y$4, Y168,D$2=Z$4, Z168,D$2=AA$4, AA168) -> 6 | T168: 6 | U168: =IF(R168=1, _xlfn.IFNA(VLOOKUP(Q168, 'Allocation Change Graph'!BF$7:BF$20, 2, FALSE), 0), 0) -> 0 | V168: 0.9 | W168: 5.4 | Z168: 6 | AA168: 6 | AD168: 4 | AE168: 2 | AF168: 2 | AG168: 1 | AH168: 1 | AI168: 3 | AJ168: 0 | AK168: 3 | AL168: 3 | AM168: 4 | AS168: 0 | AT168: 4
C169: University Wide | D169: La Jolla Campus | E169: East Campus | F169: Health Sciences East | G169: Surface Lot | H169: P784 | I169: - | J169: Accessible (Van) | M169: Yes | N169: Yes | P169: P784 | Q169: P784 Accessible (Van) | R169: =COUNTIF(Q$5:Q169, Q169 ) -> 1 | S169: =_xlfn.IFS(D$2=X$4, X169, D$2=Y$4, Y169,D$2=Z$4, Z169,D$2=AA$4, AA169) -> 12 | T169: 12 | U169: =IF(R169=1, _xlfn.IFNA(VLOOKUP(Q169, 'Allocation Change Graph'!BF$7:BF$20, 2, FALSE), 0), 0) -> 0 | V169: 0.9 | W169: 10.8 | Z169: 12 | AA169: 12 | AD169: 7 | AE169: 6 | AF169: 4 | AG169: 4 | AH169: 5 | AI169: 5 | AJ169: 0 | AK169: 1 | AL169: 1 | AM169: 3 | AS169: 0 | AT169: 7
C170: University Wide | D170: La Jolla Campus | E170: East Campus | F170: Health Sciences East | G170: Surface Lot | H170: P784 | I170: - | J170: B | M170: Yes | N170: Yes | O170: Yes | P170: P784 | Q170: P784 B | R170: =COUNTIF(Q$5:Q170, Q170 ) -> 1 | S170: =_xlfn.IFS(D$2=X$4, X170, D$2=Y$4, Y170,D$2=Z$4, Z170,D$2=AA$4, AA170) -> 81 | T170: 81 | U170: =IF(R170=1, _xlfn.IFNA(VLOOKUP(Q170, 'Allocation Change Graph'!BF$7:BF$20, 2, FALSE), 0), 0) -> 0 | V170: 0.9 | W170: 72.9 | Z170: 81 | AA170: 81 | AD170: 53 | AE170: 34 | AF170: 22 | AG170: 28 | AH170: 33 | AI170: 36 | AJ170: 2 | AK170: 9 | AL170: 3 | AM170: 27 | AS170: 2 | AT170: 53
C171: University Wide | D171: La Jolla Campus | E171: East Campus | F171: Health Sciences East | G171: Surface Lot | H171: P784 | I171: - | J171: Reserved | K171: Valet | M171: Yes | N171: Yes | P171: P784 | Q171: P784 Reserved Valet | R171: =COUNTIF(Q$5:Q171, Q171 ) -> 1 | S171: =_xlfn.IFS(D$2=X$4, X171, D$2=Y$4, Y171,D$2=Z$4, Z171,D$2=AA$4, AA171) -> 9 | T171: 9 | U171: =IF(R171=1, _xlfn.IFNA(VLOOKUP(Q171, 'Allocation Change Graph'!BF$7:BF$20, 2, FALSE), 0), 0) -> 0 | V171: 0.9 | W171: 8.1 | Z171: 9 | AA171: 9 | AD171: 6 | AE171: 4 | AF171: 3 | AG171: 3 | AH171: 2 | AI171: 5 | AJ171: 7 | AK171: 6 | AL171: 7 | AM171: 9 | AS171: 2 | AT171: 9
C172: University Wide | D172: La Jolla Campus | E172: East Campus | F172: Health Sciences East | G172: Surface Lot | H172: P785 | I172: - | J172: Accessible | M172: Yes | N172: Yes | P172: P785 | Q172: P785 Accessible | R172: =COUNTIF(Q$5:Q172, Q172 ) -> 1 | S172: =_xlfn.IFS(D$2=X$4, X172, D$2=Y$4, Y172,D$2=Z$4, Z172,D$2=AA$4, AA172) -> 0 | T172: 0 | U172: =IF(R172=1, _xlfn.IFNA(VLOOKUP(Q172, 'Allocation Change Graph'!BF$7:BF$20, 2, FALSE), 0), 0) -> 0 | V172: 0.9 | W172: 0 | Z172: 0 | AA172: 0 | AD172: 0 | AE172: 0 | AF172: 0 | AG172: 0 | AH172: 0 | AI172: 0 | AJ172: 0 | AK172: 0 | AL172: 0 | AM172: 0 | AS172: 0 | AT172: 0
C173: University Wide | D173: La Jolla Campus | E173: East Campus | F173: Health Sciences East | G173: Surface Lot | H173: P785 | I173: - | J173: Accessible (Van) | M173: Yes | N173: Yes | P173: P785 | Q173: P785 Accessible (Van) | R173: =COUNTIF(Q$5:Q173, Q173 ) -> 1 | S173: =_xlfn.IFS(D$2=X$4, X173, D$2=Y$4, Y173,D$2=Z$4, Z173,D$2=AA$4, AA173) -> 8 | T173: 8 | U173: =IF(R173=1, _xlfn.IFNA(VLOOKUP(Q173, 'Allocation Change Graph'!BF$7:BF$20, 2, FALSE), 0), 0) -> 0 | V173: 0.9 | W173: 7.2 | Z173: 8 | AA173: 8 | AD173: 5 | AE173: 4 | AF173: 4 | AG173: 3 | AH173: 3 | AI173: 5 | AJ173: 0 | AK173: 1 | AL173: 3 | AM173: 5 | AS173: 0 | AT173: 5
C174: University Wide | D174: La Jolla Campus | E174: East Campus | F174: Health Sciences East | G174: Surface Lot | H174: P785 | I174: - | J174: B | M174: Yes | N174: Yes | O174: Yes | P174: P785 | Q174: P785 B | R174: =COUNTIF(Q$5:Q174, Q174 ) -> 1 | S174: =_xlfn.IFS(D$2=X$4, X174, D$2=Y$4, Y174,D$2=Z$4, Z174,D$2=AA$4, AA174) -> 384 | T174: 384 | U174: =IF(R174=1, _xlfn.IFNA(VLOOKUP(Q174, 'Allocation Change Graph'!BF$7:BF$20, 2, FALSE), 0), 0) -> 0 | V174: 0.9 | W174: 345.6 | Z174: 384 | AA174: 384 | AD174: 235 | AE174: 182 | AF174: 131 | AG174: 103 | AH174: 75 | AI174: 86 | AJ174: 31 | AK174: 22 | AL174: 86 | AM174: 130 | AS174: 22 | AT174: 235
C175: University Wide | D175: Medical Center Hillcrest | E175: Medical Center Hillcrest | F175: Medical Center Hillcrest | G175: Arbor | H175: P901 | I175: L1 | J175: Visitor | M175: Yes | N175: Yes | P175: Arbor | Q175: Arbor Visitor | R175: =COUNTIF(Q$5:Q175, Q175 ) -> 1 | S175: =_xlfn.IFS(D$2=X$4, X175, D$2=Y$4, Y175,D$2=Z$4, Z175,D$2=AA$4, AA175) -> 41 | T175: 263 | U175: =IF(R175=1, _xlfn.IFNA(VLOOKUP(Q175, 'Allocation Change Graph'!BF$7:BF$20, 2, FALSE), 0), 0) -> 0 | V175: 0.85 | W175: 223.55 | Z175: 41 | AA175: 41 | AD175: 147 | AE175: 110 | AF175: 62 | AG175: 54 | AH175: 44 | AI175: 58 | AJ175: 52 | AK175: 50 | AL175: 72 | AM175: 81 | AS175: 44 | AT175: 147
C176: University Wide | D176: Medical Center Hillcrest | E176: Medical Center Hillcrest | F176: Medical Center Hillcrest | G176: Arbor | H176: P902 | I176: L2 | J176: Visitor | M176: Yes | P176: Arbor | Q176: Arbor Visitor | R176: =COUNTIF(Q$5:Q176, Q176 ) -> 2 | S176: =_xlfn.IFS(D$2=X$4, X176, D$2=Y$4, Y176,D$2=Z$4, Z176,D$2=AA$4, AA176) -> 41 | U176: =IF(R176=1, _xlfn.IFNA(VLOOKUP(Q176, 'Allocation Change Graph'!BF$7:BF$20, 2, FALSE), 0), 0) -> 0 | Z176: 41 | AA176: 41 | AD176: 0 | AE176: 0 | AF176: 0 | AG176: 0 | AH176: 0 | AI176: 0 | AJ176: 0 | AK176: 0 | AL176: 0 | AM176: 0 | AS176: 0 | AT176: 0
C177: University Wide | D177: Medical Center Hillcrest | E177: Medical Center Hillcrest | F177: Medical Center Hillcrest | G177: Arbor | H177: P903 | I177: L3 | J177: Visitor | M177: Yes | P177: Arbor | Q177: Arbor Visitor | R177: =COUNTIF(Q$5:Q177, Q177 ) -> 3 | S177: =_xlfn.IFS(D$2=X$4, X177, D$2=Y$4, Y177,D$2=Z$4, Z177,D$2=AA$4, AA177) -> 39 | U177: =IF(R177=1, _xlfn.IFNA(VLOOKUP(Q177, 'Allocation Change Graph'!BF$7:BF$20, 2, FALSE), 0), 0) -> 0 | Z177: 39 | AA177: 39 | AD177: 0 | AE177: 0 | AF177: 0 | AG177: 0 | AH177: 0 | AI177: 0 | AJ177: 0 | AK177: 0 | AL177: 0 | AM177: 0 | AS177: 0 | AT177: 0
C178: University Wide | D178: Medical Center Hillcrest | E178: Medical Center Hillcrest | F178: Medical Center Hillcrest | G178: Arbor | H178: P904 | I178: L4 | J178: Visitor | M178: Yes | P178: Arbor | Q178: Arbor Visitor | R178: =COUNTIF(Q$5:Q178, Q178 ) -> 4 | S178: =_xlfn.IFS(D$2=X$4, X178, D$2=Y$4, Y178,D$2=Z$4, Z178,D$2=AA$4, AA178) -> 39 | U178: =IF(R178=1, _xlfn.IFNA(VLOOKUP(Q178, 'Allocation Change Graph'!BF$7:BF$20, 2, FALSE), 0), 0) -> 0 | Z178: 39 | AA178: 39 | AD178: 0 | AE178: 0 | AF178: 0 | AG178: 0 | AH178: 0 | AI178: 0 | AJ178: 0 | AK178: 0 | AL178: 0 | AM178: 0 | AS178: 0 | AT178: 0
C179: University Wide | D179: Medical Center Hillcrest | E179: Medical Center Hillcrest | F179: Medical Center Hillcrest | G179: Arbor | H179: P905 | I179: L5 | J179: Visitor | M179: Yes | P179: Arbor | Q179: Arbor Visitor | R179: =COUNTIF(Q$5:Q179, Q179 ) -> 5 | S179: =_xlfn.IFS(D$2=X$4, X179, D$2=Y$4, Y179,D$2=Z$4, Z179,D$2=AA$4, AA179) -> 39 | U179: =IF(R179=1, _xlfn.IFNA(VLOOKUP(Q179, 'Allocation Change Graph'!BF$7:BF$20, 2, FALSE), 0), 0) -> 0 | Z179: 39 | AA179: 39 | AD179: 0 | AE179: 0 | AF179: 0 | AG179: 0 | AH179: 0 | AI179: 0 | AJ179: 0 | AK179: 0 | AL179: 0 | AM179: 0 | AS179: 0 | AT179: 0
C180: University Wide | D180: Medical Center Hillcrest | E180: Medical Center Hillcrest | F180: Medical Center Hillcrest | G180: Arbor | H180: P906 | I180: L6 | J180: Visitor | M180: Yes | P180: Arbor | Q180: Arbor Visitor | R180: =COUNTIF(Q$5:Q180, Q180 ) -> 6 | S180: =_xlfn.IFS(D$2=X$4, X180, D$2=Y$4, Y180,D$2=Z$4, Z180,D$2=AA$4, AA180) -> 39 | U180: =IF(R180=1, _xlfn.IFNA(VLOOKUP(Q180, 'Allocation Change Graph'!BF$7:BF$20, 2, FALSE), 0), 0) -> 0 | Z180: 39 | AA180: 39 | AD180: 0 | AE180: 0 | AF180: 0 | AG180: 0 | AH180: 0 | AI180: 0 | AJ180: 0 | AK180: 0 | AL180: 0 | AM180: 0 | AS180: 0 | AT180: 0
C181: University Wide | D181: Medical Center Hillcrest | E181: Medical Center Hillcrest | F181: Medical Center Hillcrest | G181: Arbor | H181: P907 | I181: L7 | J181: Motorcycle Section | M181: Yes | N181: Yes | P181: Arbor | Q181: Arbor Motorcycle Section | R181: =COUNTIF(Q$5:Q181, Q181 ) -> 1 | S181: =_xlfn.IFS(D$2=X$4, X181, D$2=Y$4, Y181,D$2=Z$4, Z181,D$2=AA$4, AA181) -> 10 | T181: 10 | U181: =IF(R181=1, _xlfn.IFNA(VLOOKUP(Q181, 'Allocation Change Graph'!BF$7:BF$20, 2, FALSE), 0), 0) -> 0 | V181: 0.85 | W181: 8.5 | Z181: 10 | AA181: 10 | AD181: 10 | AE181: 8 | AF181: 9 | AG181: 8 | AH181: 8 | AI181: 9 | AJ181: 8 | AK181: 8 | AL181: 9 | AM181: 8 | AS181: 8 | AT181: 10
C182: University Wide | D182: Medical Center Hillcrest | E182: Medical Center Hillcrest | F182: Medical Center Hillcrest | G182: Arbor | H182: P907 | I182: L7 | J182: Visitor | K182: Patient Visitor Reserved | M182: Yes | N182: Yes | P182: Arbor | Q182: Arbor Visitor Patient Visitor Reserved | R182: =COUNTIF(Q$5:Q182, Q182 ) -> 1 | S182: =_xlfn.IFS(D$2=X$4, X182, D$2=Y$4, Y182,D$2=Z$4, Z182,D$2=AA$4, AA182) -> 4 | T182: 4 | U182: =IF(R182=1, _xlfn.IFNA(VLOOKUP(Q182, 'Allocation Change Graph'!BF$7:BF$20, 2, FALSE), 0), 0) -> 0 | V182: 0.85 | W182: 3.4 | Z182: 4 | AA182: 4 | AD182: 0 | AE182: 0 | AF182: 0 | AG182: 0 | AH182: 1 | AI182: 0 | AJ182: 0 | AK182: 0 | AL182: 0 | AM182: 0 | AS182: 0 | AT182: 1
C183: University Wide | D183: Medical Center Hillcrest | E183: Medical Center Hillcrest | F183: Medical Center Hillcrest | G183: Arbor | H183: P907 | I183: L7 | J183: Visitor | M183: Yes | P183: Arbor | Q183: Arbor Visitor | R183: =COUNTIF(Q$5:Q183, Q183 ) -> 7 | S183: =_xlfn.IFS(D$2=X$4, X183, D$2=Y$4, Y183,D$2=Z$4, Z183,D$2=AA$4, AA183) -> 25 | U183: =IF(R183=1, _xlfn.IFNA(VLOOKUP(Q183, 'Allocation Change Graph'!BF$7:BF$20, 2, FALSE), 0), 0) -> 0 | Z183: 25 | AA183: 25 | AD183: 0 | AE183: 0 | AF183: 0 | AG183: 0 | AH183: 0 | AI183: 0 | AJ183: 0 | AK183: 0 | AL183: 0 | AM183: 0 | AS183: 0 | AT183: 0
C184: University Wide | D184: Medical Center Hillcrest | E184: Medical Center Hillcrest | F184: Medical Center Hillcrest | G184: Arbor | H184: P908 | I184: L8 | J184: Accessible | M184: Yes | N184: Yes | P184: Arbor | Q184: Arbor Accessible | R184: =COUNTIF(Q$5:Q184, Q184 ) -> 1 | S184: =_xlfn.IFS(D$2=X$4, X184, D$2=Y$4, Y184,D$2=Z$4, Z184,D$2=AA$4, AA184) -> 10 | T184: 15 | U184: =IF(R184=1, _xlfn.IFNA(VLOOKUP(Q184, 'Allocation Change Graph'!BF$7:BF$20, 2, FALSE), 0), 0) -> 0 | V184: 0.85 | W184: 12.75 | Z184: 10 | AA184: 10 | AD184: 1 | AE184: 0 | AF184: 0 | AG184: 0 | AH184: 2 | AI184: 3 | AJ184: 2 | AK184: 2 | AL184: 3 | AM184: 3 | AS184: 0 | AT184: 3
C185: University Wide | D185: Medical Center Hillcrest | E185: Medical Center Hillcrest | F185: Medical Center Hillcrest | G185: Arbor | H185: P908 | I185: L8 | J185: Accessible (Van) | M185: Yes | N185: Yes | P185: Arbor | Q185: Arbor Accessible (Van) | R185: =COUNTIF(Q$5:Q185, Q185 ) -> 1 | S185: =_xlfn.IFS(D$2=X$4, X185, D$2=Y$4, Y185,D$2=Z$4, Z185,D$2=AA$4, AA185) -> 0 | T185: 0 | U185: =IF(R185=1, _xlfn.IFNA(VLOOKUP(Q185, 'Allocation Change Graph'!BF$7:BF$20, 2, FALSE), 0), 0) -> 0 | V185: 0.85 | W185: 0 | AD185: 0 | AE185: 0 | AF185: 0 | AG185: 0 | AH185: 0 | AI185: 0 | AJ185: 0 | AK185: 0 | AL185: 0 | AM185: 0 | AS185: 0 | AT185: 0
C186: University Wide | D186: Medical Center Hillcrest | E186: Medical Center Hillcrest | F186: Medical Center Hillcrest | G186: Arbor | H186: P908 | I186: L8 | J186: Reserved | K186: Transportation Office | M186: Yes | N186: Yes | P186: Arbor | Q186: Arbor Reserved Transportation Office | R186: =COUNTIF(Q$5:Q186, Q186 ) -> 1 | S186: =_xlfn.IFS(D$2=X$4, X186, D$2=Y$4, Y186,D$2=Z$4, Z186,D$2=AA$4, AA186) -> 1 | T186: 1 | U186: =IF(R186=1, _xlfn.IFNA(VLOOKUP(Q186, 'Allocation Change Graph'!BF$7:BF$20, 2, FALSE), 0), 0) -> 0 | V186: 0.85 | W186: 0.85 | Z186: 1 | AA186: 1 | AD186: 0 | AE186: 0 | AF186: 0 | AG186: 0 | AH186: 0 | AI186: 0 | AJ186: 0 | AK186: 0 | AL186: 0 | AM186: 0 | AS186: 0 | AT186: 0
C187: University Wide | D187: Medical Center Hillcrest | E187: Medical Center Hillcrest | F187: Medical Center Hillcrest | G187: Arbor | H187: P908 | I187: L8 | J187: UC Vehicle | M187: Yes | N187: Yes | P187: Arbor | Q187: Arbor UC Vehicle | R187: =COUNTIF(Q$5:Q187, Q187 ) -> 1 | S187: =_xlfn.IFS(D$2=X$4, X187, D$2=Y$4, Y187,D$2=Z$4, Z187,D$2=AA$4, AA187) -> 2 | T187: 2 | U187: =IF(R187=1, _xlfn.IFNA(VLOOKUP(Q187, 'Allocation Change Graph'!BF$7:BF$20, 2, FALSE), 0), 0) -> 0 | V187: 0.85 | W187: 1.7 | Z187: 2 | AA187: 2 | AD187: 1 | AE187: 1 | AF187: 1 | AG187: 1 | AH187: 1 | AI187: 1 | AJ187: 1 | AK187: 1 | AL187: 1 | AM187: 1 | AS187: 1 | AT187: 1
C188: University Wide | D188: Medical Center Hillcrest | E188: Medical Center Hillcrest | F188: Medical Center Hillcrest | G188: Arbor | H188: P909 | I188: L9 | J188: Electric Vehicle | L188: 4 Hours | M188: Yes | N188: Yes | P188: Arbor | Q188: Arbor Electric Vehicle 4 Hours | R188: =COUNTIF(Q$5:Q188, Q188 ) -> 1 | S188: =_xlfn.IFS(D$2=X$4, X188, D$2=Y$4, Y188,D$2=Z$4, Z188,D$2=AA$4, AA188) -> 12 | T188: 12 | U188: =IF(R188=1, _xlfn.IFNA(VLOOKUP(Q188, 'Allocation Change Graph'!BF$7:BF$20, 2, FALSE), 0), 0) -> 0 | V188: 0.85 | W188: 10.2 | Z188: 12 | AA188: 12 | AD188: 9 | AE188: 12 | AF188: 9 | AG188: 8 | AH188: 8 | AI188: 8 | AJ188: 8 | AK188: 9 | AL188: 8 | AM188: 9 | AS188: 8 | AT188: 12
C189: University Wide | D189: Medical Center Hillcrest | E189: Medical Center Hillcrest | F189: Medical Center Hillcrest | G189: Arbor | H189: P909 | I189: L9 | J189: Motorcycle Section | M189: Yes | P189: Arbor | Q189: Arbor Motorcycle Section | R189: =COUNTIF(Q$5:Q189, Q189 ) -> 2 | S189: =_xlfn.IFS(D$2=X$4, X189, D$2=Y$4, Y189,D$2=Z$4, Z189,D$2=AA$4, AA189) -> 0 | U189: =IF(R189=1, _xlfn.IFNA(VLOOKUP(Q189, 'Allocation Change Graph'!BF$7:BF$20, 2, FALSE), 0), 0) -> 0 | AD189: 0 | AE189: 0 | AF189: 0 | AG189: 0 | AH189: 0 | AI189: 0 | AJ189: 0 | AK189: 0 | AL189: 0 | AM189: 0 | AS189: 0 | AT189: 0
C190: University Wide | D190: Medical Center Hillcrest | E190: Medical Center Hillcrest | F190: Medical Center Hillcrest | G190: Arbor | H190: P909 | I190: L9 | J190: Reserved | M190: Yes | N190: Yes | P190: Arbor | Q190: Arbor Reserved | R190: =COUNTIF(Q$5:Q190, Q190 ) -> 1 | S190: =_xlfn.IFS(D$2=X$4, X190, D$2=Y$4, Y190,D$2=Z$4, Z190,D$2=AA$4, AA190) -> 19 | T190: 19 | U190: =IF(R190=1, _xlfn.IFNA(VLOOKUP(Q190, 'Allocation Change Graph'!BF$7:BF$20, 2, FALSE), 0), 0) -> 0 | V190: 0.85 | W190: 16.15 | Z190: 19 | AA190: 19 | AD190: 16 | AE190: 15 | AF190: 11 | AG190: 14 | AH190: 13 | AI190: 17 | AJ190: 16 | AK190: 14 | AL190: 19 | AM190: 19 | AS190: 11 | AT190: 19
C191: University Wide | D191: Medical Center Hillcrest | E191: Medical Center Hillcrest | F191: Medical Center Hillcrest | G191: Arbor | H191: P910 | I191: L10 | J191: A | M191: Yes | N191: Yes | P191: Arbor | Q191: Arbor A | R191: =COUNTIF(Q$5:Q191, Q191 ) -> 1 | S191: =_xlfn.IFS(D$2=X$4, X191, D$2=Y$4, Y191,D$2=Z$4, Z191,D$2=AA$4, AA191) -> 44 | T191: 226 | U191: =IF(R191=1, _xlfn.IFNA(VLOOKUP(Q191, 'Allocation Change Graph'!BF$7:BF$20, 2, FALSE), 0), 0) -> 0 | V191: 0.9 | W191: 203.4 | Z191: 44 | AA191: 44 | AD191: 102 | AE191: 37 | AF191: 19 | AG191: 7 | AH191: 7 | AI191: 6 | AJ191: 16 | AK191: 17 | AL191: 25 | AM191: 31 | AS191: 6 | AT191: 102
C192: University Wide | D192: Medical Center Hillcrest | E192: Medical Center Hillcrest | F192: Medical Center Hillcrest | G192: Arbor | H192: P910 | I192: L10 | J192: Accessible | M192: Yes | P192: Arbor | Q192: Arbor Accessible | R192: =COUNTIF(Q$5:Q192, Q192 ) -> 2 | S192: =_xlfn.IFS(D$2=X$4, X192, D$2=Y$4, Y192,D$2=Z$4, Z192,D$2=AA$4, AA192) -> 3 | U192: =IF(R192=1, _xlfn.IFNA(VLOOKUP(Q192, 'Allocation Change Graph'!BF$7:BF$20, 2, FALSE), 0), 0) -> 0 | Z192: 3 | AA192: 3 | AD192: 0 | AE192: 0 | AF192: 0 | AG192: 0 | AH192: 0 | AI192: 0 | AJ192: 0 | AK192: 0 | AL192: 0 | AM192: 0 | AS192: 0 | AT192: 0
C193: University Wide | D193: Medical Center Hillcrest | E193: Medical Center Hillcrest | F193: Medical Center Hillcrest | G193: Arbor | H193: P910 | I193: L10 | J193: Accessible (Van) | M193: Yes | P193: Arbor | Q193: Arbor Accessible (Van) | R193: =COUNTIF(Q$5:Q193, Q193 ) -> 2 | S193: =_xlfn.IFS(D$2=X$4, X193, D$2=Y$4, Y193,D$2=Z$4, Z193,D$2=AA$4, AA193) -> 0 | U193: =IF(R193=1, _xlfn.IFNA(VLOOKUP(Q193, 'Allocation Change Graph'!BF$7:BF$20, 2, FALSE), 0), 0) -> 0 | AD193: 0 | AE193: 0 | AF193: 0 | AG193: 0 | AH193: 0 | AI193: 0 | AJ193: 0 | AK193: 0 | AL193: 0 | AM193: 0 | AS193: 0 | AT193: 0
C194: University Wide | D194: Medical Center Hillcrest | E194: Medical Center Hillcrest | F194: Medical Center Hillcrest | G194: Arbor | H194: P911 | I194: L11 | J194: A | M194: Yes | P194: Arbor | Q194: Arbor A | R194: =COUNTIF(Q$5:Q194, Q194 ) -> 2 | S194: =_xlfn.IFS(D$2=X$4, X194, D$2=Y$4, Y194,D$2=Z$4, Z194,D$2=AA$4, AA194) -> 47 | U194: =IF(R194=1, _xlfn.IFNA(VLOOKUP(Q194, 'Allocation Change Graph'!BF$7:BF$20, 2, FALSE), 0), 0) -> 0 | Z194: 47 | AA194: 47 | AD194: 0 | AE194: 0 | AF194: 0 | AG194: 0 | AH194: 0 | AI194: 0 | AJ194: 0 | AK194: 0 | AL194: 0 | AM194: 0 | AS194: 0 | AT194: 0
C195: University Wide | D195: Medical Center Hillcrest | E195: Medical Center Hillcrest | F195: Medical Center Hillcrest | G195: Arbor | H195: P912 | I195: L12 | J195: A | M195: Yes | P195: Arbor | Q195: Arbor A | R195: =COUNTIF(Q$5:Q195, Q195 ) -> 3 | S195: =_xlfn.IFS(D$2=X$4, X195, D$2=Y$4, Y195,D$2=Z$4, Z195,D$2=AA$4, AA195) -> 45 | U195: =IF(R195=1, _xlfn.IFNA(VLOOKUP(Q195, 'Allocation Change Graph'!BF$7:BF$20, 2, FALSE), 0), 0) -> 0 | Z195: 45 | AA195: 45 | AD195: 0 | AE195: 0 | AF195: 0 | AG195: 0 | AH195: 0 | AI195: 0 | AJ195: 0 | AK195: 0 | AL195: 0 | AM195: 0 | AS195: 0 | AT195: 0
C196: University Wide | D196: Medical Center Hillcrest | E196: Medical Center Hillcrest | F196: Medical Center Hillcrest | G196: Arbor | H196: P912 | I196: L12 | J196: Accessible | M196: Yes | P196: Arbor | Q196: Arbor Accessible | R196: =COUNTIF(Q$5:Q196, Q196 ) -> 3 | S196: =_xlfn.IFS(D$2=X$4, X196, D$2=Y$4, Y196,D$2=Z$4, Z196,D$2=AA$4, AA196) -> 1 | U196: =IF(R196=1, _xlfn.IFNA(VLOOKUP(Q196, 'Allocation Change Graph'!BF$7:BF$20, 2, FALSE), 0), 0) -> 0 | Z196: 1 | AA196: 1 | AD196: 0 | AE196: 0 | AF196: 0 | AG196: 0 | AH196: 0 | AI196: 0 | AJ196: 0 | AK196: 0 | AL196: 0 | AM196: 0 | AS196: 0 | AT196: 0
C197: University Wide | D197: Medical Center Hillcrest | E197: Medical Center Hillcrest | F197: Medical Center Hillcrest | G197: Arbor | H197: P912 | I197: L12 | J197: Accessible (Van) | M197: Yes | P197: Arbor | Q197: Arbor Accessible (Van) | R197: =COUNTIF(Q$5:Q197, Q197 ) -> 3 | S197: =_xlfn.IFS(D$2=X$4, X197, D$2=Y$4, Y197,D$2=Z$4, Z197,D$2=AA$4, AA197) -> 0 | T197: =IF(R197=1,SUMIF(Q:Q,Q197,S:S)+U197, "") ->  | U197: =IF(R197=1, _xlfn.IFNA(VLOOKUP(Q197, 'Allocation Change Graph'!BF$7:BF$20, 2, FALSE), 0), 0) -> 0 | W197: =IF(R197=1, V197*T197, "") ->  | AD197: 0 | AE197: 0 | AF197: 0 | AG197: 0 | AH197: 0 | AI197: 0 | AJ197: 0 | AK197: 0 | AL197: 0 | AM197: 0 | AS197: =MIN($AB197:$AR197)+U197 -> 0 | AT197: =MAX($AB197:$AR197)+U197 -> 0
C198: University Wide | D198: Medical Center Hillcrest | E198: Medical Center Hillcrest | F198: Medical Center Hillcrest | G198: Arbor | H198: P913 | I198: L13 | J198: A | M198: Yes | P198: Arbor | Q198: =P198&" "&J198&" "&K198&" "&L198 -> Arbor A | R198: =COUNTIF(Q$5:Q198, Q198 ) -> 4 | S198: =_xlfn.IFS(D$2=X$4, X198, D$2=Y$4, Y198,D$2=Z$4, Z198,D$2=AA$4, AA198) -> 47 | U198: =IF(R198=1, _xlfn.IFNA(VLOOKUP(Q198, 'Allocation Change Graph'!BF$7:BF$20, 2, FALSE), 0), 0) -> 0 | Z198: 47 | AA198: 47 | AD198: 0 | AE198: 0 | AF198: 0 | AG198: 0 | AH198: 0 | AI198: 0 | AJ198: 0 | AK198: 0 | AL198: 0 | AM198: 0 | AS198: 0 | AT198: 0
C199: University Wide | D199: Medical Center Hillcrest | E199: Medical Center Hillcrest | F199: Medical Center Hillcrest | G199: Arbor | H199: P914 | I199: L14 | J199: A | M199: Yes | P199: Arbor | Q199: Arbor A | R199: =COUNTIF(Q$5:Q199, Q199 ) -> 5 | S199: =_xlfn.IFS(D$2=X$4, X199, D$2=Y$4, Y199,D$2=Z$4, Z199,D$2=AA$4, AA199) -> 43 | U199: =IF(R199=1, _xlfn.IFNA(VLOOKUP(Q199, 'Allocation Change Graph'!BF$7:BF$20, 2, FALSE), 0), 0) -> 0 | Z199: 43 | AA199: 43 | AD199: 0 | AE199: 0 | AF199: 0 | AG199: 0 | AH199: 0 | AI199: 0 | AJ199: 0 | AK199: 0 | AL199: 0 | AM199: 0 | AS199: 0 | AT199: 0
C200: University Wide | D200: Medical Center Hillcrest | E200: Medical Center Hillcrest | F200: Medical Center Hillcrest | G200: Arbor | H200: P914 | I200: L14 | J200: Accessible | M200: Yes | P200: Arbor | Q200: Arbor Accessible | R200: =COUNTIF(Q$5:Q200, Q200 ) -> 4 | S200: =_xlfn.IFS(D$2=X$4, X200, D$2=Y$4, Y200,D$2=Z$4, Z200,D$2=AA$4, AA200) -> 1 | U200: =IF(R200=1, _xlfn.IFNA(VLOOKUP(Q200, 'Allocation Change Graph'!BF$7:BF$20, 2, FALSE), 0), 0) -> 0 | Z200: 1 | AA200: 1 | AD200: 0 | AE200: 0 | AF200: 0 | AG200: 0 | AH200: 0 | AI200: 0 | AJ200: 0 | AK200: 0 | AL200: 0 | AM200: 0 | AS200: 0 | AT200: 0
C201: University Wide | D201: Medical Center Hillcrest | E201: Medical Center Hillcrest | F201: Medical Center Hillcrest | G201: Arbor | H201: P914 | I201: L14 | J201: Accessible (Van) | M201: Yes | P201: Arbor | Q201: Arbor Accessible (Van) | R201: =COUNTIF(Q$5:Q201, Q201 ) -> 4 | S201: =_xlfn.IFS(D$2=X$4, X201, D$2=Y$4, Y201,D$2=Z$4, Z201,D$2=AA$4, AA201) -> 0 | U201: =IF(R201=1, _xlfn.IFNA(VLOOKUP(Q201, 'Allocation Change Graph'!BF$7:BF$20, 2, FALSE), 0), 0) -> 0 | AD201: 0 | AE201: 0 | AF201: 0 | AG201: 0 | AH201: 0 | AI201: 0 | AJ201: 0 | AK201: 0 | AL201: 0 | AM201: 0 | AS201: 0 | AT201: 0
... 800 more rows

Sheet Inventory Area
A1: Sum of Inventory By Locaton & Level | B1: Space Type
A2: Area | B2: A | C2: Accessible | D2: Accessible (Van) | E2: Allocated | F2: B | G2: Carpool | H2: Commercial Loading | I2: Construction | J2: D ($5.00) | K2: Electric Vehicle | L2: G | M2: Loading | N2: Loading Zone | O2: Motorcycle Section | P2: Reserved | Q2: S | R2: Service Yard | S2: SR | T2: SS ($3.25) | U2: UC Cart | V2: UC Vehicle | W2: Visitor | X2: (blank) | Y2: Grand Total
A3: East Campus | B3: 797 | C3: 207 | D3: 78 | E3: 6 | F3: 1744 | J3: 887 | K3: 101 | L3: 578 | M3: 6 | O3: 47 | P3: 259 | Q3: 575 | R3: 3 | T3: 216 | V3: 24 | W3: 1187 | X3: 0 | Y3: 6715
A4: Medical Center Hillcrest | B4: 235 | C4: 99 | D4: 0 | E4: 33 | F4: 1710 | K4: 42 | M4: 4 | O4: 78 | P4: 185 | R4: 11 | V4: 13 | W4: 309 | Y4: 2719
A5: Scripps Institution of Oceanography | C5: 25 | D5: 10 | E5: 5 | F5: 289 | I5: 4 | K5: 26 | M5: 18 | N5: 4 | O5: 15 | P5: 1 | Q5: 159 | R5: 4 | V5: 9 | W5: 270 | Y5: 839
A6: West Campus | B6: 2210 | C6: 279 | D6: 113 | E6: 15 | F6: 3635 | G6: 368 | H6: 4 | K6: 273 | M6: 124 | N6: 1 | O6: 177 | P6: 434 | Q6: 549 | R6: 97 | S6: 620 | T6: 335 | U6: 16 | V6: 241 | W6: 1229 | Y6: 10720
A7: (blank) | X7: 0 | Y7: 0
A8: Grand Total | B8: 3242 | C8: 610 | D8: 201 | E8: 59 | F8: 7378 | G8: 368 | H8: 4 | I8: 4 | J8: 887 | K8: 442 | L8: 578 | M8: 152 | N8: 5 | O8: 317 | P8: 879 | Q8: 1283 | R8: 115 | S8: 620 | T8: 551 | U8: 16 | V8: 287 | W8: 2995 | X8: 0 | Y8: 20993

Sheet Inventory By Location
A1: Sum of Inventory By Locaton & Level | B1: Space Type
A2: La Jolla / Hillcrest | B2: A | C2: Accessible | D2: Accessible (Van) | E2: Allocated | F2: B | G2: Carpool | H2: Commercial Loading | I2: Construction | J2: D ($5.00) | K2: Electric Vehicle | L2: G | M2: Loading | N2: Loading Zone | O2: Motorcycle Section | P2: Reserved | Q2: S | R2: Service Yard | S2: SR | T2: SS ($3.25) | U2: UC Cart | V2: UC Vehicle | W2: Visitor | X2: (blank) | Y2: Grand Total
A3: La Jolla Campus | B3: 3007 | C3: 511 | D3: 201 | E3: 26 | F3: 5668 | G3: 368 | H3: 4 | I3: 4 | J3: 887 | K3: 400 | L3: 578 | M3: 148 | N3: 5 | O3: 239 | P3: 694 | Q3: 1283 | R3: 104 | S3: 620 | T3: 551 | U3: 16 | V3: 274 | W3: 2686 | X3: 0 | Y3: 18274
A4: Medical Center Hillcrest | B4: 235 | C4: 99 | D4: 0 | E4: 33 | F4: 1710 | K4: 42 | M4: 4 | O4: 78 | P4: 185 | R4: 11 | V4: 13 | W4: 309 | Y4: 2719
A5: Grand Total | B5: 3242 | C5: 610 | D5: 201 | E5: 59 | F5: 7378 | G5: 368 | H5: 4 | I5: 4 | J5: 887 | K5: 442 | L5: 578 | M5: 152 | N5: 5 | O5: 317 | P5: 879 | Q5: 1283 | R5: 115 | S5: 620 | T5: 551 | U5: 16 | V5: 287 | W5: 2995 | X5: 0 | Y5: 20993

Sheet Inventory Neighborhood
A1: Sum of Inventory By Locaton & Level | B1: Space Type
A2: Neighborhood | B2: A | C2: Accessible | D2: Accessible (Van) | E2: Allocated | F2: B | G2: Carpool | H2: Commercial Loading | I2: Construction | J2: D ($5.00) | K2: Electric Vehicle | L2: G | M2: Loading | N2: Loading Zone | O2: Motorcycle Section | P2: Reserved | Q2: S | R2: Service Yard | S2: SR | T2: SS ($3.25) | U2: UC Cart | V2: UC Vehicle | W2: Visitor | X2: (blank) | Y2: Grand Total
A3: 8980 | B3: 26 | C3: 9 | D3: 0 | F3: 33 | G3: 19 | K3: 18 | O3: 10 | P3: 5 | Q3: 98 | U3: 1 | V3: 1 | W3: 56 | Y3: 276
A4: Campus Services | B4: 26 | C4: 8 | D4: 1 | E4: 1 | F4: 220 | K4: 2 | M4: 3 | O4: 8 | P4: 3 | R4: 13 | V4: 135 | W4: 29 | Y4: 449
A5: East Recreation | Q5: 378 | Y5: 378
A6: Health Sciences East | B6: 791 | C6: 194 | D6: 70 | E6: 6 | F6: 1188 | J6: 887 | K6: 68 | M6: 3 | O6: 31 | P6: 259 | Q6: 197 | R6: 3 | V6: 24 | W6: 1187 | X6: 0 | Y6: 4908
A7: Health Sciences West | B7: 671 | C7: 40 | D7: 22 | F7: 537 | G7: 75 | K7: 40 | M7: 15 | O7: 15 | P7: 133 | Q7: 1 | R7: 9 | S7: 68 | V7: 22 | W7: 161 | Y7: 1809
A8: Marshall College | B8: 88 | C8: 8 | D8: 2 | F8: 0 | M8: 6 | O8: 5 | P8: 5 | Q8: 72 | R8: 4 | W8: 30 | Y8: 220
A9: Medical Center Hillcrest | B9: 235 | C9: 99 | D9: 0 | E9: 33 | F9: 1710 | K9: 42 | M9: 4 | O9: 78 | P9: 185 | R9: 11 | V9: 13 | W9: 309 | Y9: 2719
A10: Muir College | B10: 46 | C10: 21 | D10: 16 | E10: 2 | F10: 0 | H10: 4 | K10: 2 | M10: 21 | N10: 1 | O10: 4 | P10: 65 | R10: 10 | V10: 4 | W10: 27 | Y10: 223
A11: North Campus | B11: 22 | C11: 5 | D11: 5 | E11: 1 | F11: 166 | K11: 10 | M11: 18 | O11: 12 | P11: 14 | R11: 4 | V11: 11 | W11: 13 | Y11: 281
A12: North Torrey Pines Living and Learning | B12: 295 | C12: 48 | D12: 12 | F12: 381 | G12: 92 | K12: 35 | O12: 30 | P12: 29 | R12: 4 | S12: 103 | W12: 153 | Y12: 1182
A13: Pepper Canyon | B13: 4 | C13: 4 | D13: 2 | F13: 18 | M13: 11 | O13: 5 | P13: 4 | R13: 2 | S13: 96 | V13: 2 | W13: 3 | Y13: 151
A14: Preuss School | B14: 6 | C14: 1 | D14: 3 | F14: 59 | M14: 3 | Y14: 72
A15: Revelle College | C15: 10 | D15: 3 | E15: 11 | M15: 10 | O15: 2 | P15: 6 | R15: 11 | V15: 2 | W15: 1 | Y15: 56
A16: Roosevelt College | B16: 437 | C16: 41 | D16: 5 | F16: 1026 | G16: 84 | K16: 26 | M16: 4 | O16: 51 | P16: 22 | Q16: 373 | R16: 8 | S16: 235 | V16: 17 | W16: 167 | Y16: 2496
A17: Science Research Park | C17: 12 | D17: 5 | F17: 497 | K17: 33 | L17: 578 | O17: 16 | T17: 216 | Y17: 1357
A18: Scripps Institution of Oceanography | C18: 25 | D18: 10 | E18: 5 | F18: 289 | I18: 4 | K18: 26 | M18: 18 | N18: 4 | O18: 15 | P18: 1 | Q18: 159 | R18: 4 | V18: 9 | W18: 270 | Y18: 839
A19: Theater District Living & Learning | B19: 182 | C19: 17 | D19: 5 | F19: 393 | G19: 87 | K19: 97 | O19: 0 | P19: 0 | R19: 5 | S19: 91 | U19: 15 | V19: 0 | W19: 156 | Y19: 1048
A20: Torrey Pines Center | C20: 22 | D20: 9 | E20: 0 | F20: 736 | G20: 11 | K20: 10 | M20: 7 | O20: 16 | P20: 34 | Q20: 5 | R20: 1 | T20: 335 | V20: 32 | W20: 229 | Y20: 1447
A21: University Center | B21: 401 | C21: 33 | D21: 14 | F21: 123 | K21: 33 | M21: 14 | O21: 12 | P21: 49 | R21: 19 | V21: 12 | W21: 176 | Y21: 886
A22: Warren College | B22: 12 | C22: 13 | D22: 17 | F22: 2 | M22: 15 | O22: 7 | P22: 65 | R22: 7 | S22: 27 | V22: 3 | W22: 28 | Y22: 196
A23: (blank) | X23: 0 | Y23: 0
A24: Grand Total | B24: 3242 | C24: 610 | D24: 201 | E24: 59 | F24: 7378 | G24: 368 | H24: 4 | I24: 4 | J24: 887 | K24: 442 | L24: 578 | M24: 152 | N24: 5 | O24: 317 | P24: 879 | Q24: 1283 | R24: 115 | S24: 620 | T24: 551 | U24: 16 | V24: 287 | W24: 2995 | X24: 0 | Y24: 20993

Sheet Inventory Structure
A1: Sum of Inventory By Locaton & Level | B1: Space Type
A2: Structure | B2: A | C2: Accessible | D2: Accessible (Van) | E2: B | F2: Carpool | G2: Electric Vehicle | H2: Motorcycle Section | I2: Reserved | J2: S | K2: UC Cart | L2: UC Vehicle | M2: Visitor | N2: Grand Total
A3: 8980 | B3: 26 | C3: 9 | D3: 0 | E3: 33 | F3: 19 | G3: 18 | H3: 10 | I3: 5 | J3: 98 | K3: 1 | L3: 1 | M3: 56 | N3: 276
A4: Grand Total | B4: 26 | C4: 9 | D4: 0 | E4: 33 | F4: 19 | G4: 18 | H4: 10 | I4: 5 | J4: 98 | K4: 1 | L4: 1 | M4: 56 | N4: 276

Sheet Inventory By Surface Lot
A1: Sum of Inventory By Locaton & Level | B1: Space Type
A2: Lot / Structure | B2: A | C2: Accessible | D2: Accessible (Van) | E2: Allocated | F2: B | G2: Carpool | H2: Commercial Loading | I2: D ($5.00) | J2: Electric Vehicle | K2: Loading | L2: Loading Zone | M2: Motorcycle Section | N2: Reserved | O2: S | P2: Service Yard | Q2: SR | R2: SS ($3.25) | S2: UC Vehicle | T2: Visitor | U2: Grand Total
A3: P001 | C3: 1 | D3: 0 | F3: 0 | J3: 9 | K3: 1 | N3: 1 | U3: 12
A4: P002 | C4: 2 | D4: 0 | F4: 31 | U4: 33
A5: P003 | C5: 2 | D5: 0 | E5: 1 | F5: 64 | K5: 5 | M5: 0 | U5: 72
A6: P004 | J6: 1 | K6: 7 | P6: 1 | S6: 6 | U6: 15
A7: P005 | C7: 1 | D7: 0 | K7: 1 | M7: 2 | P7: 1 | U7: 5
A8: P006 | C8: 1 | D8: 0 | F8: 6 | U8: 7
A9: P007 | C9: 3 | D9: 0 | F9: 22 | J9: 8 | K9: 2 | M9: 2 | S9: 3 | U9: 40
A10: P008 | C10: 3 | D10: 0 | F10: 26 | M10: 1 | U10: 30
A11: P009 | P11: 2 | U11: 2
A12: P010 | C12: 1 | D12: 0 | F12: 23 | U12: 24
A13: P011 | C13: 1 | D13: 0 | E13: 4 | F13: 15 | K13: 1 | M13: 1 | U13: 22
A14: P012 | C14: 1 | D14: 0 | F14: 12 | U14: 13
A15: P013 | C15: 1 | D15: 0 | F15: 12 | J15: 2 | U15: 15
A16: P014 | C16: 1 | D16: 3 | F16: 69 | J16: 2 | M16: 8 | N16: 0 | O16: 26 | T16: 4 | U16: 113
A17: P015 | K17: 1 | U17: 1
A18: P016 | C18: 2 | D18: 0 | M18: 1 | O18: 58 | U18: 61
A19: P017 | C19: 2 | D19: 7 | J19: 2 | T19: 254 | U19: 265
A20: P021 | O20: 75 | U20: 75
A21: P101 | C21: 10 | D21: 2 | N21: 1 | U21: 13
A22: P106 | C22: 0 | D22: 1 | M22: 2 | N22: 5 | T22: 1 | U22: 9
A23: P110 | P23: 5 | U23: 5
A24: P112 | P24: 6 | U24: 6
A25: P113 | C25: 0 | D25: 2 | K25: 1 | M25: 1 | N25: 4 | T25: 22 | U25: 30
A26: P116 | E26: 11 | S26: 2 | U26: 13
A27: P201 | B27: 11 | C27: 2 | D27: 1 | K27: 8 | M27: 3 | U27: 25
A28: P202 | C28: 0 | D28: 2 | K28: 4 | N28: 1 | P28: 2 | U28: 9
A29: P203 | N29: 6 | U29: 6
A30: P204 | E30: 2 | U30: 2
A31: P205 | P31: 4 | U31: 4
A32: P206 | B32: 32 | C32: 4 | D32: 2 | F32: 0 | H32: 4 | J32: 2 | L32: 1 | S32: 4 | T32: 5 | U32: 54
A33: P303 | B33: 88 | C33: 5 | D33: 1 | K33: 2 | N33: 5 | P33: 2 | T33: 30 | U33: 133
A34: P304 | C34: 1 | D34: 1 | F34: 0 | K34: 2 | M34: 5 | O34: 72 | P34: 2 | U34: 83
A35: P306 | C35: 3 | D35: 0 | K35: 4 | N35: 4 | S35: 3 | U35: 14
A36: P310 | C36: 2 | D36: 0 | K36: 2 | U36: 4
A37: P351 | B37: 22 | N37: 10 | U37: 32
A38: P352 | C38: 0 | D38: 1 | K38: 1 | P38: 2 | U38: 4
A39: P353 | C39: 3 | D39: 1 | E39: 1 | K39: 17 | S39: 3 | U39: 25
A40: P354 | C40: 4 | D40: 0 | N40: 1 | P40: 8 | S40: 2 | U40: 15
A41: P357 | C41: 2 | D41: 3 | F41: 117 | J41: 10 | M41: 12 | N41: 4 | P41: 2 | T41: 13 | U41: 163
A42: P358 | S42: 1 | U42: 1
A43: P359 | F43: 49 | S43: 7 | U43: 56
A44: P384 | E44: 0 | F44: 175 | M44: 4 | U44: 179
A45: P385 | C45: 3 | D45: 7 | N45: 11 | T45: 202 | U45: 223
A46: P386 (Gliderport) | R46: 335 | U46: 335
A47: P401 | C47: 0 | D47: 1 | K47: 2 | Q47: 96 | U47: 99
A48: P402 | B48: 4 | C48: 2 | D48: 1 | K48: 7 | M48: 2 | N48: 4 | P48: 2 | S48: 2 | T48: 3 | U48: 27
A49: P405 | K49: 12 | N49: 1 | P49: 10 | U49: 23
A50: P406 | C50: 2 | D50: 0 | F50: 18 | K50: 2 | M50: 3 | U50: 25
A51: P407 | K51: 1 | P51: 3 | U51: 4
A52: P414 | B52: 3 | K52: 7 | N52: 2 | P52: 4 | U52: 16
A53: P415 | C53: 1 | D53: 0 | N53: 8 | U53: 9
A54: P416 | C54: 14 | D54: 9 | K54: 1 | N54: 44 | U54: 68
A55: P418 | C55: 4 | D55: 2 | K55: 1 | U55: 7
A56: P501 | C56: 1 | D56: 4 | K56: 1 | P56: 6 | U56: 12
A57: P502 | K57: 4 | N57: 6 | U57: 10
A58: P503 | B58: 8 | C58: 1 | D58: 5 | F58: 2 | M58: 5 | N58: 23 | T58: 10 | U58: 54
A59: P504 | C59: 4 | D59: 2 | K59: 8 | M59: 1 | N59: 6 | Q59: 27 | T59: 6 | U59: 54
A60: P505 | K60: 1 | N60: 4 | P60: 2 | U60: 7
A61: P506 | B61: 3 | C61: 1 | D61: 1 | M61: 1 | P61: 1 | S61: 2 | T61: 12 | U61: 21
A62: P507 | C62: 8 | D62: 1 | E62: 1 | F62: 63 | J62: 2 | K62: 3 | M62: 5 | P62: 12 | S62: 135 | T62: 20 | U62: 250
A63: P508 | B63: 1 | C63: 3 | D63: 7 | K63: 0 | N63: 25 | T63: 0 | U63: 36
A64: P509 | K64: 1 | N64: 1 | P64: 4 | S64: 1 | U64: 7
A65: P510 | B65: 26 | F65: 157 | M65: 3 | N65: 3 | P65: 1 | T65: 9 | U65: 199
A66: P601 | C66: 7 | D66: 3 | K66: 1 | U66: 11
A67: P602 | B67: 109 | C67: 2 | D67: 2 | G67: 9 | J67: 4 | N67: 90 | S67: 2 | T67: 12 | U67: 230
A68: P603 | B68: 0 | C68: 6 | D68: 9 | K68: 4 | M68: 0 | N68: 0 | P68: 2 | T68: 36 | U68: 57
A69: P604 | C69: 0 | D69: 0 | F69: 0 | U69: 0
A70: P605 | C70: 1 | D70: 0 | N70: 8 | S70: 7 | U70: 16
A71: P606 | C71: 0 | D71: 2 | K71: 2 | N71: 6 | U71: 10
A72: P607 | P72: 5 | U72: 5
A73: P608 | C73: 2 | D73: 0 | K73: 8 | N73: 1 | U73: 11
A74: P610 | B74: 113 | C74: 0 | D74: 5 | G74: 2 | J74: 6 | N74: 23 | U74: 149
A75: P701 | O75: 378 | U75: 378
A76: P702 | C76: 3 | D76: 3 | F76: 183 | U76: 189
A77: P703 | C77: 0 | D77: 11 | E77: 2 | I77: 295 | J77: 12 | K77: 2 | N77: 2 | S77: 21 | T77: 17 | U77: 362
A78: P704 | I78: 326 | U78: 326
A79: P705 | I79: 266 | U79: 266
A80: P706 | B80: 6 | C80: 1 | D80: 3 | F80: 59 | K80: 3 | U80: 72
A81: P707 | C81: 6 | D81: 1 | J81: 2 | N81: 6 | O81: 197 | U81: 212
A82: P751 | C82: 0 | D82: 0 | J82: 0 | N82: 58 | U82: 58
A83: P752 | C83: 4 | D83: 2 | E83: 4 | N83: 38 | T83: 3 | U83: 51
A84: P753 | C84: 0 | D84: 2 | N84: 32 | U84: 34
A85: P757 | K85: 0 | N85: 0 | S85: 0 | U85: 0
A86: P758 | C86: 2 | D86: 0 | M86: 0 | N86: 5 | U86: 7
A87: P759 | B87: 87 | C87: 4 | D87: 5 | M87: 1 | N87: 17 | U87: 114
A88: P761 | S88: 3 | U88: 3
A89: P762 | K89: 1 | P89: 3 | U89: 4
A90: P782 | R90: 216 | U90: 216
A91: P784 | C91: 6 | D91: 12 | F91: 81 | N91: 9 | U91: 108
A92: P785 | C92: 0 | D92: 8 | F92: 384 | U92: 392
A93: P952 | E93: 5 | K93: 2 | P93: 2 | S93: 2 | U93: 11
A94: P953 | C94: 3 | D94: 0 | F94: 7 | N94: 7 | U94: 17
A95: P954 | C95: 3 | D95: 0 | E95: 12 | N95: 25 | U95: 40
A96: P955 | B96: 7 | C96: 1 | D96: 0 | K96: 2 | M96: 3 | N96: 21 | P96: 3 | S96: 7 | U96: 44
A97: P956 | B97: 2 | P97: 6 | U97: 8
A98: P957 | C98: 7 | D98: 0 | E98: 1 | N98: 67 | S98: 2 | U98: 77
A99: P964 | C99: 11 | D99: 0 | E99: 15 | N99: 37 | T99: 42 | U99: 105
A100: Torrey Pines Center North | C100: 3 | D100: 2 | F100: 188 | G100: 1 | K100: 1 | M100: 2 | N100: 11 | O100: 5 | P100: 1 | T100: 10 | U100: 224
A101: Grand Total | B101: 522 | C101: 174 | D101: 137 | E101: 59 | F101: 1763 | G101: 12 | H101: 4 | I101: 887 | J101: 62 | K101: 136 | L101: 1 | M101: 68 | N101: 643 | O101: 811 | P101: 104 | Q101: 123 | R101: 551 | S101: 215 | T101: 711 | U101: 6983

Sheet Visitor Inventory
A1: Sum of Inventory By Locaton & Level | B1: Space Type
A2: Structure | B2: Visitor
A3: 8980 | B3: 56
A4: Arbor | B4: 267
A5: Athena | B5: 286
A6: Campus Point East | B6: 269
A7: Campus Point West | B7: 612
A8: Gilman | B8: 176
A9: Hopkins | B9: 91
A10: Pangea | B10: 76
A11: Scholars | B11: 153
A12: South | B12: 113
A13: Surface Lot | B13: 713
A14: TDLLN | B14: 156
A15: Torrey Pines Center North | B15: 10
A16: Torrey Pines Center South | B16: 17
A17: Grand Total | B17: 2995

Sheet ADA Inventory
A1: Sum of Inventory By Locaton & Level | B1: Space Type
A2: Structure | B2: Accessible | C2: Accessible (Van)
A3: 8980 | B3: 9 | C3: 0
A4: Arbor | B4: 15 | C4: 0
A5: Athena | B5: 71 | C5: 8
A6: Campus Point East | B6: 11 | C6: 1
A7: Campus Point West | B7: 87 | C7: 17
A8: First Ave | B8: 59 | C8: 0
A9: Gilman | B9: 32 | C9: 10
A10: Hopkins | B10: 17 | C10: 5
A11: Mesa Canyon | B11: 12 | C11: 5
A12: Pangea | B12: 17 | C12: 0
A13: Scholars | B13: 48 | C13: 12
A14: South | B14: 22 | C14: 1
A15: Surface Lot | B15: 174 | C15: 135
A16: TDLLN | B16: 17 | C16: 5
A17: Torrey Pines Center North | B17: 3 | C17: 2
A18: Torrey Pines Center South | B18: 16 | C18: 0
A19: Grand Total | B19: 610 | C19: 201

Sheet ADA Inventory By Neighborhood
A1: Sum of Inventory By Locaton & Level | D1: Space Type
A2: Neighborhood | B2: Lot # | C2: Structure | D2: Accessible | E2: Accessible (Van) | F2: Grand Total
A3: Campus Services | D3: 8 | E3: 1 | F3: 9
A4: Health Sciences East | D4: 194 | E4: 70 | F4: 264
A5: Health Sciences West | D5: 40 | E5: 22 | F5: 62
A6: Marshall College | D6: 8 | E6: 2 | F6: 10
A7: Medical Center Hillcrest | D7: 99 | E7: 0 | F7: 99
A8: Muir College | D8: 21 | E8: 16 | F8: 37
A9: North Campus | D9: 5 | E9: 5 | F9: 10
A10: North Torrey Pines Living and Learning | D10: 48 | E10: 12 | F10: 60
A11: Pepper Canyon | D11: 4 | E11: 2 | F11: 6
A12: Preuss School | D12: 1 | E12: 3 | F12: 4
A13: Revelle College | D13: 10 | E13: 3 | F13: 13
A14: Roosevelt College | D14: 41 | E14: 5 | F14: 46
A15: Science Research Park | D15: 12 | E15: 5 | F15: 17
A16: Scripps Institution of Oceanography | D16: 25 | E16: 10 | F16: 35
A17: Torrey Pines Center | D17: 22 | E17: 9 | F17: 31
A18: University Center | D18: 33 | E18: 14 | F18: 47
A19: Warren College | D19: 13 | E19: 17 | F19: 30
A20: 8980 | D20: 9 | E20: 0 | F20: 9
A21: Theater District Living & Learning | D21: 17 | E21: 5 | F21: 22
A22: Grand Total | D22: 610 | E22: 201 | F22: 811

Sheet EVADA Inventory By Neighborhood
A1: Sum of Inventory By Locaton & Level | E1: Space Subtype
A2: Neighborhood | B2: Lot # | C2: Structure | D2: Space Type | E2: ADA | F2: Grand Total
A3: Health Sciences East | E3: 2 | F3: 2
B4: P741 | E4: 2 | F4: 2
C5: Athena | E5: 2 | F5: 2
A6: North Torrey Pines Living and Learning | E6: 5 | F6: 5
B7: P213 | E7: 5 | F7: 5
C8: Scholars | E8: 5 | F8: 5
A9: Roosevelt College | E9: 2 | F9: 2
B10: P342 | E10: 2 | F10: 2
C11: Hopkins | E11: 2 | F11: 2
A12: University Center | E12: 1 | F12: 1
B13: P452 | E13: 1 | F13: 1
C14: Gilman | E14: 1 | F14: 1
A15: Theater District Living & Learning | E15: 5 | F15: 5
B16: TDLLN | E16: 5 | F16: 5
C17: TDLLN | E17: 5 | F17: 5
A18: Grand Total | E18: 15 | F18: 15

Sheet EV Inventory
A1: Sum of Inventory By Locaton & Level | B1: Space Type
A2: Structure | B2: Electric Vehicle
A3: 8980 | B3: 18
A4: Arbor | B4: 12
A5: Athena | B5: 45
A6: Campus Point East | B6: 3
A7: Campus Point West | B7: 6
A8: First Ave | B8: 30
A9: Gilman | B9: 33
A10: Hopkins | B10: 22
A11: Mesa Canyon | B11: 33
A12: Pangea | B12: 4
A13: Scholars | B13: 35
A14: South | B14: 30
A15: Surface Lot | B15: 64
A16: TDLLN | B16: 97
A17: Torrey Pines Center South | B17: 10
A18: Grand Total | B18: 442
